{"text_format":"1","workbook":"xlsx","n_sheets":55,"sheets":["TitlePage","Disclaimer","General Notes","Chemical Notes","Revisions","Contents","A01","A02a","A02b","A02c","A02d","A03","A04","B01","B02","B03a","B04Rt","B04a","B04b","B04c","B04d","D05","D06","D07","D08a","D08b","D09a","D09b","D09c","D09d","D11","E03","E04","F02a","F02b","F02c","F02d","F03a","F03b","F03c","F08a","F08b","F08c","F08d","F11a","F11b","F16a","F16b","F16c","F16d","F17a","F17b","G01a","G02a","References"],"not_rendered":{"charts":12,"images":18,"macros":1,"external_links":0,"defined_names":490,"comments":0,"pivot_tables":0},"unopened":[],"bounds":{"document_bytes":16777216,"sheet_cells":100000,"rows_first":2000,"rows_last":500,"rows_between":2000,"halvings":0,"cell_chars":16384,"cell_head_chars":4096},"cells_cut":0,"cells_raw":0,"read":"whole","date_system":"1900"}

{"sheet":"TitlePage","index":0,"n_rows":51,"n_cols":6,"rows_kept":51,"cut":false,"hidden":false,"merged":[[0,1,4,7],[5,2,7,6],[50,0,50,8]]}
["Title page"]
[]
[]
[]
[]
[null,null,"Cyclopropanecarboxylic acid from Aminocyclopyrachlor: Terrestrial Foliar Applications"]
[]
[]
[]
[]
[]
[]
[]
[]
[]
[]
[null,null,null,null,"WorksheetMaker Version ","6.00.10"]
[]
[]
[]
[]
[]
[]
[]
[]
[]
[]
[]
[]
[]
[]
[]
[]
[]
[]
[]
[]
[]
[]
[]
[]
[]
[]
[]
[]
[]
[]
[]
[]
[]
["2012-09-27"]

{"sheet":"Disclaimer","index":1,"n_rows":1,"n_cols":1,"rows_kept":1,"cut":false,"hidden":false,"merged":[]}
["DISCLAIMER"]

{"sheet":"General Notes","index":2,"n_rows":59,"n_cols":3,"rows_kept":59,"cut":false,"hidden":false,"merged":[[0,0,0,2]]}
["General Notes"]
[null,"Prepared by:","Patrick R Durkin"]
[null,"Program Version:","6.00.10"]
[null,"Database Used:","FS WsMkr V06-00-01 with Aminocyclopyrachlor.mdb"]
[null,"Template Workbook:","FS WsMkr V06-00-01 with Aminocyclopyrachlor.mdb"]
[null,"Base Workbook:","FS WSMkr Blank V06-00-01.xlsm"]
[]
["Color Codes in WorksheetMaker"]
[]
[]
[]
[]
["Color Codes used in Workbook for Front Matter, Data and Calculation Worksheets"]
[null,"Green shading ","This is a default value or a user specified a value.  You can change these values as you see fit but you should have a reason for doing so."]
[null,"Yellow shading ","This is a source for a link in other parts of the workbook.  If you have good reason to change the value, you should note the change (with your reason) in the “Revisions” page."]
[null,"Blue shading ","This cell is linked to another cell in the workbook.  Do not change this value.  If you change any of these values, the workbook may not update correctly."]
[null,"Blue shading blue border ","This cell is linked to a Program parameter in Worksheet A01.  Do not change this value.  If you want the value to change, go to Worksheet A01 and change the value in that worksheet."]
[null,"Purple Shading","Indicates (for information only) that the typical of order of Lower and Upper values is intentionally reversed.  This is only used in the second (label) column."]
[null,"Italics, no shading","The value in this cell is generated by a formula (the number that you see is the result of an equation).  This cell is linked only to other cells in the worksheet.  Do not change this value."]
[]
[]
[]
[]
[]
["Color Codes used in Workbook for Risk Characterization Worksheets"]
[null,"HQ ≥ 2","For hazard quotient greater than 2, the number is in bold font with a red background and rounded to the nearest integer."]
[null,"HQ > 1 but < 2","For hazard quotient greater than 1 but less than two, the number is in bold font with a white background and rounded to one significant place after the decimal."]
[null,"HQ ≥ 0.1 but <1","For hazard quotient greater than 0.1 but less than one, the number is in regular font with a white background and rounded to one significant place after the decimal."]
[null,"HQ < 0.1","For hazard quotient less than 0.1, the number is in regular font with a white background.   The number is expressed in scientific notation and rounded to one significant place -- e.g., 2E-02 rather than 0.02."]
[]
[]
[]
[]
[]
[]
[]
[]
[]
[]
[]
[]
[]
[]
[]
[]
[]
[]
[]
[]
[]
[]
[]
[]
[]
[null,"Prepared by:","Patrick R Durkin"]
[null,"Program Version:","6.00.10"]
[null,"Database Used:","FS WsMkr V06-00-01 with Aminocyclopyrachlor.mdb"]
[null,"Template Workbook:","FS WsMkr V06-00-01 with Aminocyclopyrachlor.mdb"]
[null,"Base Workbook:","FS WSMkr Blank V06-00-01.xlsm"]

{"sheet":"Chemical Notes","index":3,"n_rows":6,"n_cols":4,"rows_kept":6,"cut":false,"hidden":false,"merged":[[0,0,0,2],[1,0,1,2],[1,3,1,5],[2,0,2,2],[2,3,2,4]]}
["Chemical specific notes"]
["Risk Assessment:",null,null,"SERA TR-056-01-03a"]
["Report Date:",null,null,"2012-09-27"]
[]
[]
["The area below is an embedded MS Word Document.  Add chemical-specific notes as appropriate."]

{"sheet":"Revisions","index":4,"n_rows":8,"n_cols":1,"rows_kept":8,"cut":false,"hidden":false,"merged":[]}
["Revision Histroy"]
[]
[]
[]
[]
[]
[]
["The area below is an embedded MS Word Document.  Add revision notes as appropriate."]

{"sheet":"Contents","index":5,"n_rows":56,"n_cols":3,"rows_kept":56,"cut":false,"hidden":false,"merged":[]}
[null,"Table of Contents","Toc"]
["Work-sheet No.","Worksheet Title"]
["TitlePage","Title page"]
["Disclaimer","DISCLAIMER"]
["General Notes","General Notes"]
["Chemical Notes","Chemical specific notes"]
["Revisions","Revision Histroy"]
["Contents"]
["A01","Program Data: Aminocyclopyrachlor Application rates, application volumns, and concentrations in field solutions"]
["A02a","General reference values and exposure factors used in worksheets."]
["A02b","General reference values and exposure factors used in worksheets."]
["A02c","General reference values and exposure factors used in worksheets."]
["A02d","General reference values and exposure factors used in worksheets."]
["A03","Food items for terrestrial animals"]
["A04","Drift from Backpack Directed Foliar application at distances downwindfrom the application site"]
["B01","Chemical and Physical Properties for  Aminocyclopyrachlor"]
["B02","Toxicity values for  Aminocyclopyrachlor"]
["B04Rt","Estimates of Water Contamination Rates -- i.e., the concentration in ambient water per pound applied per acre"]
["B04a","Expected Concentrations in Surface Water"]
["B04b","Pond: Concentration of pesticide (liquid formulation) in pond water after an accidental spill"]
["B04c","Concentration in pond water after direct spray or after drift at distances downwind in feet from the application site"]
["B04d","Concentration in stream water after direct spray or after drift at distances downwind in feet from the application site"]
["D05","Consumption of contaminated water by Child, Accidental Spill "]
["D06","Consumption of contaminated water by Child, Peak Conentrations "]
["D07","Consumption of contaminated water by Adult Male, Longer-term Conentrations "]
["D08a","Consumption of Contaminated Fish (Accidental Spill), Adult Male, acute exposure"]
["D08b","Consumption of Contaminated Fish (Accidental Spill), Subsistence Populations, acute exposure"]
["D09a","Consumption of Contaminated Fish (Longer-term), Adult Male, chronic exposure"]
["D09b","Consumption of Contaminated Fish (Longer-term), Subsistence Populations, chronic exposure"]
["D09c","Consumption of Contaminated Fish (Peak Exposure), Adult Male, acute exposure"]
["D09d","Consumption of Contaminated Fish (Peak Exposure), Subsistence Populations, acute exposure"]
["D11","Swimming Exposure Assessment Using Zero-Order Absorption, Adult Female, Surface Area, Whole body, for 60 minute(s)"]
["E03","Summary of Exposure Assessments for the General Public"]
["E04","Summary of Hazard Quotients (Toxicity) for the General Public"]
["F02a","Consumption of contaminated water by Mammal, small, Accidental Spill "]
["F02b","Consumption of contaminated water by Mammal, 400 g, Accidental Spill "]
["F02c","Consumption of contaminated water by Mammal, carnivorous, Accidental Spill "]
["F02d","Consumption of contaminated water by Mammal, large, Accidental Spill "]
["F03a","Acute scenario for the consumption of Contaminated Fish (Accidental Spill) by Mammal, large carnivorous "]
["F03b","Acute scenario for the consumption of Contaminated Fish (Accidental Spill) by Mammal, carnivorous "]
["F03c","Acute scenario for the consumption of Contaminated Fish (Accidental Spill) by Bird, piscivorous "]
["F08a","Consumption of contaminated water by Mammal, small, Peak Concentrations "]
["F08b","Consumption of contaminated water by Mammal, 400 g, Peak Concentrations "]
["F08c","Consumption of contaminated water by Mammal, carnivorous, Peak Concentrations "]
["F08d","Consumption of contaminated water by Mammal, large, Peak Concentrations "]
["F11a","Acute scenario for the consumption of Contaminated Fish (Peak) by Mammal, large carnivorous "]
["F11b","Acute scenario for the consumption of Contaminated Fish (Peak) by Mammal, carnivorous "]
["F16a","Consumption of contaminated water by Mammal, small, Longer-term Concentrations "]
["F16b","Consumption of contaminated water by Mammal, 400 g, Longer-term Concentrations "]
["F16c","Consumption of contaminated water by Mammal, carnivorous, Longer-term Concentrations "]
["F16d","Consumption of contaminated water by Mammal, large, Longer-term Concentrations "]
["F17a","Chronic scenario for the consumption of Contaminated Fish (Longer-term) by Mammal, large carnivorous "]
["F17b","Chronic scenario for the consumption of Contaminated Fish (Longer-term) by Mammal, carnivorous "]
["G01a","Summary of Exposure Assessments for the Mammals"]
["G02a","Summary of Hazard Quotients (Toxicity) for the Mammals"]
["References","References cited in workbook"]

{"sheet":"A01","index":6,"n_rows":77,"n_cols":5,"rows_kept":77,"cut":false,"hidden":false,"merged":[[53,0,56,0],[0,0,0,4],[3,0,6,0],[7,0,10,0],[12,0,15,0],[16,0,18,0],[29,0,32,0],[33,0,36,0],[37,0,40,0],[41,0,44,0],[45,0,48,0],[49,0,52,0],[57,0,60,0],[61,0,64,0],[65,0,68,0],[69,0,72,0],[73,0,76,0]]}
["Program Data: Aminocyclopyrachlor Application rates, application volumns, and concentrations in field solutions"]
["Parameter/Assumption","Code / Range","Equation/ Value","Units","Reference/ Equation"]
["Application Rate","ApRt",0.28000000000000003,"lb/acre","Program Input"]
["Application Volume","ApVol"]
[null,"Central ",20,"gal/acre","Program Input"]
[null,"Upper ",400,null,"Program Input"]
[null,"Lower ",10,null,"Program Input"]
["Concentration in field solution (lb/gal)","Concppg","ApRt (lb/acre) / ApVol (gal/acre)",null,"Note 1"]
[null,"Central ",{"$f":"IF(C5>0, C$3/C5, \"N/A\")","v":1.4000000000000002E-2},"lb/gal","Eq"]
[null,"Lower ",{"$f":"IF(C6>0, C$3/C6, \"N/A\")","v":7.000000000000001E-4},null,"Eq"]
[null,"Upper ",{"$f":"IF(C7>0, C$3/C7, \"N/A\")","v":2.8000000000000004E-2},null,"Eq"]
["Conversion Factor for lbs/gal to mg/mL","CnvF",119.8,"mg/mL per lb/gal"]
["Concentration in field solution (mg/mL)","FldConc","Concppg * CnvF",null,"Note 2"]
[null,"Central ",{"$f":"IF(C5>0, DigitRound( C9*C$12, C$17), \"NA\")","v":1.7},"mg/mL","Eq"]
[null,"Lower ",{"$f":"IF(C6>0, DigitRound( C10*C$12, C$17), \"NA\")","v":8.4000000000000005E-2},null,"Eq"]
[null,"Upper ",{"$f":"IF(C7>0, DigitRound( C11*C$12, C$17), \"NA\")","v":3.4},null,"Eq"]
["Number of significant figures  used for FldConc.","NSig",2]
[]
[]
["Number of Applications","nApps",1,"Unitless","Program Input"]
["Application Interval","ApIntv",1,"Days","Program Input"]
["Standard Values/Options for Scenarios"]
["Surface area of pond for spill","PondSA_M",1000,"Sq. Meters","Risk assessment."]
["Pond depth","PondDepthM",1,"Meters","Risk assessment."]
["Stream flow rate for drift scenario","StreamFlowLD",710000,"Liters/day","Risk assessment."]
["Stream length for drift scenario","StreamLengthFt",1038,"Feet","Risk assessment."]
["Stream width for drift scenario","StreamWidthFt",6,"Feet","Risk assessment."]
["Duration for longer-term exposures","SubChDays",90,"Days","Risk assessment."]
["Duration for swimming scenarios","SwimMin",60,"Minutes","Risk assessment."]
["Protection factor for workers based on PPE.","WrkProtectFact"]
[null,"Central",0,null,"Risk assessment."]
[null,"Lower",0]
[null,"Upper",0]
["Toxic Equivalency Factor for formulation","TEF"]
[null,"Central",1,null,"Risk assessment."]
[null,"Lower",1]
[null,"Upper",1]
["Drift used in food commody worksheets","DriftToFood"]
[null,"Central",1,null,"Risk assessment."]
[null,"Lower",1]
[null,"Upper",1]
["Amount spilled into ponds","PondSpillVolGal"]
[null,"Central",100,"Gal","Risk assessment."]
[null,"Lower",20]
[null,"Upper",200]
["Dislodgeable residue, as a proportion of the application rate.","DislogRes"]
[null,"Central",0.1,null,"Risk assessment."]
[null,"Lower",0.1]
[null,"Upper",0.1]
["Residue rates for short grass","VegRRSGT"]
[null,"Central",85,"ppm per lb/ac","Risk assessment."]
[null,"Lower",30]
[null,"Upper",240]
["Residue rates for long grass","VegRRTGT"]
[null,"Central",36,"ppm per lb/ac","Risk assessment."]
[null,"Lower",12]
[null,"Upper",110]
["Residue rates for broadleaf/forage plants and small insects","VegRRBLT"]
[null,"Central",45,"ppm per lb/ac","Risk assessment."]
[null,"Lower",15]
[null,"Upper",135]
["Residue rates for fruit","VegRRFRT"]
[null,"Central",7,"ppm per lb/ac","Risk assessment."]
[null,"Lower",3.2]
[null,"Upper",15]
["Worker Exposure Rate","WrkExpRate"]
[null,"Central",3.0000000000000001E-3,"Mg/kg bw per lb","Risk assessment."]
[null,"Lower",2.9999999999999997E-4]
[null,"Upper",0.01]
["Number of acres that the worker will treat per hour.","WrkAcPerHr"]
[null,"Central",0.625,"Acres/hr","Risk assessment."]
[null,"Lower",0.25]
[null,"Upper",1]
["Number of hours of worker exposure per day.","WrkHsPerDy"]
[null,"Central",7,"Hrs/day","Risk assessment."]
[null,"Lower",6]
[null,"Upper",8]

{"sheet":"A02a","index":7,"n_rows":41,"n_cols":6,"rows_kept":41,"cut":false,"hidden":false,"merged":[[0,0,0,4]]}
["General reference values and exposure factors used in worksheets."]
[]
["Receptor","Factor","Value","Units"," Reference","Reference Note"]
["Adult Female","Body weight",64,"kg","U.S. EPA/ORD 1985","page 5, Table 2-2"]
["Adult Female","Surface Area, Feet and lower Legs",2915,"cm2","U.S. EPA/ORD 1992","p. 8-11, Table 8-3, total for feet and lower legs"]
["Adult Female","Surface Area, Wearing shorts and T-shirt",5300,"cm2","U.S. EPA/ORD 1992","p. 8-11, Table 8-3, total for arms, hands, lower legs, and feet."]
["Adult Female","Surface Area, Whole body",16900,"cm2","U.S. EPA/ORD 1997","p. 6-13, Table 6-3, whole body, 50th percentile"]
["Adult Male","Body weight",70,"kg","ICRP 1975","p. 13."]
["Subsistence Populations","Body weight",70,"kg","ICRP 1975","p. 13"]
["Worker, Aerial Spray","Absorbed dose rate, central estimate",3.0000000000000001E-5,"(mg/kg bw)/(lbs handled per day)","SERA 2007","Acres treated per hour"]
["Worker, Aerial Spray","Absorbed dose rate, lower range",9.9999999999999995E-7,"(mg/kg bw)/(lbs handled per day)","SERA 2007","Acres treated per hour"]
["Worker, Aerial Spray","Absorbed dose rate, upper range",1E-4,"(mg/kg bw)/(lbs handled per day)","SERA 2007","Acres treated per hour"]
["Worker, Aerial Spray","Hours of application per day, central estimate",7,"Hours per day","USDA 1989a","N/A"]
["Worker, Aerial Spray","Hours of application per day, lower range",6,"Hours per day","USDA 1989a","N/A"]
["Worker, Aerial Spray","Hours of application per day, upper range",8,"Hours per day","USDA 1989a","N/A"]
["Worker, Aerial Spray","Acres treated per hour, central estimate",70,"acres/hour","USDA 1989a","Acres treated per hour"]
["Worker, Aerial Spray","Acres treated per hour, lower range",40,"acres/hour","USDA 1989a","Acres treated per hour"]
["Worker, Aerial Spray","Acres treated per hour, upper range",100,"acres/hour","USDA 1989a","Acres treated per hour"]
["Worker, Backpack","Absorbed dose rate, central estimate",3.0000000000000001E-3,"(mg/kg bw)/(lbs handled per day)","SERA 2007","Acres treated per hour"]
["Worker, Backpack","Absorbed dose rate, lower range",2.9999999999999997E-4,"(mg/kg bw)/(lbs handled per day)","SERA 2007","Acres treated per hour"]
["Worker, Backpack","Absorbed dose rate, upper range",0.01,"(mg/kg bw)/(lbs handled per day)","SERA 2007","Acres treated per hour"]
["Worker, Backpack","Hours of application per day, central estimate",7,"Hours per day","USDA 1989a","N/A"]
["Worker, Backpack","Hours of application per day, lower range",6,"Hours per day","USDA 1989a","N/A"]
["Worker, Backpack","Hours of application per day, upper range",8,"Hours per day","USDA 1989a","N/A"]
["Worker, Backpack","Acres treated per hour, central estimate",0.625,"acres/hour","USDA 1989a","Acres treated per hour"]
["Worker, Backpack","Acres treated per hour, lower range",0.25,"acres/hour","USDA 1989a","Acres treated per hour"]
["Worker, Backpack","Acres treated per hour, upper range",1,"acres/hour","USDA 1989a","Acres treated per hour"]
["Child","Body weight",13.3,"kg","U.S. EPA/ORD 1996","p. 7-1, Table 7-2"]
["Child","Surface Area, Whole body",6030,"cm2","U.S. EPA/ORD 1996","p. 6-15, Table 6-6, 50th percentile."]
["Worker, Ground Spray","Absorbed dose rate, central estimate",2.0000000000000001E-4,"(mg/kg bw)/(lbs handled per day)","SERA 2007","Acres treated per hour"]
["Worker, Ground Spray","Absorbed dose rate, lower range",1.0000000000000001E-5,"(mg/kg bw)/(lbs handled per day)","SERA 2007","Acres treated per hour"]
["Worker, Ground Spray","Absorbed dose rate, upper range",8.9999999999999998E-4,"(mg/kg bw)/(lbs handled per day)","SERA 2007","Acres treated per hour"]
["Worker, Ground Spray","Hours of application per day, central estimate",7,"Hours per day","USDA 1989a","N/A"]
["Worker, Ground Spray","Hours of application per day, lower range",6,"Hours per day","USDA 1989a","N/A"]
["Worker, Ground Spray","Hours of application per day, upper range",8,"Hours per day","USDA 1989a","N/A"]
["Worker, Ground Spray","Acres treated per hour, central estimate",16,"acres/hour","USDA 1989a","Acres treated per hour"]
["Worker, Ground Spray","Acres treated per hour, lower range",11,"acres/hour","USDA 1989a","Acres treated per hour"]
["Worker, Ground Spray","Acres treated per hour, upper range",21,"acres/hour","USDA 1989a","Acres treated per hour"]
["Worker","Body weight",70,"kg","ICRP 1975","p. 13"]
["Worker","Surface Area, Hands",840,"cm2","U.S. EPA/ORD 1992"," p. 8-11"]
["Worker","Surface Area, Lower legs",2070,"cm2","U.S. EPA/ORD 1992","p. 8-11"]

{"sheet":"A02b","index":8,"n_rows":80,"n_cols":6,"rows_kept":80,"cut":false,"hidden":false,"merged":[[0,0,0,4]]}
["General reference values and exposure factors used in worksheets."]
[]
["Receptor","Factor","Value","Units"," Reference","Reference Note"]
["Amphibian","Kilocalories, alpha parameter for allometric equation",5.3999999999999999E-2,"BW(g),Kcal (kcal/day)","U.S. EPA/ORD 1993","p. 3-7, equation 3-14"]
["Amphibian","Kilocalories, beta parameter for allometric equation",0.79900000000000004,"BW(g),Kcal (kcal/day)","U.S. EPA/ORD 1993","p. 3-7, equation 3-14"]
["Amphibian, bull frog","Food consumption, alpha parameter for allometric equation",1.0900000000000001,"BW(g),FC(g)","SERA 2010","Figure 15"]
["Amphibian, bull frog","Food consumption, beta parameter for allometric equation",0.17230000000000001,"BW(g),FC(g)","SERA 2010","Figure 15"]
["Bird, NOS","Food consumption, alpha parameter for allometric equation",0.64800000000000002,"BW(g),FC(g)","U.S. EPA/ORD 1993","Eq. 3-3, p. 3-4, all birds"]
["Bird, NOS","Food consumption, beta parameter for allometric equation",0.65100000000000002,"BW(g),FC(g)","U.S. EPA/ORD 1993","Eq. 3-3, p. 3-4, all birds"]
["Bird, carnivorous","Body weight",0.64,"kg","Dunning 1993","p. 97. Female Spotted Owl (Strix occidentalis).  Range of 548 to 760 g."]
["Bird, carnivorous","Kilocalories, alpha parameter for allometric equation",1.1459999999999999,"BW(g),KCal(kcal/day)","U.S. EPA/ORD 1993","Eq. 3-37, nonpasserines"]
["Bird, carnivorous","Kilocalories, beta parameter for allometric equation",0.749,"BW(g),KCal(kcal/day)","U.S. EPA/ORD 1993","Eq. 3-37, nonpasserines"]
["Bird, carnivorous","Water consumption, alpha parameter for allometric equation",5.8999999999999997E-2,"BW(kg), WC(L)","U.S. EPA/ORD 1993","Eq. 3-15, p. 3-8"]
["Bird, carnivorous","Water consumption, beta parameter for allometric equation",0.67,"BW(kg), WC(L)","U.S. EPA/ORD 1993","Eq. 3-15, p. 3-8"]
["Bird, large","Body weight",4,"kg","Default","Canada goose"]
["Bird, large","Kilocalories, alpha parameter for allometric equation",1.1459999999999999,"BW(g),KCal(kcal/day)","U.S. EPA/ORD 1993","Eq. 3-37, non-passerines"]
["Bird, large","Kilocalories, beta parameter for allometric equation",0.749,"BW(g),KCal(kcal/day)","U.S. EPA/ORD 1993","Eq. 3-37, non-passerines"]
["Bird, large","Water consumption, alpha parameter for allometric equation",5.8999999999999997E-2,"BW(kg), WC(L)","U.S. EPA/ORD 1993","Eq. 3-15, p. 3-8"]
["Bird, large","Water consumption, beta parameter for allometric equation",0.67,"BW(kg), WC(L)","U.S. EPA/ORD 1993","Eq. 3-15, p. 3-8"]
["Bird, non-Passerine","Food consumption, alpha parameter for allometric equation",0.30099999999999999,"BW(g),FC(g)","U.S. EPA/ORD 1993","Eq. 3-5, p. 3-5, non-passerines"]
["Bird, non-Passerine","Food consumption, beta parameter for allometric equation",0.751,"BW(g),FC(g)","U.S. EPA/ORD 1993","Eq. 3-5, p. 3-5, non-passerines"]
["Bird, Passerine","Food consumption, alpha parameter for allometric equation",0.39800000000000002,"BW(g),FC(g)","U.S. EPA/ORD 1993","Eq. 3-4, p. 3-4, passerines"]
["Bird, Passerine","Food consumption, beta parameter for allometric equation",0.85,"BW(g),FC(g)","U.S. EPA/ORD 1993","Eq. 3-4, p. 3-4, passerines"]
["Bird, piscivorous","Body weight",2.4,"kg","Sibley 2000","p. 60. Great Blue Heron"]
["Bird, piscivorous","Food consumption, alpha parameter for allometric equation",0.495,"BW(g), FC(g)","U.S. EPA/ORD 1993","Eq. 3-6, p. 3-5, seabird"]
["Bird, piscivorous","Food consumption, beta parameter for allometric equation",0.70399999999999996,"BW(g), FC(g)","U.S. EPA/ORD 1993","Eq. 3-6, p. 3-5, seabird"]
["Bird, piscivorous","Kilocalories, alpha parameter for allometric equation",1.9159999999999999,"BW(g),KCal(kcal/day)","U.S. EPA/ORD 1993","Eq. 3-38, p. 3-23, seabird"]
["Bird, piscivorous","Kilocalories, beta parameter for allometric equation",0.70399999999999996,"BW(g),KCal(kcal/day)","U.S. EPA/ORD 1993","Eq. 3-38, p. 3-23, seabird"]
["Bird, piscivorous","Water consumption, alpha parameter for allometric equation",5.8999999999999997E-2,"BW(kg), WC(L)","U.S. EPA/ORD 1993","Eq. 3-15, p. 3-8"]
["Bird, piscivorous","Water consumption, beta parameter for allometric equation",0.67,"BW(kg), WC(L)","U.S. EPA/ORD 1993","Eq. 3-15, p. 3-8"]
["Bird, small","Body weight",0.01,"kg","Default","N/A"]
["Bird, small","Kilocalories, alpha parameter for allometric equation",3.12,"BW(g),KCal(kcal/day)","U.S. EPA/ORD 1993","Equation 3-36, passerines"]
["Bird, small","Kilocalories, beta parameter for allometric equation",0.60499999999999998,"BW(g),KCal(kcal/day)","U.S. EPA/ORD 1993","Equation 3-36, passerines"]
["Bird, small","Water consumption, alpha parameter for allometric equation",5.8999999999999997E-2,"BW(kg), WC(L)","U.S. EPA/ORD 1993","Eq. 3-15, p. 3-8"]
["Bird, small","Water consumption, beta parameter for allometric equation",0.67,"BW(kg), WC(L)","U.S. EPA/ORD 1993","Eq. 3-15, p. 3-8"]
["Honeybee","Body weight",1.16E-4,"kg","Winston 1987","p. 54. Arithmetic average of range: 81 to 151 mg/bee."]
["Honeybee","Surface Area, Whole body",1.42,"cm2","Humphery and Dykes 2008","Based on a bee with a body length of 1.44 cm."]
["Mammal, Nos","Food consumption, alpha parameter for allometric equation",0.23499999999999999,"BW(g),FC(g)","U.S. EPA/ORD 1993","Eq. 3-7 ,p. 3-6, all mammals"]
["Mammal, Nos","Food consumption, beta parameter for allometric equation",0.82199999999999995,"BW(g),FC(g)","U.S. EPA/ORD 1993","Eq. 3-7 ,p. 3-6, all mammals"]
["Mammal, 400 g","Body weight",0.4,"kg","Default","N/A"]
["Mammal, 400 g","Food consumption, alpha parameter for allometric equation",0.621,"BW(g),FC(g)","U.S. EPA/ORD 1993","Eq. 3-8, p. 3-6, equation for rodents"]
["Mammal, 400 g","Food consumption, beta parameter for allometric equation",0.56399999999999995,"BW(g),FC(g)","U.S. EPA/ORD 1993","Eq. 3-8, p. 3-6, equation for rodents"]
["Mammal, 400 g","Kilocalories, alpha parameter for allometric equation",2.5139999999999998,"BW(g),KCal(kcal/day)","U.S. EPA/ORD 1993","Equation 3-48, rodent"]
["Mammal, 400 g","Kilocalories, beta parameter for allometric equation",0.50700000000000001,"BW(g),KCal(kcal/day)","U.S. EPA/ORD 1993","Equation 3-48, rodent"]
["Mammal, 400 g","Water consumption, alpha parameter for allometric equation",9.9000000000000005E-2,"BW(kg),WC(L)","U.S. EPA/ORD 1993","Eq. 3-17, p. 3-10, all mammals"]
["Mammal, 400 g","Water consumption, beta parameter for allometric equation",0.9,"BW(kg),WC(L)","U.S. EPA/ORD 1993","Eq. 3-17, p. 3-10, all mammals"]
["Mammal, carnivorous","Body weight",5,"kg","U.S. EPA/ORD 1993","p. 2-221.  Central value for red fox with a range of 3 to 7 kg."]
["Mammal, carnivorous","Kilocalories, alpha parameter for allometric equation",0.61670000000000003,"BW(g),KCal(kcal/day)","U.S. EPA/ORD 1993","Equation 3-47, non-herbivore"]
["Mammal, carnivorous","Kilocalories, beta parameter for allometric equation",0.86199999999999999,"BW(g),KCal(kcal/day)","U.S. EPA/ORD 1993","Equation 3-47, non-herbivore"]
["Mammal, carnivorous","Water consumption, alpha parameter for allometric equation",9.9000000000000005E-2,"BW(kg),WC(L)","U.S. EPA/ORD 1993","Eq. 3-17, p. 3-10, all mammals"]
["Mammal, carnivorous","Water consumption, beta parameter for allometric equation",0.9,"BW(kg), WC(L)","U.S. EPA/ORD 1993","Eq. 3-17, p. 3-10, all mammals"]
["Mammal, large carnivorous","Body weight",70,"kg","Reid 2006"," pp. 451-453.  Black bear or small grizzly."]
["Mammal, large carnivorous","Kilocalories, alpha parameter for allometric equation",0.61670000000000003,"BW(g),KCal(kcal/day)","U.S. EPA/ORD 1993","Equation 3-47, non-herbivore"]
["Mammal, large carnivorous","Kilocalories, beta parameter for allometric equation",0.86199999999999999,"BW(g),KCal(kcal/day)","U.S. EPA/ORD 1993","Equation 3-47, non-herbivore"]
["Mammal, large carnivorous","Water consumption, alpha parameter for allometric equation",9.9000000000000005E-2,"BW(kg),WC(L)","U.S. EPA/ORD 1993","Eq. 3-17, p. 3-10, all mammals"]
["Mammal, large carnivorous","Water consumption, beta parameter for allometric equation",0.9,"BW(kg), WC(L)","U.S. EPA/ORD 1993","Eq. 3-17, p. 3-10, all mammals"]
["Mammal, herbivorous","Food consumption, alpha parameter for allometric equation",0.57699999999999996,"BW(g),FC(g)","U.S. EPA/ORD 1993","Eq. 3-9, p. 3-6, equation for herbivores"]
["Mammal, herbivorous","Food consumption, beta parameter for allometric equation",0.72699999999999998,"BW(g),FC(g)","U.S. EPA/ORD 1993","Eq. 3-9, p. 3-6, equation for herbivores"]
["Mammal, herbivorous","Kilocalories, alpha parameter for allometric equation",1.518,"BW(g),KCal(kcal/day)","U.S. EPA/ORD 1993","Equation 3-46, herbivores"]
["Mammal, herbivorous","Kilocalories, beta parameter for allometric equation",0.73,"BW(g),KCal(kcal/day)","U.S. EPA/ORD 1993","Equation 3-46, herbivores"]
["Mammal, large","Body weight",70,"kg","Default","N/A"]
["Mammal, large","Kilocalories, alpha parameter for allometric equation",1.518,"BW(g),KCal(kcal/day)","U.S. EPA/ORD 1993","p. 3-6, Eq. 3-10, herbivores"]
["Mammal, large","Kilocalories, beta parameter for allometric equation",0.73,"BW(g),KCal(kcal/day)","U.S. EPA/ORD 1993","p. 3-6, Eq. 3-10, herbivores"]
["Mammal, large","Water consumption, alpha parameter for allometric equation",9.9000000000000005E-2,"BW(kg),WC(L)","U.S. EPA/ORD 1993","Eq. 3-17, p. 3-10, all mammals"]
["Mammal, large","Water consumption, beta parameter for allometric equation",0.9,"BW(kg), WC(L)","U.S. EPA/ORD 1993","Eq. 3-17, p. 3-10, all mammals"]
["Mammal, rabbit","Body weight",1.3,"kg","Default","N/A"]
["Mammal, rabbit","Surface Area, alpha parameter for allometric equation",0.11,"BW(kg),SA(m2)","U.S. EPA/ORD 1993","p. 3-14, Eq. 3-22, for all mammals"]
["Mammal, rabbit","Surface Area, beta parameter for allometric equation",0.65,"BW(kg),SA(m2)","U.S. EPA/ORD 1993","p. 3-14, Eq. 3-22, for all mammals"]
["Mammal, rodent","Food consumption, alpha parameter for allometric equation",0.621,"BW(g),FC(g)","U.S. EPA/ORD 1993","Eq. 3-8, p. 3-6, equation for rodents"]
["Mammal, rodent","Food consumption, beta parameter for allometric equation",0.58399999999999996,"BW(g),FC(g)","U.S. EPA/ORD 1993","Eq. 3-8,p. 3-6, equation for rodents"]
["Mammal, small","Body weight",0.02,"kg","Default","N/A"]
["Mammal, small","Caloric content (wet weight)",1.7,"kcal/g  (wet weight)","U.S. EPA/ORD 1993","Table 4-1, p. 4-13. Value for small mammals. Wet weight."]
["Mammal, small","Food consumption, alpha parameter for allometric equation",0.621,"BW(g),FC(g)","U.S. EPA/ORD 1993","Eq. 3-8, p. 3-6, equation for rodents"]
["Mammal, small","Food consumption, beta parameter for allometric equation",0.56399999999999995,"BW(g),FC(g)","U.S. EPA/ORD 1993","Eq. 3-8, p. 3-6, equation for rodents"]
["Mammal, small","Kilocalories, alpha parameter for allometric equation",2.5139999999999998,"BW(g),KCal(kcal/day)","U.S. EPA/ORD 1993","Equation 3-48, rodent"]
["Mammal, small","Kilocalories, beta parameter for allometric equation",0.50700000000000001,"BW(g),KCal(kcal/day)","U.S. EPA/ORD 1993","Equation 3-48, rodent"]
["Mammal, small","Surface Area, alpha parameter for allometric equation",0.11,"BW(kg),SA(m2)","U.S. EPA/ORD 1993","p. 3-14, Eq. 3-22, for all mammals"]
["Mammal, small","Surface Area, beta parameter for allometric equation",0.65,"BW(kg),SA(m2)","U.S. EPA/ORD 1993","p. 3-14, Eq. 3-22, for all mammals"]
["Mammal, small","Water consumption, alpha parameter for allometric equation",9.9000000000000005E-2,"BW(kg),WC(L)","U.S. EPA/ORD 1993","Eq. 3-17, p. 3-10, all mammals"]
["Mammal, small","Water consumption, beta parameter for allometric equation",0.9,"BW(kg),WC(L)","U.S. EPA/ORD 1993","Eq. 3-17, p. 3-10, all mammals"]

{"sheet":"A02c","index":9,"n_rows":24,"n_cols":6,"rows_kept":24,"cut":false,"hidden":false,"merged":[[0,0,0,4]]}
["General reference values and exposure factors used in worksheets."]
[]
["Receptor","Factor","Value","Units"," Reference","Reference Note"]
["Small Insects","Caloric content (wet weight)",1.5,"kcal/g (wet weight)","U.S. EPA/ORD 1993","Table 4-1, p. 4-13.  Value for beetles. Wet weight"]
["Fish","Caloric content (wet weight)",1.2,"kcal/g (wet weight)","U.S. EPA/ORD 1993","Table 4-1, p. 4-13.  Value for bony fish. Wet weight"]
["Vegetation","Caloric content (dry weight)",2.2599999999999998,"kcal/g","U.S. EPA/ORD 1993","p. 3-5, Table 3-1"]
["Vegetation","Water content (proportion)",0.85,"unitless","U.S. EPA/ORD 1993","p. 4-14"]
["VegRR","Broadleaf/forage plants and small insects, central estimate",45,"mg chem/kg veg","Fletcher et al. 1994","Broadleaf/forage plants and small insects"]
["VegRR","Broadleaf/forage plants and small insects, upper range",135,"mg chem/kg veg","Fletcher et al. 1994","Broadleaf/forage plants and small insects"]
["VegRR","Fruits, pods, seeds, and large insects, central estimate",7,"mg chem/kg veg","Fletcher et al. 1994","Fruits, pods, seeds, and large insects"]
["VegRR","Fruits, pods, seeds, and large insects, upper range",15,"mg chem/kg veg","Fletcher et al. 1994","Fruits, pods, seeds, and large insects"]
["VegRR","Broadleaf plants and small insects, granular applications, central estimate",1.8,"mg chem/kg veg","SERA 2005","Broadleaf forage plants and contaminated insects after granular application"]
["VegRR","Broadleaf plants and small insects, granular applications, upper range",5.4,"mg chem/kg veg","SERA 2005","Broadleaf forage plants and contaminated insects after granular application"]
["VegRR","Fruits, granular applications, central estimate",0.28000000000000003,"mg chem/kg veg","SERA 2005","Fruit after granular application"]
["VegRR","Fruits, granular applications, upper range",0.6,"mg chem/kg veg","SERA 2005","Fruit after granular application"]
["VegRR","Short grass, granular applications, lower range",1.2,"mg chem/kg veg","SERA 2005","Short grass after granular application"]
["VegRR","Short grass, granular applications, upper range",9.6,"mg chem/kg veg","SERA 2005","Short grass after granular application"]
["VegRR","Tall grass, granular applications, central estimate",1.44,"mg chem/kg veg","SERA 2005","Tall grass after granular application"]
["VegRR","Tall grass, granular applications, upper range",4.4000000000000004,"mg chem/kg veg","SERA 2005","Tall grass after granular application"]
["VegRR","Short grass, central estimate",85,"mg chem/kg veg","Fletcher et al. 1994","Short grass"]
["VegRR","Short grass, lower range",30,"mg chem/kg veg","SERA 2007","Short grass"]
["VegRR","Short grass, upper range",240,"mg chem/kg veg","Fletcher et al. 1994","Short grass"]
["VegRR","Tall grass, central estimate",36,"mg chem/kg veg","Fletcher et al. 1994","Tall grass"]
["VegRR","Tall grass, upper range",110,"mg chem/kg veg","Fletcher et al. 1994","Tall grass"]

{"sheet":"A02d","index":10,"n_rows":24,"n_cols":6,"rows_kept":24,"cut":false,"hidden":false,"merged":[[0,0,0,4]]}
["General reference values and exposure factors used in worksheets."]
[]
["Receptor","Factor","Value","Units"," Reference","Reference Note"]
["Conversion Factors","acrefoot2gal",325900,"gal/acre-foot","Budavari  1989","N/A"]
["Conversion Factors","liters per gal",3.7850000000000001,"L/gal","Budavari  1989","N/A"]
["Conversion Factors","pound per milligram",453600,"mg/lb","Budavari  1989","N/A"]
["Conversion Factors","lbac2mgcm2",1.1209999999999999E-2,"mg/cm2 per lb/acre","Budavari  1989","N/A"]
["Conversion Factors","lbac2ugcm2",11.21,"ug/cm2 per lb/acre","Budavari  1989","N/A"]
["Conversion Factors","conversion for milligrams to pounds",2.204E-6,"lb/mg","Budavari  1989","N/A"]
["Conversion Factors","conversion for milliliters to gallons",3785,"ml/gal","Budavari  1989","N/A"]
["Misc","Liquid adhering to skin",8.0000000000000002E-3,"mL/cm2","Mason and Johnson 1987","Weight of liquid adhering to surface of skin after a spill"]
["Misc","Dislodgeable residue as proportion",0.1,"none","Harris and Solomon 1992","Estimate of dislodgeable residue as a proportion of application rate shortly after application based on 2,4-D."]
["Standard Pond","Depth",1,"m","Default","Depth of pond"]
["Standard Pond","Surface Area",1000,"m^2","Default","Surface Area"]
["Standard Pond","Volume of Spill ",200,"gallons","Default","Volume of spill"]
["VegRR","Broadleaf/forage plants and small insects, lower range",15,"mg chem/kg veg","SERA 2007","Broadleaf/forage plants and small insects"]
["VegRR","Fruits, pods, seeds, and large insects, lower range",3.2,"mg chem/kg veg","SERA 2007","Fruits, pods, seeds, and large insects"]
["VegRR","Broadleaf plants and small insects, granular applications, lower range",0.6,"mg chem/kg veg","SERA 2007","Broadleaf/forage plants after granular application"]
["VegRR","Fruits, granular applications, lower range",0.13,"mg chem/kg veg","SERA 2007","Fruit after granular application"]
["VegRR","Short grass, granular applications, central estimate",3.4,"mg chem/kg veg","SERA 2005","Short grass after granular application"]
["VegRR","Short grass, granular applications, lower range",1.2,"mg chem/kg veg","SERA 2007","Short grass after granular application"]
["VegRR","Tall grass, granular applications, lower range",0.48,"mg chem/kg veg","SERA 2007","Tall grass after granular application"]
["VegRR","Short grass, lower range",30,"mg chem/kg veg","Fletcher et al. 1994","Short grass"]
["VegRR","Tall grass, lower range",12,"mg chem/kg veg","SERA 2007","Tall grass"]

{"sheet":"A03","index":11,"n_rows":66,"n_cols":8,"rows_kept":66,"cut":false,"hidden":false,"merged":[[0,0,0,6]]}
["Food items for terrestrial animals"]
[]
["Receptor","Consumer","Qualifier","Modifier","Value","Units"," Reference","Reference Note"]
["Adult Female","Fish","Amount","central estimate",0.01,"kg/day","U.S. EPA/ORD 1996","p. 10-51, average of means from four studies rounded to one significant place."]
["Adult Female","Fish","Amount","upper range",0.158,"kg/day","Ruffle et al. 1994","N/A"]
["Adult Female","Fruit","Proportion of body weight","central estimate",1.6800000000000001E-3,"kg fruit/kg bw/day","U.S. EPA/ORD 1996","Table 9-3, p. 9-11, mean value."]
["Adult Female","Fruit","Proportion of body weight","lower range",1.6800000000000001E-3,"kg fruit/kg bw/day","U.S. EPA/ORD 1996","Table 9-3, p. 9-11. The 5th percentile is given as zero.  For these worksheets, the central estimate is used for the lower bound."]
["Adult Female","Fruit","Proportion of body weight","upper range",1.244E-2,"kg fruit/kg bw/day","U.S. EPA/ORD 1996","Table 9-3, p. 9-11, 95th percentile value."]
["Adult Female","Vegetation, home grown","Proportion of body weight","central estimate",7.6000000000000004E-4,"kg veg/kg bw/day","U.S. EPA/ORD 1996","Table 12-15, p. 9-14, mean for individuals between 20 and 39 years old."]
["Adult Female","Vegetation, home grown","Proportion of body weight","lower range",8.0000000000000007E-5,"kg veg/kg bw/day","U.S. EPA/ORD 1996","Table 12-15, p. 9-14, 5th percentile for individuals between 20 and 39 years old."]
["Adult Female","Vegetation, home grown","Proportion of body weight","upper range",4.9199999999999999E-3,"kg veg/kg bw/day","U.S. EPA/ORD 1996","Table 12-15, p. 9-14, 95th percentile for individuals between 20 and 39 years old."]
["Adult Female","Vegetation","Amount","Extreme",0.45400000000000001,"kg food","U.S. EPA/ORD 1996","1 lb.  The approximate mid range of the above typical and upper limits based on the 64 kg body weight."]
["Adult Female","Vegetation","Proportion of body weight","central estimate",3.5999999999999999E-3,"kg veg/kg bw/day","U.S. EPA/ORD 1996","Table 9-12, p. 9-12, mean."]
["Adult Female","Vegetation","Proportion of body weight","lower range",7.5000000000000002E-4,"kg veg/kg bw/day","U.S. EPA/ORD 1996","Table 9-12, p. 9-12, 5th percentile."]
["Adult Female","Vegetation","Proportion of body weight","upper range",0.01,"kg veg/kg bw/day","U.S. EPA/ORD 1996","Table 9-12, p. 9-12, 95th percentile."]
["Adult Female","Water","Amount","central estimate",2,"L/day","U.S. EPA/ORD 1996","p. 3-28, Table 3-30, midpoint of mean (1.4 L/day) and 90th percentile (2.4 L/day) rounded to one significant place."]
["Adult Female","Water","Amount","lower range",1.4,"L/day","U.S. EPA/ORD 1996","p. 3-28, Table 3-30, mean"]
["Adult Female","Water","Amount","upper range",2.4,"L/day","U.S. EPA/ORD 1996","p. 3-28, Table 3-30, 90th percentile"]
["Adult Male","Fish","Amount","central estimate",0.01,"kg/day","U.S. EPA/ORD 1996","p. 10-51, average of means from four studies rounded to one significant place."]
["Adult Male","Fish","Amount","upper range",0.158,"kg/day","Ruffle et al. 1994","N/A"]
["Adult Male","Fruit","Proportion of body weight","central estimate",1.6800000000000001E-3,"unitless","U.S. EPA/ORD 1996","Table 9-3, p. 9-11, mean value."]
["Adult Male","Fruit","Proportion of body weight","lower range",1.6800000000000001E-3,"unitless","U.S. EPA/ORD 1996","Table 9-3, p. 9-11. The 5th percentile is given as zero.  For these worksheets, the central estimate is used for the lower bound."]
["Adult Male","Fruit","Proportion of body weight","upper range",1.244E-2,"unitless","U.S. EPA/ORD 1996","Table 9-3, p. 9-11, 95th percentile value."]
["Adult Male","Vegetation, home grown","Proportion of body weight","central estimate",7.6000000000000004E-4,"unitless","U.S. EPA/ORD 1996","Table 12-15, p. 9-14, mean for individuals between 20 and 39 years old."]
["Adult Male","Vegetation, home grown","Proportion of body weight","lower range",8.0000000000000007E-5,"unitless","U.S. EPA/ORD 1996","Table 12-15, p. 9-14, 5th percentile for individuals between 20 and 39 years old."]
["Adult Male","Vegetation, home grown","Proportion of body weight","upper range",4.9199999999999999E-3,"unitless","U.S. EPA/ORD 1996","Table 12-15, p. 9-14, 95th percentile for individuals between 20 and 39 years old."]
["Adult Male","Vegetation","Amount","Extreme",0.45400000000000001,"kg/day","U.S. EPA/ORD 1996","1 lb.  The approximate mid range of the above typical and upper limits based on the 64 kg body weight."]
["Adult Male","Vegetation","Proportion of body weight","central estimate",3.5999999999999999E-3,"unitless","U.S. EPA/ORD 1996","Table 9-12, p. 9-12, mean."]
["Adult Male","Vegetation","Proportion of body weight","lower range",7.5000000000000002E-4,"unitless","U.S. EPA/ORD 1996","Table 9-12, p. 9-12, 5th percentile."]
["Adult Male","Vegetation","Proportion of body weight","upper range",0.01,"unitless","U.S. EPA/ORD 1996","Table 9-12, p. 9-12, 95th percentile."]
["Adult Male","Water","Amount","central estimate",2,"L/day","U.S. EPA/ORD 1996","p. 3-28, Table 3-30, midpoint of mean (1.4 L/day) and 90th percentile (2.4 L/day) rounded to one significant place."]
["Adult Male","Water","Amount","lower range",1.4,"L/day","U.S. EPA/ORD 1996","p. 3-28, Table 3-30, mean"]
["Adult Male","Water","Amount","upper range",2.4,"L/day","U.S. EPA/ORD 1996","p. 3-28, Table 3-30, 90th percentile"]
["Subsistence Populations","Fish","Amount","central estimate",8.1000000000000003E-2,"kg/day","U.S. EPA/ORD 1996","p. 10-51, median value of 94 individuals"]
["Subsistence Populations","Fish","Amount","upper range",0.77,"kg/day","U.S. EPA/ORD 1993","p. 10-51, highest value of 94 individuals"]
["Bird, NOS","Fish","Kilocalories","FoodVal",3.87,"Kcal/gram (dw)","U.S. EPA/ORD 1993","Table 3-1, p. 3-5"]
["Bird, NOS","Fish","Wat","FoodVal",0.7,"Unitless","Ali et al. 2005","N/A"]
["Bird, NOS","Fruit","Kilocalories","FoodVal",1.1000000000000001,"Kcal/gram (dw)","U.S. EPA/ORD 1993","Gross caloric value of 2.2 kcal/g dw (U.S. EPA/ORD 1993, Table 4-2) with assim fact of 0.51"]
["Bird, NOS","Fruit","Wat","FoodVal",0.77,"Unitless","U.S. EPA/ORD 1993","Table 4-2, p. 4-14"]
["Bird, NOS","Insect","Kilocalories","FoodVal",4.3,"Kcal/gram (dw)","U.S. EPA/ORD 1993","Table 4-2, p. 4-14"]
["Bird, NOS","Insect","Wat","FoodVal",0.7,"Unitless","Chapman 1998","Typrical range 60-80%"]
["Bird, NOS","Vegetation","Kilocalories","FoodVal",2,"Kcal/gram (dw)","U.S. EPA/ORD 1993","gross caloric value of 4.2 kcal/g dw for dicot leaves (U.S. EPA/ORD 1993, Table 4-2) with assim fact of 0.47"]
["Bird, NOS","Vegetation","Wat","FoodVal",0.85,"Unitless","U.S. EPA/ORD 1993","Table 4-2, p. 4-14"]
["Child","Water","Amount","central estimate",1,"L/day","U.S. EPA/ORD 1996","p. 3-28, Table 3-30, midpoint of mean (0.61L/day) and 90th percentile (1.5 L/day) rounded to one significant place."]
["Child","Water","Amount","lower range",0.61,"L/day","U.S. EPA/ORD 1996","p. 3-28, Table 3-30, mean"]
["Child","Water","Amount","upper range",1.5,"L/day","U.S. EPA/ORD 1996","p. 3-28, Table 3-30, 90th percentile"]
["Herbivorous Insect","Broadleaf/Small Insects","Proportion of body weight","central estimate",1.3,"kg food/kg bw/day","Waldbauer 1968","N/A"]
["Herbivorous Insect","Broadleaf/Small Insects","Proportion of body weight","lower range",0.6,"kg food/kg bw/day","Reichle et al. 1973","N/A"]
["Herbivorous Insect","Broadleaf/Small Insects","Proportion of body weight","upper range",2.2000000000000002,"kg food/kg bw/day","Waldbauer 1968","N/A"]
["Herbivorous Insect","Fruit","Proportion of body weight","central estimate",1.3,"kg food/kg bw/day","Waldbauer 1968","N/A"]
["Herbivorous Insect","Fruit","Proportion of body weight","lower range",0.6,"kg food/kg bw/day","Reichle et al. 1973","N/A"]
["Herbivorous Insect","Fruit","Proportion of body weight","upper range",2.2000000000000002,"kg food/kg bw/day","Waldbauer 1968","N/A"]
["Herbivorous Insect","Short grass","Proportion of body weight","central estimate",1.3,"kg food/kg bw/day","Waldbauer 1968","N/A"]
["Herbivorous Insect","Short grass","Proportion of body weight","lower range",0.6,"kg food/kg bw/day","Reichle et al. 1973","N/A"]
["Herbivorous Insect","Short grass","Proportion of body weight","upper range",2.2000000000000002,"kg food/kg bw/day","Waldbauer 1968","N/A"]
["Herbivorous Insect","Tall Grass","Proportion of body weight","central estimate",1.3,"kg food/kg bw/day","Waldbauer 1968","N/A"]
["Herbivorous Insect","Tall Grass","Proportion of body weight","lower range",0.6,"kg food/kg bw/day","Reichle et al. 1973","N/A"]
["Herbivorous Insect","Tall Grass","Proportion of body weight","upper range",2.2000000000000002,"kg food/kg bw/day","Waldbauer 1968","N/A"]
["Mammal, Nos","Fish","Kilocalories","FoodVal",4.47,"Kcal/gram (dw)","U.S. EPA/ORD 1993","Table 3-1, p. 3-5"]
["Mammal, Nos","Fish","Wat","FoodVal",0.7,"Unitless","Ali et al. 2005","N/A"]
["Mammal, Nos","Fruit","Kilocalories","FoodVal",1.1000000000000001,"Kcal/gram (dw)","U.S. EPA/ORD 1993","Gross caloric value of 2.2 kcal/g dw (U.S. EPA/ORD 1993, Table 4-2) with assim fact of 0.51"]
["Mammal, Nos","Fruit","Wat","FoodVal",0.77,"Unitless","U.S. EPA/ORD 1993","Table 4-2, p. 4-14"]
["Mammal, Nos","Insect","Kilocalories","FoodVal",4.47,"Kcal/gram (dw)","U.S. EPA/ORD 1993","Table 4-2, p. 4-14"]
["Mammal, Nos","Insect","Wat","FoodVal",0.7,"Unitless","Chapman 1998","Typrical range 60-80%"]
["Mammal, Nos","Vegetation","Kilocalories","FoodVal",2.2599999999999998,"Kcal/gram (dw)","U.S. EPA/ORD 1993","Table 3-1, p. 3-5"]
["Mammal, Nos","Vegetation","Wat","FoodVal",0.85,"Unitless","U.S. EPA/ORD 1993","Table 4-2, p. 4-14"]

{"sheet":"A04","index":12,"n_rows":13,"n_cols":5,"rows_kept":13,"cut":false,"hidden":false,"merged":[[0,0,0,4],[1,1,1,3],[2,1,2,3],[3,1,3,3]]}
["Drift from Backpack Directed Foliar application at distances downwindfrom the application site"]
["Short Title","Drift",null,null,"DriftArea"]
["Receptor","Downwind receptors"]
["Duration","Acute"]
["Parameter/Assumption","Code / Range","Equation/   Value","Units","Reference/Designation"]
["Proportion of Drift at distances downwind in feet ","Prop",null,null,"Program Speciified"]
["Direct Spray","feet",1,"unitless"]
[25,"feet",8.3199999999999993E-3]
[50,"feet",4.3299999999999996E-3]
[100,"feet",2.4099999999999998E-3]
[300,"feet",9.41E-4]
[500,"feet",5.7899999999999998E-4]
[900,"feet",3.1199999999999999E-4]

{"sheet":"B01","index":13,"n_rows":9,"n_cols":5,"rows_kept":9,"cut":false,"hidden":false,"merged":[[0,0,0,4]]}
["Chemical and Physical Properties for  Aminocyclopyrachlor"]
[]
["Property","Receptor","Value","Units","Document Reference"]
["Bioconcentration Factor (BCF), edible, acute","N/A",1,"L/kg fish","Section 3.2.3.5"]
["Bioconcentration Factor (BCF), edible, chronic","N/A",1,"L/kg fish","Section 3.2.3.5"]
["Bioconcentration Factor (BCF), whole fish, acute","N/A",1,"L/kg fish","Section 3.2.3.5"]
["Bioconcentration Factor (BCF), whole fish, chronic","N/A",1,"L/kg fish","Section 3.2.3.5"]
["MW","N/A",86.09,"g/mole","Table 10"]
["Kow","N/A",4.2699999999999996,null,"Table 10"]

{"sheet":"B02","index":14,"n_rows":7,"n_cols":7,"rows_kept":7,"cut":false,"hidden":false,"merged":[[0,0,0,6]]}
["Toxicity values for  Aminocyclopyrachlor"]
[]
["Receptor","Receptor","Qualifier","Endpoint","Value","Units","Document Reference"]
["Human","acute","N/A","Reference Dose (RfD)",2.5999999999999999E-3,"mg/kg bw","Section 3.3.2.1."]
["Human","chronic","N/A","Reference Dose (RfD)",8.7000000000000001E-4,"mg/kg bw/day","Section 3.3.2.2."]
["Mammal, Nos","acute","N/A","NOAEL",0.26,"mg/kg bw","Section 4.3.2.1."]
["Mammal, Nos","chronic","N/A","NOAEL",2.5999999999999999E-2,"mg/kg bw/day","Section 4.3.2.1."]

{"sheet":"B03a","index":15,"n_rows":28,"n_cols":5,"rows_kept":28,"cut":false,"hidden":false,"merged":[[24,0,27,0],[0,0,0,4],[1,1,1,3],[5,0,7,0],[9,0,12,0],[20,0,23,0]]}
["Calculation of Zero-Order Dermal Permeability Rate (Kp) in cm/hour"]
["Short Title","Calculation of Kp"]
["Parameter/Assumption","Code / Range","Equation/   Value","Units","Reference/Designation"]
["Molecular weight","MW",{"$f":"'B01'!C8","v":86.09},"g/mole","Chem!MW"]
["Ko/w","Kow",{"$f":"'B01'!C9","v":4.2699999999999996},"unitless","Chem!Kow"]
["Vector a[]","a[1]",1]
[null,"a[2]",{"$f":"C4","v":86.09}]
[null,"a[3]",{"$f":"LOG10(C5)","v":0.63042787502502384}]
["Transpose of a[] (a')",{"$f":"$C$6","v":1},{"$f":"$C$7","v":86.09},{"$f":"$C$8","v":0.63042787502502384}]
["X'X Cross Product Matrix","X'X"]
[null,5.5931000000000002E-2,-9.4154599999999995E-5,-1.0344300000000001E-2]
[null,-9.4154599999999995E-5,5.9780000000000002E-7,-2.22508E-5]
[null,-1.0344300000000001E-2,-2.22508E-5,7.40677E-3]
["a'X'X a","a'X'X a",{"$f":"MMULT(B9:D9,MMULT(B11:D13, C6:C8))","v":3.1635860769522198E-2}]
["Coefficients for model"]
["Intercept","K0",-2.7257600000000002]
["Coeff for Log10(Kow)","K1",0.70664800000000005]
["Coeff for MW","K2",-6.1510000000000002E-3]
["Standard deviation of model","s",0.72712900000000003]
["Critical value at 0.025 with 87 d.f.","t0.025",1.96]
["Log10 of Estimated dermal permeability rate (Kp)","Log(Kp) = ","K1  MW × K2 Log10(Kow) + K0"]
[null,"Central",{"$f":"($C$18*$C$4) + ($C$17*LOG10($C$5)) + $C$16","v":-2.8098089929693173},null,"Eq"]
[null,"Lower 95% CI",{"$f":"$C$22 - ($C$20 * $C$19 * ($C$14^0.5))","v":-3.0632969697165193},null,"Eq"]
[null,"Upper 95% CI",{"$f":"$C$22 + ($C$20 * $C$19 * ($C$14^0.5))","v":-2.5563210162221153},null,"Eq"]
["Estimated dermal permeability rate (Kp)","Kp = ","10Log(Kp)"]
[null,"Central",{"$f":"10^C22","v":1.5494979536769678E-3},"cm/hour","Eq"]
[null,"Lower 95% CI",{"$f":"10^C23","v":8.6437665758081937E-4},null,"Eq"]
[null,"Upper 95% CI",{"$f":"10^C24","v":2.7776593541625366E-3},null,"Eq"]

{"sheet":"B04Rt","index":16,"n_rows":11,"n_cols":5,"rows_kept":11,"cut":false,"hidden":false,"merged":[[0,0,0,4],[2,0,5,0],[6,0,9,0],[10,1,10,4]]}
["Estimates of Water Contamination Rates -- i.e., the concentration in ambient water per pound applied per acre"]
["Parameter/Assumption","Code / Range","Equation/ Value","Units","WCRV6"]
["Short-term peak concentrations","Peak",null,null,"WCRV6"]
[null,"Central ",6.9999999999999999E-4,"mg/L"]
[null,"Lower ",1.9999999999999999E-6]
[null,"Upper ",7.0000000000000001E-3]
["Longer-term average concentrations","Average"]
[null,"Central ",5.0000000000000002E-5,"mg/L"]
[null,"Lower ",1.9999999999999999E-7]
[null,"Upper ",6.9999999999999999E-4]
["User Specified Gleams-Driver File:","None"]

{"sheet":"B04a","index":17,"n_rows":21,"n_cols":5,"rows_kept":21,"cut":false,"hidden":false,"merged":[[21,1,21,4],[0,0,0,3],[4,0,7,0],[8,0,11,0],[13,0,16,0],[17,0,20,0]]}
["Expected Concentrations in Surface Water",null,null,null,"EECRtV6"]
["Parameter/Assumption","Code / Range","Equation/ Value","Units","EECRtV6"]
["Application Rate","ApRt",{"$f":"'A01'!ApRt_C","v":0.28000000000000003},"lb/acre","Worksheet A01"]
["Water Contamination Rates"]
["Short-term peak water contamination rates (WCR)","Peak"]
[null,"Central ",{"$f":"B04Rt!C4","v":6.9999999999999999E-4},"mg/L"]
[null,"Lower ",{"$f":"B04Rt!C5","v":1.9999999999999999E-6}]
[null,"Upper ",{"$f":"B04Rt!C6","v":7.0000000000000001E-3}]
["Longer-term average water contamination rates (WCR)","Average"]
[null,"Central ",{"$f":"B04Rt!C8","v":5.0000000000000002E-5},"mg/L"]
[null,"Lower ",{"$f":"B04Rt!C9","v":1.9999999999999999E-7}]
[null,"Upper ",{"$f":"B04Rt!C10","v":6.9999999999999999E-4}]
["EECs in Surface Water"]
["Short-term peak concentrations","Peak"]
[null,"Central ",{"$f":"$C$3*C6","v":1.9600000000000002E-4},"mg/L","Eq"]
[null,"Lower ",{"$f":"$C$3*C7","v":5.6000000000000004E-7},null,"Eq"]
[null,"Upper ",1.9600000000000004E-3,null,"Eq"]
["Longer-term average concentrations","Average"]
[null,"Central ",{"$f":"$C$3*C10","v":1.4000000000000001E-5},"mg/L","Eq"]
[null,"Lower ",{"$f":"$C$3*C11","v":5.6000000000000005E-8},null,"Eq"]
[null,"Upper ",1.9600000000000002E-4,null,"Eq"]

{"sheet":"B04b","index":18,"n_rows":37,"n_cols":5,"rows_kept":37,"cut":false,"hidden":false,"merged":[[18,0,21,0],[0,0,0,4],[1,1,1,3],[2,1,2,3],[3,1,3,3],[13,0,16,0]]}
["Pond: Concentration of pesticide (liquid formulation) in pond water after an accidental spill"]
["Short Title","Pond Spill",null,null,"PondSpillLiqV6"]
["Receptor","Pond"]
["Duration","Acute"]
["Parameter/Assumption","Code / Range","Equation/   Value","Units","Reference/Designation"]
["Surface Area of Pond","SA",{"$f":"'A01'!C$23","v":1000},"m2","Worksheet A01"]
["Depth of Pond","Depth",{"$f":"'A01'!C$24","v":1},"meter","Worksheet A01"]
["Volume of Pond","VPM",{"$f":"C6*C7","v":1000},"m3","Eq"]
[null,"VPL",{"$f":"1000*C8","v":1000000},"liters","Eq"]
["Concentration in solution","Conc"]
[null,"Central ",{"$f":"'A01'!FldConc_C","v":1.7},"mg/mL","Worksheet A01"]
[null,"Lower ",{"$f":"'A01'!FldConc_L","v":8.4000000000000005E-2},null,"Worksheet A01"]
[null,"Upper ",{"$f":"'A01'!FldConc_U","v":3.4},null,"Worksheet A01"]
["Volume of Spill (gallons)","VSGal"]
[null,"Central ",{"$f":"'A01'!C$43","v":100},"gallons","Worksheet A01"]
[null,"Lower ",{"$f":"'A01'!C$44","v":20},null,"Worksheet A01"]
[null,"Upper ",{"$f":"'A01'!C$45","v":200},null,"Worksheet A01"]
["Conversion factor for gallons to liters","Conv",3.7850000000000001,"liters/gal"]
["Volume of Spill (liters)","VSLit","VSGal x Conv"]
[null,"Central ",{"$f":"C15*C$18","v":378.5},"liters","Eq"]
[null,"Lower ",{"$f":"C16*C$18","v":75.7},"liters","Eq"]
[null,"Upper ",{"$f":"C17*C$18","v":757},"liters","Eq"]
["Concentration of aminocyclopyrachlor in pond water.","CParent","Conc × 1000 mL/L × VSL ÷ VPL"]
[null,"Central ",{"$f":"C11*1000*C20/C$9","v":0.64344999999999997}]
[null,"Lower ",{"$f":"C12*1000*C21/C$9","v":6.3588000000000004E-3}]
[null,"Upper ",2.5737999999999999]
["Rate contrant for formation of metabolite","k1",4.3E-3,"per day","Sectiion 3.2.3.4.1.2. "]
["Rate contrant for degradation of metabolite","k2",0.08,"per day","Sectiion 3.2.3.4.1.2. "]
["Time to peak concentration","tMax",{"$f":"(1/(C27-C28)) * LN(C27/C28)","v":38.618383249331103},"days","Sectiion 3.2.3.4.1.2. "]
["MW Parent","MWP",213.62,null,"Sectiion 3.2.3.4.1.2. "]
["MW Degradate","MWD",86.09,null,"Sectiion 3.2.3.4.1.2. "]
["Relative MW","MWRel",{"$f":"C31/C30","v":0.40300533657897203},"MWP / MWP"]
["Maximum Molar Proportion of Metabolite","RelMolar",{"$f":"(C27/C28)^(C28/(C28-C27))","v":4.5526046787570086E-2},"k1/k2(k2/(k2-k1)","Sectiion 3.2.3.4.1.2. "]
["Maximum Mass Proportion of Metabolite","RelMass",{"$f":"C33*C32","v":1.8347239808734712E-2},"RelMolar x MWRel"]
["Concentration of degradate in pond water","ConcWat","Cparent x RelMass"]
["Time","Central ","Lower ","Upper "]
[0,{"$f":"C24*C34","v":1.180553145493035E-2},{"$f":"C25*C34","v":1.166664284957823E-4},{"$f":"C26*C34","v":4.7222125819721399E-2},"mg/L"]

{"sheet":"B04c","index":19,"n_rows":42,"n_cols":7,"rows_kept":42,"cut":false,"hidden":false,"merged":[[0,0,0,4],[1,1,1,3],[2,1,2,3],[3,1,3,3]]}
["Concentration in pond water after direct spray or after drift at distances downwind in feet from the application site"]
["Short Title","Pond, Drift",null,null,"PondDrift3Apps"]
["Receptor","Pond"]
["Duration","Acute"]
["Parameter/Assumption","Code / Range","Equation/   Value","Units","Reference/Designation"]
["Application rate","ApRt",{"$f":"'A01'!ApRt_C","v":0.28000000000000003},"lb/acre","Worksheet A01"]
["Surface Area of Water Column","SA",1,"m2"]
["Depth of Pond","Depth",{"$f":"'A01'!C$24","v":1},"meter","Worksheet A01"]
["Volume of Water Column","V","= SA × Depth"]
[null,"VPM",{"$f":"C7*C8","v":1},"m3","Eq"]
[null,"VPL",{"$f":"1000*C10","v":1000},"liters","Eq"]
["Maximum Mass Proportion of Metabolite","RelMass",{"$f":"B04b!$C$34","v":1.8347239808734712E-2},null,"Worksheet B04b"]
[]
[]
["Proportion of Drift at distances downwind in feet [0 feet = direct spray]","Prop","Aerial","High Boom Ground Broadcast","Low Boom Ground Broadcast","Backpack"]
[0,null,1,1,1,1]
[25,null,0.223,0.104,3.5000000000000003E-2,8.3199999999999993E-3]
[50,null,0.17100000000000001,0.05,1.77E-2,4.3299999999999996E-3]
[100,null,9.7900000000000001E-2,2.4799999999999999E-2,9.4800000000000006E-3,2.4099999999999998E-3]
[300,null,3.1199999999999999E-2,7.5300000000000002E-3,3.5000000000000001E-3,9.41E-4]
[500,null,1.9199999999999998E-2,3.9100000000000003E-3,2.0899999999999998E-3,5.7899999999999998E-4]
[900,null,1.24E-2,1.66E-3,1.09E-3,3.1199999999999999E-4]
["Converstion Factor","Conv",112.1,"mg/m2 per lb/acre"]
["Concentration in water at distances downwind in feet","Conc =","RelMass x SA × Prop × ApR × Conv / VPL"]
["Concentration in water at distances downwind in feet",null,"Aerial","High Boom Ground Broadcast","Low Boom Ground Broadcast","Backpack"]
[{"$f":"A16","v":0},null,{"$f":"$C$12*$C$7*C16*$C$6*$C$23/$C$11","v":5.7588316311656519E-4},{"$f":"$C$12*$C$7*D16*$C$6*$C$23/$C$11","v":5.7588316311656519E-4},5.7588316311656519E-4,5.7588316311656519E-4,"mg/L"]
[25,null,{"$f":"$C$12*$C$7*C17*$C$6*$C$23/$C$11","v":1.2842194537499404E-4},5.989184896412277E-5,2.015591070907978E-5,4.7913479171298216E-6,"mg/L"]
[50,null,{"$f":"$C$12*$C$7*C18*$C$6*$C$23/$C$11","v":9.8476020892932645E-5},2.879415815582826E-5,1.0193131987163204E-5,2.493574096294727E-6,"mg/L"]
[100,null,{"$f":"$C$12*$C$7*C19*$C$6*$C$23/$C$11","v":5.6378961669111735E-5},1.4281902445290814E-5,5.4593723863450391E-6,1.387878423110922E-6,"mg/L"]
[300,null,{"$f":"$C$12*$C$7*C20*$C$6*$C$23/$C$11","v":1.796755468923683E-5},4.3364002182677364E-6,2.0155910709079781E-6,5.4190605649268794E-7,"mg/L"]
[500,null,{"$f":"$C$12*$C$7*C21*$C$6*$C$23/$C$11","v":1.1056956731838049E-5},2.2517031677857702E-6,1.2035958109136212E-6,3.3343635144449123E-7,"mg/L"]
[900,null,{"$f":"$C$12*$C$7*C22*$C$6*$C$23/$C$11","v":7.1409512226454071E-6},9.5596605077349833E-7,6.2771264779705617E-7,1.7967554689236834E-7,"mg/L"]
[]
["Below is adjusted for 1 lb/acre."]
["Concentration in water at distances downwind in feet",null,"Aerial","High Boom Ground Broadcast","Low Boom Ground Broadcast","Backpack"]
[{"$f":"A26","v":0},null,{"$f":"C26/$C$6","v":2.0567255825591612E-3},{"$f":"D26/$C$6","v":2.0567255825591612E-3},2.0567255825591612E-3,2.0567255825591612E-3,"mg/L"]
[25,null,{"$f":"C27/$C$6","v":4.5864980491069294E-4},2.1389946058615272E-4,7.1985395389570635E-5,1.7111956846892219E-5,"mg/L"]
[50,null,{"$f":"C28/$C$6","v":3.5170007461761654E-4},1.0283627912795805E-4,3.640404281129715E-5,8.9056217724811669E-6,"mg/L"]
[100,null,{"$f":"C29/$C$6","v":2.013534345325419E-4},5.1006794447467189E-5,1.9497758522660853E-5,4.9567086539675779E-6,"mg/L"]
[300,null,{"$f":"C30/$C$6","v":6.4169838175845816E-5},1.5487143636670486E-5,7.1985395389570641E-6,1.935378773188171E-6,"mg/L"]
[500,null,{"$f":"C31/$C$6","v":3.9489131185135889E-5},8.0417970278063213E-6,4.2985564675486465E-6,1.1908441123017542E-6,"mg/L"]
[900,null,{"$f":"C32/$C$6","v":2.5503397223733594E-5},3.4141644670482078E-6,2.2418308849894862E-6,6.4169838175845827E-7,"mg/L"]

{"sheet":"B04d","index":20,"n_rows":45,"n_cols":7,"rows_kept":45,"cut":false,"hidden":false,"merged":[[0,0,0,4],[1,1,1,3],[2,1,2,3],[3,1,3,3]]}
["Concentration in stream water after direct spray or after drift at distances downwind in feet from the application site"]
["Short Title","Stream, Drift",null,null,"StreamDrift3Apps"]
["Receptor","Stream"]
["Duration","Acute"]
["Parameter/Assumption","Code / Range","Equation/   Value","Units","Reference/Designation"]
["Application rate, lbs/acre","ApRt",{"$f":"'A01'!ApRt_C","v":0.28000000000000003},"lb/acre","Worksheet A01"]
["Flow rate of stream","Flow",{"$f":"'A01'!C$25","v":710000},"L/day","Worksheet A01"]
["Converstion Factor, lb/acre to mg/m2","Conv1",112.1,"mg/m2 per lb/acre"]
["Deposition rate, nominal",null,"Dep = ApR × Conv1"]
[null,"Dep",{"$f":"C6*C8","v":31.388000000000002},"mg/m2","Eq"]
["Length of steam segment","L",{"$f":"'A01'!C$26","v":1038},"feet","Worksheet A01"]
["Width of steam segment","W",{"$f":"'A01'!C$27","v":6},"feet","Worksheet A01"]
["Surface Area of Stream Sprayed, square feet","SA_ft",{"$f":"C11*C12","v":6228},"ft2","Eq"]
["Converstion Factor, square feet to square meters","Conv2",9.2899999999999996E-2,"m2/ft2"]
["Surface Area of Stream Sprayed, square meters","SA_msq",{"$f":"C13*C14","v":578.58119999999997},null,"Eq"]
["Amount deposited on stream surface on spray day","Amnt",{"$f":"C10*C15","v":18160.506705600001},"mg/day","Eq"]
[{"$f":"B04c!A12","v":"Maximum Mass Proportion of Metabolite"},{"$f":"B04c!B12","v":"RelMass"},{"$f":"B04c!C12","v":1.8347239808734712E-2},null,{"$f":"B04c!E12","v":"Worksheet B04b"}]
[]
["Proportion of Drift at distances downwind in feet [0 feet = direct spray]","Prop","Aerial","High Boom Ground Broadcast","Low Boom Ground Broadcast","Backpack"]
[0,null,1,1,1,1]
[25,null,0.223,0.104,3.5000000000000003E-2,8.3199999999999993E-3]
[50,null,0.17100000000000001,0.05,1.77E-2,4.3299999999999996E-3]
[100,null,9.7900000000000001E-2,2.4799999999999999E-2,9.4800000000000006E-3,2.4099999999999998E-3]
[300,null,3.1199999999999999E-2,7.5300000000000002E-3,3.5000000000000001E-3,9.41E-4]
[500,null,1.9199999999999998E-2,3.9100000000000003E-3,2.0899999999999998E-3,5.7899999999999998E-4]
[900,null,1.24E-2,1.66E-3,1.09E-3,3.1199999999999999E-4]
[null,"Conc =","RelMass x Amnt × Prop / Flow"]
["Concentration in water at distances downwind in feet",null,"Aerial","High Boom Ground Broadcast","Low Boom Ground Broadcast","Backpack"]
[{"$f":"A20","v":0},null,{"$f":"$C$17*$C$16 * C20 /$C$7","v":4.6928897405039161E-4},{"$f":"$C$17*$C$16 * D20 /$C$7","v":4.6928897405039161E-4},4.6928897405039161E-4,4.6928897405039161E-4,"mg/L"]
[25,null,{"$f":"$C$17*$C$16 * C21 /$C$7","v":1.0465144121323733E-4},4.8806053301240727E-5,1.6425114091763705E-5,3.904484264099258E-6,"mg/L"]
[50,null,{"$f":"$C$17*$C$16 * C22 /$C$7","v":8.0248414562616963E-5},2.3464448702519582E-5,8.3064148406919322E-6,2.0320212576381954E-6,"mg/L"]
[100,null,{"$f":"$C$17*$C$16 * C23 /$C$7","v":4.594339055953334E-5},1.163836655644971E-5,4.4488594739977131E-6,1.1309864274614437E-6,"mg/L"]
[300,null,{"$f":"$C$17*$C$16 * C24 /$C$7","v":1.4641815990372217E-5},3.5337459745994489E-6,1.6425114091763708E-6,4.416009245814185E-7,"mg/L"]
[500,null,{"$f":"$C$17*$C$16 * C25 /$C$7","v":9.0103483017675174E-6},1.8349198885370313E-6,9.8081395576531831E-7,2.7171831597517673E-7,"mg/L"]
[900,null,{"$f":"$C$17*$C$16 * C26 /$C$7","v":5.8191832782248549E-6},7.790196969236501E-7,5.1152498171492681E-7,1.4641815990372216E-7,"mg/L"]
[]
["Below is adjusted for 1 lb/acre."]
["Concentration in water at distances downwind in feet",null,"Aerial","High Boom Ground Broadcast","Low Boom Ground Broadcast","Backpack"]
[{"$f":"A29","v":0},null,{"$f":"C29/$C$6","v":1.6760320501799698E-3},{"$f":"D29/$C$6","v":1.6760320501799698E-3},1.6760320501799698E-3,1.6760320501799698E-3,"mg/L"]
[25,null,{"$f":"C30/$C$6","v":3.7375514719013327E-4},1.7430733321871687E-4,5.8661121756298945E-5,1.3944586657497349E-5,"mg/L"]
[50,null,2.8660148058077482E-4,8.3801602508998496E-5,2.966576728818547E-5,7.2572187772792689E-6,"mg/L"]
[100,null,1.6408353771261907E-4,4.1565594844463243E-5,1.5888783835706117E-5,4.0392372409337274E-6,"mg/L"]
[300,null,5.2292199965615057E-5,1.2620521337855174E-5,5.8661121756298955E-6,1.5771461592193516E-6,"mg/L"]
[500,null,3.2179815363455415E-5,6.5532853162036827E-6,3.5029069848761365E-6,9.7042255705420253E-7,"mg/L"]
[900,null,2.0782797422231622E-5,2.7822132032987502E-6,1.826874934696167E-6,5.2292199965615055E-7,"mg/L"]

{"sheet":"D05","index":21,"n_rows":19,"n_cols":5,"rows_kept":19,"cut":false,"hidden":false,"merged":[[15,0,18,0],[0,0,0,4],[1,1,1,3],[2,1,2,3],[5,0,8,0],[10,0,13,0]]}
["Consumption of contaminated water by Child, Accidental Spill "]
["Short Title","Accidental Spill",null,null,"WatAmntV6"]
["Receptor","Child"]
["Duration","Acute",null,null,"Scenario parameter"]
["Parameter/Assumption","Code / Range","Equation/   Value","Units","Reference/Designation"]
["Concentration in water","ConcWat"]
[null,"Central ",{"$f":"B04b!Acute_C","v":1.180553145493035E-2},"mg/L","='B04b'!Acute_C"]
[null,"Lower ",{"$f":"B04b!Acute_L","v":1.166664284957823E-4},null,"='B04b'!Acute_L"]
[null,"Upper ",{"$f":"B04b!Acute_U","v":4.7222125819721399E-2},null,"='B04b'!Acute_U"]
["Receptor"]
["Amount of water consumed in one day","Amnt"]
[null,"Central ",{"$f":"'A03'!$E$44","v":1},"liters/day","U.S. EPA/ORD 1996"]
[null,"Lower ",{"$f":"'A03'!$E$45","v":0.61},null,"U.S. EPA/ORD 1996"]
[null,"Upper ",{"$f":"'A03'!$E$46","v":1.5},null,"U.S. EPA/ORD 1996"]
["Body weight","BW",{"$f":"A02a!$C$28","v":13.3},"kg","U.S. EPA/ORD 1996"]
["Dose","Dose","ConcWat  × Amnt ÷ BW"]
[null,"Central ",{"$f":"C7*C12/C$15","v":8.8763394397972553E-4},"mg/kg","Eq"]
[null,"Lower ",{"$f":"C8*C13/C$15","v":5.350866269355428E-6},"mg/kg","Eq"]
[null,"Upper ",{"$f":"C9*C14/C$15","v":5.3258036638783529E-3},"mg/kg","Eq"]

{"sheet":"D06","index":22,"n_rows":19,"n_cols":5,"rows_kept":19,"cut":false,"hidden":false,"merged":[[15,0,18,0],[0,0,0,4],[1,1,1,3],[2,1,2,3],[5,0,8,0],[10,0,13,0]]}
["Consumption of contaminated water by Child, Peak Conentrations "]
["Short Title","Peak Conentrations",null,null,"WatAmntV6"]
["Receptor","Child"]
["Duration","Acute",null,null,"Scenario parameter"]
["Parameter/Assumption","Code / Range","Equation/   Value","Units","Reference/Designation"]
["Concentration in water","ConcWat"]
[null,"Central ",{"$f":"B04a!Acute_C","v":1.9600000000000002E-4},"mg/L","='B04a'!Acute_C"]
[null,"Lower ",{"$f":"B04a!Acute_L","v":5.6000000000000004E-7},null,"='B04a'!Acute_L"]
[null,"Upper ",{"$f":"B04a!Acute_U","v":1.9600000000000004E-3},null,"='B04a'!Acute_U"]
["Receptor"]
["Amount of water consumed in one day","Amnt"]
[null,"Central ",{"$f":"'A03'!$E$44","v":1},"liters/day","U.S. EPA/ORD 1996"]
[null,"Lower ",{"$f":"'A03'!$E$45","v":0.61},null,"U.S. EPA/ORD 1996"]
[null,"Upper ",{"$f":"'A03'!$E$46","v":1.5},null,"U.S. EPA/ORD 1996"]
["Body weight","BW",{"$f":"A02a!$C$28","v":13.3},"kg","U.S. EPA/ORD 1996"]
["Dose","Dose","ConcWat  × Amnt ÷ BW"]
[null,"Central ",{"$f":"C7*C12/C$15","v":1.4736842105263159E-5},"mg/kg","Eq"]
[null,"Lower ",{"$f":"C8*C13/C$15","v":2.5684210526315791E-8},"mg/kg","Eq"]
[null,"Upper ",{"$f":"C9*C14/C$15","v":2.2105263157894741E-4},"mg/kg","Eq"]

{"sheet":"D07","index":23,"n_rows":19,"n_cols":5,"rows_kept":19,"cut":false,"hidden":false,"merged":[[15,0,18,0],[0,0,0,4],[1,1,1,3],[2,1,2,3],[5,0,8,0],[10,0,13,0]]}
["Consumption of contaminated water by Adult Male, Longer-term Conentrations "]
["Short Title","Longer-term Conentrations",null,null,"WatAmntV6"]
["Receptor","Adult Male"]
["Duration","Chronic",null,null,"Scenario parameter"]
["Parameter/Assumption","Code / Range","Equation/   Value","Units","Reference/Designation"]
["Concentration in water","ConcWat"]
[null,"Central ",{"$f":"B04a!Chronic_C","v":1.4000000000000001E-5},"mg/L","='B04a'!Chronic_C"]
[null,"Lower ",{"$f":"B04a!Chronic_L","v":5.6000000000000005E-8},null,"='B04a'!Chronic_L"]
[null,"Upper ",{"$f":"B04a!Chronic_U","v":1.9600000000000002E-4},null,"='B04a'!Chronic_U"]
["Receptor"]
["Amount of water consumed in one day","Amnt"]
[null,"Central ",{"$f":"'A03'!$E$31","v":2},"liters/day","U.S. EPA/ORD 1996"]
[null,"Lower ",{"$f":"'A03'!$E$32","v":1.4},null,"U.S. EPA/ORD 1996"]
[null,"Upper ",{"$f":"'A03'!$E$33","v":2.4},null,"U.S. EPA/ORD 1996"]
["Body weight","BW",{"$f":"A02a!$C$8","v":70},"kg","ICRP 1975"]
["Dose","Dose","ConcWat  × Amnt ÷ BW"]
[null,"Central ",{"$f":"C7*C12/C$15","v":4.0000000000000003E-7},"mg/kg","Eq"]
[null,"Lower ",{"$f":"C8*C13/C$15","v":1.1200000000000001E-9},"mg/kg","Eq"]
[null,"Upper ",{"$f":"C9*C14/C$15","v":6.7200000000000009E-6},"mg/kg","Eq"]

{"sheet":"D08a","index":24,"n_rows":34,"n_cols":5,"rows_kept":34,"cut":false,"hidden":false,"merged":[[15,0,18,0],[20,0,23,0],[24,0,27,0],[29,0,32,0],[0,0,0,4],[1,1,1,3],[2,1,2,3],[3,1,3,3],[6,0,9,0],[12,0,14,0]]}
["Consumption of Contaminated Fish (Accidental Spill), Adult Male, acute exposure"]
["Short Title","Fish consumption",null,null,"FishAmntV6"]
["Receptor","Adult Male"]
["Duration","acute"]
["Parameter/Assumption","Code / Range","Equation/   Value","Units","Reference/Designation"]
["Water"]
["Concentration in water","ConcWat","ApR × WCR"]
[null,"Central ",{"$f":"B04b!Acute_C","v":1.180553145493035E-2},"mg/L","='B04b'!Acute_C"]
[null,"Lower ",{"$f":"B04b!Acute_L","v":1.166664284957823E-4},null,"='B04b'!Acute_L"]
[null,"Upper ",{"$f":"B04b!Acute_U","v":4.7222125819721399E-2},null,"='B04b'!Acute_U"]
["Fish"]
["Bioconcentration factor","BCF"]
[null,"Central ",{"$f":"'B01'!$C$4","v":1},"L/kg"]
[null,"Lower ",{"$f":"'B01'!$C$4","v":1}]
[null,"Upper ",{"$f":"'B01'!$C$4","v":1}]
["Concentration in fish","ConcFish","ConcWat × BCF"]
[null,"Central ",{"$f":"C8*C13","v":1.180553145493035E-2},"mg/kg","Eq"]
[null,"Lower ",{"$f":"C9*C14","v":1.166664284957823E-4},null,"Eq"]
[null,"Upper ",{"$f":"C10*C15","v":4.7222125819721399E-2},null,"Eq"]
["Receptor"]
["Amount of fish consumed","Amnt"]
[null,"Central ",{"$f":"'A03'!$E$20","v":0.158},"kg/day","Ruffle et al. 1994"]
[null,"Lower ",{"$f":"'A03'!$E$20","v":0.158},null,"Ruffle et al. 1994"]
[null,"Upper ",{"$f":"'A03'!$E$20","v":0.158},null,"Ruffle et al. 1994"]
["Toxic Equivalency Factor for formulation:  (See risk assessment if this has a value other than 1.)","TEF"]
[null,"Central ",{"$f":"'A01'!C$35","v":1},"Unitless","Worksheet A01"]
[null,"Lower ",{"$f":"'A01'!C$36","v":1},null,"Worksheet A01"]
[null,"Upper ",{"$f":"'A01'!C$37","v":1},null,"Worksheet A01"]
["Body weight","BW",{"$f":"A02a!$C$8","v":70},"kg","ICRP 1975"]
["Dose","Dose","ConcFish× Amnt x TEF ÷ BW"]
[null,"Central ",{"$f":"C17*C22*C26/C$29","v":2.6646770998271359E-5},"mg/kg","Eq"]
[null,"Lower ",{"$f":"C18*C23*C27/C$29","v":2.6333279574762287E-7},"mg/kg","Eq"]
[null,"Upper ",{"$f":"C19*C24*C28/C$29","v":1.0658708399308544E-4},"mg/kg","Eq"]
[null,null,null,null,"FishAmntV6"]

{"sheet":"D08b","index":25,"n_rows":34,"n_cols":5,"rows_kept":34,"cut":false,"hidden":false,"merged":[[15,0,18,0],[20,0,23,0],[24,0,27,0],[29,0,32,0],[0,0,0,4],[1,1,1,3],[2,1,2,3],[3,1,3,3],[6,0,9,0],[12,0,14,0]]}
["Consumption of Contaminated Fish (Accidental Spill), Subsistence Populations, acute exposure"]
["Short Title","Fish consumption",null,null,"FishAmntV6"]
["Receptor","Subsistence Populations"]
["Duration","acute"]
["Parameter/Assumption","Code / Range","Equation/   Value","Units","Reference/Designation"]
["Water"]
["Concentration in water","ConcWat","ApR × WCR"]
[null,"Central ",{"$f":"B04b!Acute_C","v":1.180553145493035E-2},"mg/L","='B04b'!Acute_C"]
[null,"Lower ",{"$f":"B04b!Acute_L","v":1.166664284957823E-4},null,"='B04b'!Acute_L"]
[null,"Upper ",{"$f":"B04b!Acute_U","v":4.7222125819721399E-2},null,"='B04b'!Acute_U"]
["Fish"]
["Bioconcentration factor","BCF"]
[null,"Central ",{"$f":"'B01'!$C$4","v":1},"L/kg"]
[null,"Lower ",{"$f":"'B01'!$C$4","v":1}]
[null,"Upper ",{"$f":"'B01'!$C$4","v":1}]
["Concentration in fish","ConcFish","ConcWat × BCF"]
[null,"Central ",{"$f":"C8*C13","v":1.180553145493035E-2},"mg/kg","Eq"]
[null,"Lower ",{"$f":"C9*C14","v":1.166664284957823E-4},null,"Eq"]
[null,"Upper ",{"$f":"C10*C15","v":4.7222125819721399E-2},null,"Eq"]
["Receptor"]
["Amount of fish consumed","Amnt"]
[null,"Central ",{"$f":"'A03'!$E$35","v":0.77},"kg/day","U.S. EPA/ORD 1993"]
[null,"Lower ",{"$f":"'A03'!$E$35","v":0.77},null,"U.S. EPA/ORD 1993"]
[null,"Upper ",{"$f":"'A03'!$E$35","v":0.77},null,"U.S. EPA/ORD 1993"]
["Toxic Equivalency Factor for formulation:  (See risk assessment if this has a value other than 1.)","TEF"]
[null,"Central ",{"$f":"'A01'!C$35","v":1},"Unitless","Worksheet A01"]
[null,"Lower ",{"$f":"'A01'!C$36","v":1},null,"Worksheet A01"]
[null,"Upper ",{"$f":"'A01'!C$37","v":1},null,"Worksheet A01"]
["Body weight","BW",{"$f":"A02a!$C$9","v":70},"kg","ICRP 1975"]
["Dose","Dose","ConcFish× Amnt x TEF ÷ BW"]
[null,"Central ",{"$f":"C17*C22*C26/C$29","v":1.2986084600423385E-4},"mg/kg","Eq"]
[null,"Lower ",{"$f":"C18*C23*C27/C$29","v":1.2833307134536052E-6},"mg/kg","Eq"]
[null,"Upper ",{"$f":"C19*C24*C28/C$29","v":5.194433840169354E-4},"mg/kg","Eq"]
[null,null,null,null,"FishAmntV6"]

{"sheet":"D09a","index":26,"n_rows":34,"n_cols":5,"rows_kept":34,"cut":false,"hidden":false,"merged":[[15,0,18,0],[20,0,23,0],[24,0,27,0],[29,0,32,0],[0,0,0,4],[1,1,1,3],[2,1,2,3],[3,1,3,3],[6,0,9,0],[12,0,14,0]]}
["Consumption of Contaminated Fish (Longer-term), Adult Male, chronic exposure"]
["Short Title","Fish consumption",null,null,"FishAmntV6"]
["Receptor","Adult Male"]
["Duration","chronic"]
["Parameter/Assumption","Code / Range","Equation/   Value","Units","Reference/Designation"]
["Water"]
["Concentration in water","ConcWat","ApR × WCR"]
[null,"Central ",{"$f":"B04a!Chronic_C","v":1.4000000000000001E-5},"mg/L","='B04a'!Chronic_C"]
[null,"Lower ",{"$f":"B04a!Chronic_L","v":5.6000000000000005E-8},null,"='B04a'!Chronic_L"]
[null,"Upper ",{"$f":"B04a!Chronic_U","v":1.9600000000000002E-4},null,"='B04a'!Chronic_U"]
["Fish"]
["Bioconcentration factor","BCF"]
[null,"Central ",{"$f":"'B01'!$C$5","v":1},"L/kg"]
[null,"Lower ",{"$f":"'B01'!$C$5","v":1}]
[null,"Upper ",{"$f":"'B01'!$C$5","v":1}]
["Concentration in fish","ConcFish","ConcWat × BCF"]
[null,"Central ",{"$f":"C8*C13","v":1.4000000000000001E-5},"mg/kg","Eq"]
[null,"Lower ",{"$f":"C9*C14","v":5.6000000000000005E-8},null,"Eq"]
[null,"Upper ",{"$f":"C10*C15","v":1.9600000000000002E-4},null,"Eq"]
["Receptor"]
["Amount of fish consumed","Amnt"]
[null,"Central ",{"$f":"'A03'!$E$19","v":0.01},"kg/day","U.S. EPA/ORD 1996"]
[null,"Lower ",{"$f":"'A03'!$E$19","v":0.01},null,"U.S. EPA/ORD 1996"]
[null,"Upper ",{"$f":"'A03'!$E$19","v":0.01},null,"U.S. EPA/ORD 1996"]
["Toxic Equivalency Factor for formulation:  (See risk assessment if this has a value other than 1.)","TEF"]
[null,"Central ",{"$f":"'A01'!C$35","v":1},"Unitless","Worksheet A01"]
[null,"Lower ",{"$f":"'A01'!C$36","v":1},null,"Worksheet A01"]
[null,"Upper ",{"$f":"'A01'!C$37","v":1},null,"Worksheet A01"]
["Body weight","BW",{"$f":"A02a!$C$8","v":70},"kg","ICRP 1975"]
["Dose","Dose","ConcFish× Amnt x TEF ÷ BW"]
[null,"Central ",{"$f":"C17*C22*C26/C$29","v":2.0000000000000001E-9},"mg/kg","Eq"]
[null,"Lower ",{"$f":"C18*C23*C27/C$29","v":7.9999999999999998E-12},"mg/kg","Eq"]
[null,"Upper ",{"$f":"C19*C24*C28/C$29","v":2.8000000000000003E-8},"mg/kg","Eq"]
[null,null,null,null,"FishAmntV6"]

{"sheet":"D09b","index":27,"n_rows":34,"n_cols":5,"rows_kept":34,"cut":false,"hidden":false,"merged":[[15,0,18,0],[20,0,23,0],[24,0,27,0],[29,0,32,0],[0,0,0,4],[1,1,1,3],[2,1,2,3],[3,1,3,3],[6,0,9,0],[12,0,14,0]]}
["Consumption of Contaminated Fish (Longer-term), Subsistence Populations, chronic exposure"]
["Short Title","Fish consumption",null,null,"FishAmntV6"]
["Receptor","Subsistence Populations"]
["Duration","chronic"]
["Parameter/Assumption","Code / Range","Equation/   Value","Units","Reference/Designation"]
["Water"]
["Concentration in water","ConcWat","ApR × WCR"]
[null,"Central ",{"$f":"B04a!Chronic_C","v":1.4000000000000001E-5},"mg/L","='B04a'!Chronic_C"]
[null,"Lower ",{"$f":"B04a!Chronic_L","v":5.6000000000000005E-8},null,"='B04a'!Chronic_L"]
[null,"Upper ",{"$f":"B04a!Chronic_U","v":1.9600000000000002E-4},null,"='B04a'!Chronic_U"]
["Fish"]
["Bioconcentration factor","BCF"]
[null,"Central ",{"$f":"'B01'!$C$5","v":1},"L/kg"]
[null,"Lower ",{"$f":"'B01'!$C$5","v":1}]
[null,"Upper ",{"$f":"'B01'!$C$5","v":1}]
["Concentration in fish","ConcFish","ConcWat × BCF"]
[null,"Central ",{"$f":"C8*C13","v":1.4000000000000001E-5},"mg/kg","Eq"]
[null,"Lower ",{"$f":"C9*C14","v":5.6000000000000005E-8},null,"Eq"]
[null,"Upper ",{"$f":"C10*C15","v":1.9600000000000002E-4},null,"Eq"]
["Receptor"]
["Amount of fish consumed","Amnt"]
[null,"Central ",{"$f":"'A03'!$E$34","v":8.1000000000000003E-2},"kg/day","U.S. EPA/ORD 1996"]
[null,"Lower ",{"$f":"'A03'!$E$34","v":8.1000000000000003E-2},null,"U.S. EPA/ORD 1996"]
[null,"Upper ",{"$f":"'A03'!$E$34","v":8.1000000000000003E-2},null,"U.S. EPA/ORD 1996"]
["Toxic Equivalency Factor for formulation:  (See risk assessment if this has a value other than 1.)","TEF"]
[null,"Central ",{"$f":"'A01'!C$35","v":1},"Unitless","Worksheet A01"]
[null,"Lower ",{"$f":"'A01'!C$36","v":1},null,"Worksheet A01"]
[null,"Upper ",{"$f":"'A01'!C$37","v":1},null,"Worksheet A01"]
["Body weight","BW",{"$f":"A02a!$C$9","v":70},"kg","ICRP 1975"]
["Dose","Dose","ConcFish× Amnt x TEF ÷ BW"]
[null,"Central ",{"$f":"C17*C22*C26/C$29","v":1.6199999999999999E-8},"mg/kg","Eq"]
[null,"Lower ",{"$f":"C18*C23*C27/C$29","v":6.4800000000000011E-11},"mg/kg","Eq"]
[null,"Upper ",{"$f":"C19*C24*C28/C$29","v":2.2680000000000002E-7},"mg/kg","Eq"]
[null,null,null,null,"FishAmntV6"]

{"sheet":"D09c","index":28,"n_rows":34,"n_cols":5,"rows_kept":34,"cut":false,"hidden":false,"merged":[[15,0,18,0],[20,0,23,0],[24,0,27,0],[29,0,32,0],[0,0,0,4],[1,1,1,3],[2,1,2,3],[3,1,3,3],[6,0,9,0],[12,0,14,0]]}
["Consumption of Contaminated Fish (Peak Exposure), Adult Male, acute exposure"]
["Short Title","Fish consumption",null,null,"FishAmntV6"]
["Receptor","Adult Male"]
["Duration","acute"]
["Parameter/Assumption","Code / Range","Equation/   Value","Units","Reference/Designation"]
["Water"]
["Concentration in water","ConcWat","ApR × WCR"]
[null,"Central ",{"$f":"B04a!Acute_C","v":1.9600000000000002E-4},"mg/L","='B04a'!Acute_C"]
[null,"Lower ",{"$f":"B04a!Acute_L","v":5.6000000000000004E-7},null,"='B04a'!Acute_L"]
[null,"Upper ",{"$f":"B04a!Acute_U","v":1.9600000000000004E-3},null,"='B04a'!Acute_U"]
["Fish"]
["Bioconcentration factor","BCF"]
[null,"Central ",{"$f":"'B01'!$C$4","v":1},"L/kg"]
[null,"Lower ",{"$f":"'B01'!$C$4","v":1}]
[null,"Upper ",{"$f":"'B01'!$C$4","v":1}]
["Concentration in fish","ConcFish","ConcWat × BCF"]
[null,"Central ",{"$f":"C8*C13","v":1.9600000000000002E-4},"mg/kg","Eq"]
[null,"Lower ",{"$f":"C9*C14","v":5.6000000000000004E-7},null,"Eq"]
[null,"Upper ",{"$f":"C10*C15","v":1.9600000000000004E-3},null,"Eq"]
["Receptor"]
["Amount of fish consumed","Amnt"]
[null,"Central ",{"$f":"'A03'!$E$20","v":0.158},"kg/day","Ruffle et al. 1994"]
[null,"Lower ",{"$f":"'A03'!$E$20","v":0.158},null,"Ruffle et al. 1994"]
[null,"Upper ",{"$f":"'A03'!$E$20","v":0.158},null,"Ruffle et al. 1994"]
["Toxic Equivalency Factor for formulation:  (See risk assessment if this has a value other than 1.)","TEF"]
[null,"Central ",{"$f":"'A01'!C$35","v":1},"Unitless","Worksheet A01"]
[null,"Lower ",{"$f":"'A01'!C$36","v":1},null,"Worksheet A01"]
[null,"Upper ",{"$f":"'A01'!C$37","v":1},null,"Worksheet A01"]
["Body weight","BW",{"$f":"A02a!$C$8","v":70},"kg","ICRP 1975"]
["Dose","Dose","ConcFish× Amnt x TEF ÷ BW"]
[null,"Central ",{"$f":"C17*C22*C26/C$29","v":4.424000000000001E-7},"mg/kg","Eq"]
[null,"Lower ",{"$f":"C18*C23*C27/C$29","v":1.2640000000000002E-9},"mg/kg","Eq"]
[null,"Upper ",{"$f":"C19*C24*C28/C$29","v":4.4240000000000012E-6},"mg/kg","Eq"]
[null,null,null,null,"FishAmntV6"]

{"sheet":"D09d","index":29,"n_rows":34,"n_cols":5,"rows_kept":34,"cut":false,"hidden":false,"merged":[[15,0,18,0],[20,0,23,0],[24,0,27,0],[29,0,32,0],[0,0,0,4],[1,1,1,3],[2,1,2,3],[3,1,3,3],[6,0,9,0],[12,0,14,0]]}
["Consumption of Contaminated Fish (Peak Exposure), Subsistence Populations, acute exposure"]
["Short Title","Fish consumption",null,null,"FishAmntV6"]
["Receptor","Subsistence Populations"]
["Duration","acute"]
["Parameter/Assumption","Code / Range","Equation/   Value","Units","Reference/Designation"]
["Water"]
["Concentration in water","ConcWat","ApR × WCR"]
[null,"Central ",{"$f":"B04a!Acute_C","v":1.9600000000000002E-4},"mg/L","='B04a'!Acute_C"]
[null,"Lower ",{"$f":"B04a!Acute_L","v":5.6000000000000004E-7},null,"='B04a'!Acute_L"]
[null,"Upper ",{"$f":"B04a!Acute_U","v":1.9600000000000004E-3},null,"='B04a'!Acute_U"]
["Fish"]
["Bioconcentration factor","BCF"]
[null,"Central ",{"$f":"'B01'!$C$4","v":1},"L/kg"]
[null,"Lower ",{"$f":"'B01'!$C$4","v":1}]
[null,"Upper ",{"$f":"'B01'!$C$4","v":1}]
["Concentration in fish","ConcFish","ConcWat × BCF"]
[null,"Central ",{"$f":"C8*C13","v":1.9600000000000002E-4},"mg/kg","Eq"]
[null,"Lower ",{"$f":"C9*C14","v":5.6000000000000004E-7},null,"Eq"]
[null,"Upper ",{"$f":"C10*C15","v":1.9600000000000004E-3},null,"Eq"]
["Receptor"]
["Amount of fish consumed","Amnt"]
[null,"Central ",{"$f":"'A03'!$E$35","v":0.77},"kg/day","U.S. EPA/ORD 1993"]
[null,"Lower ",{"$f":"'A03'!$E$35","v":0.77},null,"U.S. EPA/ORD 1993"]
[null,"Upper ",{"$f":"'A03'!$E$35","v":0.77},null,"U.S. EPA/ORD 1993"]
["Toxic Equivalency Factor for formulation:  (See risk assessment if this has a value other than 1.)","TEF"]
[null,"Central ",{"$f":"'A01'!C$35","v":1},"Unitless","Worksheet A01"]
[null,"Lower ",{"$f":"'A01'!C$36","v":1},null,"Worksheet A01"]
[null,"Upper ",{"$f":"'A01'!C$37","v":1},null,"Worksheet A01"]
["Body weight","BW",{"$f":"A02a!$C$9","v":70},"kg","ICRP 1975"]
["Dose","Dose","ConcFish× Amnt x TEF ÷ BW"]
[null,"Central ",{"$f":"C17*C22*C26/C$29","v":2.1560000000000002E-6},"mg/kg","Eq"]
[null,"Lower ",{"$f":"C18*C23*C27/C$29","v":6.1600000000000011E-9},"mg/kg","Eq"]
[null,"Upper ",{"$f":"C19*C24*C28/C$29","v":2.1560000000000004E-5},"mg/kg","Eq"]
[null,null,null,null,"FishAmntV6"]

{"sheet":"D11","index":30,"n_rows":31,"n_cols":5,"rows_kept":31,"cut":false,"hidden":false,"merged":[[27,0,30,0],[0,0,0,4],[1,1,1,3],[2,1,2,3],[3,1,3,3],[4,1,4,3],[8,0,9,0],[11,0,14,0],[12,3,14,3],[15,0,18,0],[19,0,22,0],[23,0,26,0]]}
["Swimming Exposure Assessment Using Zero-Order Absorption, Adult Female, Surface Area, Whole body, for 60 minute(s)"]
["Short Title","Swimming",null,null,"DrmZrSwm"]
["Receptor","Adult Female"]
["Duration","Acute"]
["Surface Contaminated","Surface Area, Whole body"]
["Parameter/Assumption","Code / Range","Equation/   Value","Units","Reference/Designation"]
["Application Rate","ApRt",{"$f":"'A01'!ApRt_C","v":0.28000000000000003},"lb/acre","Worksheet A01"]
["Surface Area","SA",{"$f":"A02a!$C$7","v":16900},"cm2","U.S. EPA/ORD 1997"]
["Duration of Exposure","T_min",{"$f":"'A01'!C$29","v":60},"minutes","Worksheet A01"]
[null,"T_hr",{"$f":"C9/60","v":1},"hours","Eq"]
["Body weight","BW",{"$f":"A02a!$C$4","v":64},"kg","U.S. EPA/ORD 1985"]
["Water contamination rate","WCR"]
[null,"Central ",{"$f":"B04Rt!$C$4","v":6.9999999999999999E-4},"mg/L per lb/acre"]
[null,"Lower ",{"$f":"B04Rt!$C$5","v":1.9999999999999999E-6}]
[null,"Upper ",{"$f":"B04Rt!$C$6","v":7.0000000000000001E-3}]
["Concentration in water in mg/mL","ConcWat","ApR × WCR / 1000"]
[null,"Central ",{"$f":"C$7*C13/1000","v":1.9600000000000001E-7},"mg/mL","Eq"]
[null,"Lower ",{"$f":"C$7*C14/1000","v":5.6000000000000003E-10},null,"Eq"]
[null,"Upper ",{"$f":"C$7*C15/1000","v":1.9600000000000003E-6},null,"Eq"]
["Toxic Equivalency Factor for formulation:  (See risk assessment if this has a value other than 1.)","TEF"]
[null,"Central ",{"$f":"'A01'!C$35","v":1},"Unitless","Worksheet A01"]
[null,"Lower ",{"$f":"'A01'!C$36","v":1},null,"Worksheet A01"]
[null,"Upper ",{"$f":"'A01'!C$37","v":1},null,"Worksheet A01"]
["Dermal permeability","Kp"]
[null,"Central ",{"$f":"B03a!C26","v":1.5494979536769678E-3},"cm/hour","Worksheet B03a"]
[null,"Lower ",{"$f":"B03a!C27","v":8.6437665758081937E-4}]
[null,"Upper ",{"$f":"B03a!C28","v":2.7776593541625366E-3}]
["Absorbed Dose","Dose","Kp × Conc × T_hr × SA × TEF ÷ BW"]
[null,"Central ",{"$f":"C25*C17*C$10*C$8*C21/C$11","v":8.019620346499358E-8},"mg/kg"]
[null,"Lower ",{"$f":"C26*C18*C$10*C$8*C22/C$11","v":1.2781969823976365E-10},"mg/kg"]
[null,"Upper ",{"$f":"C27*C19*C$10*C$8*C23/C$11","v":1.4376123194887481E-6},"mg/kg"]

{"sheet":"E03","index":31,"n_rows":24,"n_cols":14,"rows_kept":24,"cut":false,"hidden":false,"merged":[[0,0,0,5],[1,2,1,4],[2,0,3,0],[2,1,3,1],[2,2,2,4],[2,5,3,5]]}
["Summary of Exposure Assessments for the General Public"]
["Application Rate:",{"$f":"'A01'!ApRt_C","v":0.28000000000000003}," lb a.e./acre",null,null,"E03aV6"]
["Scenario","Receptor","mg/kg/day or mg/kg/event",null,null,"Detail Worksheet"]
[null,null,"Central","Lower","Upper",null,null,null,null,null,"Lower","Central","Upper","Check"]
["Accidental Acute Exposures (dose in mg/kg/event)"]
["Direct Spray of Child, whole body","Child","No exposure assessment",null,null,null,null,null,null,"Spray: Child",{"$f":"IF(D6>0,  D6, \"\")","v":""},{"$f":"IF(ISERROR(C6-K6), \"\", C6-K6)","v":""},{"$f":"IF(ISERROR(E6-C6), \"\", E6-C6)","v":""},{"$f":"E6-SUM(K6:M6)","v":0}]
["Direct Spray of Woman, feet and lower legs","Adult Female","No exposure assessment",null,null,null,null,null,null,"Spray: Woman",{"$f":"IF(D7>0,  D7, \"\")","v":""},{"$f":"IF(ISERROR(C7-K7), \"\", C7-K7)","v":""},{"$f":"IF(ISERROR(E7-C7), \"\", E7-C7)","v":""},{"$f":"E7-SUM(K7:M7)","v":0}]
["Water consumption (spill)","Child",{"$f":"'D05'!Dose_C","v":8.8763394397972553E-4},{"$f":"'D05'!Dose_L","v":5.350866269355428E-6},{"$f":"'D05'!Dose_U","v":5.3258036638783529E-3},"D05",null,null,null,"Water: Child",5.350866269355428E-6,8.8228307771037013E-4,4.4381697198986273E-3,0]
["Fish consumption (spill)","Adult Male",{"$f":"D08a!Dose_C","v":2.6646770998271359E-5},{"$f":"D08a!Dose_L","v":2.6333279574762287E-7},{"$f":"D08a!Dose_U","v":1.0658708399308544E-4},"D08a",null,null,null,"Fish: General",2.6333279574762287E-7,2.6383438202523737E-5,7.9940312994814078E-5,0]
["Fish consumption (spill)","Subsistence Populations",{"$f":"D08b!Dose_C","v":1.2986084600423385E-4},{"$f":"D08b!Dose_L","v":1.2833307134536052E-6},{"$f":"D08b!Dose_U","v":5.194433840169354E-4},"D08b",null,null,null,"Fish: Subsist",1.2833307134536052E-6,1.2857751529078026E-4,3.8958253801270153E-4,0]
["Non-Accidental Acute Exposures (dose in mg/kg/event)"]
["Vegetation Contact, shorts and T-shirt","Adult Female","No exposure assessment",null,null,null,null,null,null,"Contact: Female",{"$f":"IF(D12>0,  D12, \"\")","v":""},{"$f":"IF(ISERROR(C12-K12), \"\", C12-K12)","v":""},{"$f":"IF(ISERROR(E12-C12), \"\", E12-C12)","v":""},{"$f":"E12-SUM(K12:M12)","v":0}]
["Contaminated Fruit","Adult Female","No exposure assessment",null,null,null,null,null,null,"Fruit: Female","","","",0]
["Contaminated Vegetation","Adult Female","No exposure assessment",null,null,null,null,null,null,"Veg: Female","","","",0]
["Swimming, one hour","Adult Female",{"$f":"'D11'!$C$29","v":8.019620346499358E-8},{"$f":"'D11'!$C$30","v":1.2781969823976365E-10},{"$f":"'D11'!$C$31","v":1.4376123194887481E-6},"D11",null,null,null,"Swim: Female",1.2781969823976365E-10,8.0068383766753811E-8,1.3574161160237545E-6,0]
["Water consumption","Child",{"$f":"'D06'!Dose_C","v":1.4736842105263159E-5},{"$f":"'D06'!Dose_L","v":2.5684210526315791E-8},{"$f":"'D06'!Dose_U","v":2.2105263157894741E-4},"D06",null,null,null,"Water: Child",2.5684210526315791E-8,1.4711157894736843E-5,2.0631578947368425E-4,0]
["Fish consumption","Adult Male",{"$f":"D09c!Dose_C","v":4.424000000000001E-7},{"$f":"D09c!Dose_L","v":1.2640000000000002E-9},{"$f":"D09c!Dose_U","v":4.4240000000000012E-6},"D09c",null,null,null,"Fish: Male",1.2640000000000002E-9,4.4113600000000009E-7,3.981600000000001E-6,0]
["Fish consumption","Subsistence Populations",{"$f":"D09d!Dose_C","v":2.1560000000000002E-6},{"$f":"D09d!Dose_L","v":6.1600000000000011E-9},{"$f":"D09d!Dose_U","v":2.1560000000000004E-5},"D09d",null,null,null,"Fish: Subsist",6.1600000000000011E-9,2.14984E-6,1.9404000000000003E-5,0]
["Chronic/Longer Term Exposures (dose in mg/kg/day)"]
["Contaminated Fruit","Adult Female","No exposure assessment",null,null,null,null,null,null,"Fruit: Female",{"$f":"IF(D20>0,  D20, \"\")","v":""},{"$f":"IF(ISERROR(C20-K20), \"\", C20-K20)","v":""},{"$f":"IF(ISERROR(E20-C20), \"\", E20-C20)","v":""},{"$f":"E20-SUM(K20:M20)","v":0}]
["Contaminated Vegetation","Adult Female","No exposure assessment",null,null,null,null,null,null,"Veg: Female","","","",0]
["Water consumption","Adult Male",{"$f":"'D07'!Dose_C","v":4.0000000000000003E-7},{"$f":"'D07'!Dose_L","v":1.1200000000000001E-9},{"$f":"'D07'!Dose_U","v":6.7200000000000009E-6},"D07",null,null,null,"Water: Male",1.1200000000000001E-9,3.9888000000000004E-7,6.3200000000000005E-6,0]
["Fish consumption","Adult Male",{"$f":"D09a!Dose_C","v":2.0000000000000001E-9},{"$f":"D09a!Dose_L","v":7.9999999999999998E-12},{"$f":"D09a!Dose_U","v":2.8000000000000003E-8},"D09a",null,null,null,"Fish: Male",7.9999999999999998E-12,1.9920000000000002E-9,2.6000000000000001E-8,0]
["Fish consumption","Subsistence Populations",{"$f":"D09b!Dose_C","v":1.6199999999999999E-8},{"$f":"D09b!Dose_L","v":6.4800000000000011E-11},{"$f":"D09b!Dose_U","v":2.2680000000000002E-7},"D09b",null,null,null,"Fish: Subsist",6.4800000000000011E-11,1.6135199999999999E-8,2.1060000000000002E-7,0]

{"sheet":"E04","index":32,"n_rows":24,"n_cols":14,"rows_kept":24,"cut":false,"hidden":false,"merged":[[0,0,0,5],[1,2,1,4],[2,0,3,0],[2,1,3,1],[2,2,2,4],[2,5,3,5]]}
["Summary of Hazard Quotients (Toxicity) for the General Public"]
["Application Rate:",{"$f":"'A01'!ApRt_C","v":0.28000000000000003}," lb a.e./acre",null,null,"E03aV6"]
["Scenario","Receptor","Hazard Quotients",null,null,"Toxicity Value"]
[null,null,"Central","Lower","Upper",null,null,null,null,null,"Lower","Central","Upper","Check"]
["Accidental Acute Exposures (dose in mg/kg/event)"]
["Direct Spray of Child, whole body","Child","No exposure assessment",null,null,{"$f":"'B02'!$E$4","v":2.5999999999999999E-3},null,null,null,"Spray: Child",{"$f":"IF(D6>0,  D6, \"\")","v":""},{"$f":"IF(ISERROR(C6-K6), \"\", C6-K6)","v":""},{"$f":"IF(ISERROR(E6-C6), \"\", E6-C6)","v":""},{"$f":"E6-SUM(K6:M6)","v":0}]
["Direct Spray of Woman, feet and lower legs","Adult Female","No exposure assessment",null,null,{"$f":"'B02'!$E$4","v":2.5999999999999999E-3},null,null,null,"Spray: Woman",{"$f":"IF(D7>0,  D7, \"\")","v":""},{"$f":"IF(ISERROR(C7-K7), \"\", C7-K7)","v":""},{"$f":"IF(ISERROR(E7-C7), \"\", E7-C7)","v":""},{"$f":"E7-SUM(K7:M7)","v":0}]
["Water consumption (spill)","Child",{"$f":"'D05'!$C$17/$F$8","v":0.3413976707614329},{"$f":"'D05'!$C$18/$F$8","v":2.0580254882136264E-3},{"$f":"'D05'!$C$19/$F$8","v":2.0483860245685972},{"$f":"'B02'!$E$4","v":2.5999999999999999E-3},null,null,null,"Water: Child",2.0580254882136264E-3,0.3393396452732193,1.7069883538071644,0]
["Fish consumption (spill)","Adult Male",{"$f":"D08a!$C$31/$F$9","v":1.0248758076258215E-2},{"$f":"D08a!$C$32/$F$9","v":1.0128184451831649E-4},{"$f":"D08a!$C$33/$F$9","v":4.0995032305032861E-2},{"$f":"'B02'!$E$4","v":2.5999999999999999E-3},null,null,null,"Fish: General",1.0128184451831649E-4,1.0147476231739899E-2,3.0746274228774646E-2,0]
["Fish consumption (spill)","Subsistence Populations",{"$f":"D08b!$C$31/$F$10","v":4.9946479232397638E-2},{"$f":"D08b!$C$32/$F$10","v":4.9358873594369432E-4},{"$f":"D08b!$C$33/$F$10","v":0.19978591692959055},{"$f":"'B02'!$E$4","v":2.5999999999999999E-3},null,null,null,"Fish: Subsist",4.9358873594369432E-4,4.9452890496453947E-2,0.14983943769719291,0]
["Non-Accidental Acute Exposures (dose in mg/kg/event)"]
["Vegetation Contact, shorts and T-shirt","Adult Female","No exposure assessment",null,null,{"$f":"'B02'!$E$4","v":2.5999999999999999E-3},null,null,null,"Contact: Female",{"$f":"IF(D12>0,  D12, \"\")","v":""},{"$f":"IF(ISERROR(C12-K12), \"\", C12-K12)","v":""},{"$f":"IF(ISERROR(E12-C12), \"\", E12-C12)","v":""},{"$f":"E12-SUM(K12:M12)","v":0}]
["Contaminated Fruit","Adult Female","No exposure assessment",null,null,{"$f":"'B02'!$E$4","v":2.5999999999999999E-3},null,null,null,"Fruit: Female","","","",0]
["Contaminated Vegetation","Adult Female","No exposure assessment",null,null,{"$f":"'B02'!$E$4","v":2.5999999999999999E-3},null,null,null,"Veg: Female","","","",0]
["Swimming, one hour","Adult Female",{"$f":"'E03'!C15/'E04'!$F15","v":3.084469364038215E-5},{"$f":"'E03'!D15/'E04'!$F15","v":4.9161422399909098E-8},{"$f":"'E03'!E15/'E04'!$F15","v":5.5292781518798009E-4},{"$f":"'B02'!$E$4","v":2.5999999999999999E-3},null,null,null,"Swim: Female",4.9161422399909098E-8,3.0795532217982243E-5,5.2208312154759795E-4,0]
["Water consumption","Child",{"$f":"'D06'!$C$17/$F$16","v":5.6680161943319842E-3},{"$f":"'D06'!$C$18/$F$16","v":9.8785425101214592E-6},{"$f":"'D06'!$C$19/$F$16","v":8.5020242914979782E-2},{"$f":"'B02'!$E$4","v":2.5999999999999999E-3},null,null,null,"Water: Child",9.8785425101214592E-6,5.6581376518218627E-3,7.9352226720647803E-2,0]
["Fish consumption","Adult Male",{"$f":"D09c!$C$31/$F$17","v":1.7015384615384619E-4},{"$f":"D09c!$C$32/$F$17","v":4.8615384615384625E-7},{"$f":"D09c!$C$33/$F$17","v":1.701538461538462E-3},{"$f":"'B02'!$E$4","v":2.5999999999999999E-3},null,null,null,"Fish: Male",4.8615384615384625E-7,1.6966769230769235E-4,1.5313846153846159E-3,0]
["Fish consumption","Subsistence Populations",{"$f":"D09d!$C$31/$F$18","v":8.2923076923076939E-4},{"$f":"D09d!$C$32/$F$18","v":2.3692307692307697E-6},{"$f":"D09d!$C$33/$F$18","v":8.2923076923076943E-3},{"$f":"'B02'!$E$4","v":2.5999999999999999E-3},null,null,null,"Fish: Subsist",2.3692307692307697E-6,8.2686153846153862E-4,7.4630769230769247E-3,0]
["Chronic/Longer Term Exposures (dose in mg/kg/day)"]
["Contaminated Fruit","Adult Female","No exposure assessment",null,null,null,null,null,null,"Fruit: Female",{"$f":"IF(D20>0,  D20, \"\")","v":""},{"$f":"IF(ISERROR(C20-K20), \"\", C20-K20)","v":""},{"$f":"IF(ISERROR(E20-C20), \"\", E20-C20)","v":""},{"$f":"E20-SUM(K20:M20)","v":0}]
["Contaminated Vegetation","Adult Female","No exposure assessment",null,null,null,null,null,null,"Veg: Female","","","",0]
["Water consumption","Adult Male",{"$f":"'D07'!$C$17/$F$22","v":4.5977011494252877E-4},{"$f":"'D07'!$C$18/$F$22","v":1.2873563218390806E-6},{"$f":"'D07'!$C$19/$F$22","v":7.7241379310344837E-3},{"$f":"'B02'!$E$5","v":8.7000000000000001E-4},null,null,null,"Water: Male",1.2873563218390806E-6,4.5848275862068967E-4,7.2643678160919552E-3,0]
["Fish consumption","Adult Male",{"$f":"D09a!$C$31/$F$23","v":2.2988505747126437E-6},{"$f":"D09a!$C$32/$F$23","v":9.1954022988505744E-9},{"$f":"D09a!$C$33/$F$23","v":3.2183908045977013E-5},{"$f":"'B02'!$E$5","v":8.7000000000000001E-4},null,null,null,"Fish: Male",9.1954022988505744E-9,2.2896551724137933E-6,2.988505747126437E-5,0]
["Fish consumption","Subsistence Populations",{"$f":"D09b!$C$31/$F$24","v":1.8620689655172412E-5},{"$f":"D09b!$C$32/$F$24","v":7.4482758620689665E-8},{"$f":"D09b!$C$33/$F$24","v":2.6068965517241381E-4},{"$f":"'B02'!$E$5","v":8.7000000000000001E-4},null,null,null,"Fish: Subsist",7.4482758620689665E-8,1.8546206896551722E-5,2.4206896551724139E-4,0]

{"sheet":"F02a","index":33,"n_rows":20,"n_cols":5,"rows_kept":20,"cut":false,"hidden":false,"merged":[[16,0,19,0],[0,0,0,4],[1,1,1,3],[2,1,2,3],[5,0,8,0],[11,0,13,0],[14,0,15,0]]}
["Consumption of contaminated water by Mammal, small, Accidental Spill "]
["Short Title","Accidental Spill",null,null,"WatAlloV6"]
["Receptor","Mammal, small"]
["Duration","Acute",null,null,"Scenario parameter"]
["Parameter/Assumption","Code / Range","Equation/   Value","Units","Reference/Designation"]
["Concentration in water","ConcWat"]
[null,"Central ",{"$f":"B04b!Acute_C","v":1.180553145493035E-2},"mg/L","='B04b'!Acute_C"]
[null,"Lower ",{"$f":"B04b!Acute_L","v":1.166664284957823E-4},null,"='B04b'!Acute_L"]
[null,"Upper ",{"$f":"B04b!Acute_U","v":4.7222125819721399E-2},null,"='B04b'!Acute_U"]
["Receptor"]
["Body weight","BW",{"$f":"A02b!$C$71","v":0.02},"kg","Default"]
["Allometric coefficients forwater consumption per day in liters and BW in kilograms"]
[null,"alpha",{"$f":"A02b!$C$79","v":9.9000000000000005E-2},null,"U.S. EPA/ORD 1993"]
[null,"beta",{"$f":"A02b!$C$80","v":0.9},null,"U.S. EPA/ORD 1993"]
["Amount of water consumed per day",null,"Amnt = alpha BW beta"]
[null,"Amnt",{"$f":"C13*(C11^C14)","v":2.9279401205240612E-3},"liters","Eq"]
["Absorbed Dose","Dose","ConcWat  × Amnt ÷ BW"]
[null,"Central ",{"$f":"C7*C$16/C$11","v":1.728294459549968E-3},"mg/kg","Eq"]
[null,"Lower ",{"$f":"C8*C$16/C$11","v":1.7079615835552628E-5},"mg/kg","Eq"]
[null,"Upper ",{"$f":"C9*C$16/C$11","v":6.9131778381998719E-3},"mg/kg","Eq"]

{"sheet":"F02b","index":34,"n_rows":20,"n_cols":5,"rows_kept":20,"cut":false,"hidden":false,"merged":[[16,0,19,0],[0,0,0,4],[1,1,1,3],[2,1,2,3],[5,0,8,0],[11,0,13,0],[14,0,15,0]]}
["Consumption of contaminated water by Mammal, 400 g, Accidental Spill "]
["Short Title","Accidental Spill",null,null,"WatAlloV6"]
["Receptor","Mammal, 400 g"]
["Duration","Acute",null,null,"Scenario parameter"]
["Parameter/Assumption","Code / Range","Equation/   Value","Units","Reference/Designation"]
["Concentration in water","ConcWat"]
[null,"Central ",{"$f":"B04b!Acute_C","v":1.180553145493035E-2},"mg/L","='B04b'!Acute_C"]
[null,"Lower ",{"$f":"B04b!Acute_L","v":1.166664284957823E-4},null,"='B04b'!Acute_L"]
[null,"Upper ",{"$f":"B04b!Acute_U","v":4.7222125819721399E-2},null,"='B04b'!Acute_U"]
["Receptor"]
["Body weight","BW",{"$f":"A02b!$C$40","v":0.4},"kg","Default"]
["Allometric coefficients forwater consumption per day in liters and BW in kilograms"]
[null,"alpha",{"$f":"A02b!$C$45","v":9.9000000000000005E-2},null,"U.S. EPA/ORD 1993"]
[null,"beta",{"$f":"A02b!$C$46","v":0.9},null,"U.S. EPA/ORD 1993"]
["Amount of water consumed per day",null,"Amnt = alpha BW beta"]
[null,"Amnt",{"$f":"C13*(C11^C14)","v":4.3399945764854612E-2},"liters","Eq"]
["Absorbed Dose","Dose","ConcWat  × Amnt ÷ BW"]
[null,"Central ",{"$f":"C7*C$16/C$11","v":1.2808985621731558E-3},"mg/kg","Eq"]
[null,"Lower ",{"$f":"C8*C$16/C$11","v":1.26582916732406E-5},"mg/kg","Eq"]
[null,"Upper ",{"$f":"C9*C$16/C$11","v":5.1235942486926233E-3},"mg/kg","Eq"]

{"sheet":"F02c","index":35,"n_rows":20,"n_cols":5,"rows_kept":20,"cut":false,"hidden":false,"merged":[[16,0,19,0],[0,0,0,4],[1,1,1,3],[2,1,2,3],[5,0,8,0],[11,0,13,0],[14,0,15,0]]}
["Consumption of contaminated water by Mammal, carnivorous, Accidental Spill "]
["Short Title","Accidental Spill",null,null,"WatAlloV6"]
["Receptor","Mammal, carnivorous"]
["Duration","Acute",null,null,"Scenario parameter"]
["Parameter/Assumption","Code / Range","Equation/   Value","Units","Reference/Designation"]
["Concentration in water","ConcWat"]
[null,"Central ",{"$f":"B04b!Acute_C","v":1.180553145493035E-2},"mg/L","='B04b'!Acute_C"]
[null,"Lower ",{"$f":"B04b!Acute_L","v":1.166664284957823E-4},null,"='B04b'!Acute_L"]
[null,"Upper ",{"$f":"B04b!Acute_U","v":4.7222125819721399E-2},null,"='B04b'!Acute_U"]
["Receptor"]
["Body weight","BW",{"$f":"A02b!$C$47","v":5},"kg","U.S. EPA/ORD 1993"]
["Allometric coefficients forwater consumption per day in liters and BW in kilograms"]
[null,"alpha",{"$f":"A02b!$C$50","v":9.9000000000000005E-2},null,"U.S. EPA/ORD 1993"]
[null,"beta",{"$f":"A02b!$C$51","v":0.9},null,"U.S. EPA/ORD 1993"]
["Amount of water consumed per day",null,"Amnt = alpha BW beta"]
[null,"Amnt",{"$f":"C13*(C11^C14)","v":0.42141326164778842},"liters","Eq"]
["Absorbed Dose","Dose","ConcWat  × Amnt ÷ BW"]
[null,"Central ",{"$f":"C7*C$16/C$11","v":9.9500150318155211E-4},"mg/kg","Eq"]
[null,"Lower ",{"$f":"C8*C$16/C$11","v":9.8329560314412211E-6},"mg/kg","Eq"]
[null,"Upper ",{"$f":"C9*C$16/C$11","v":3.9800060127262085E-3},"mg/kg","Eq"]

{"sheet":"F02d","index":36,"n_rows":20,"n_cols":5,"rows_kept":20,"cut":false,"hidden":false,"merged":[[16,0,19,0],[0,0,0,4],[1,1,1,3],[2,1,2,3],[5,0,8,0],[11,0,13,0],[14,0,15,0]]}
["Consumption of contaminated water by Mammal, large, Accidental Spill "]
["Short Title","Accidental Spill",null,null,"WatAlloV6"]
["Receptor","Mammal, large"]
["Duration","Acute",null,null,"Scenario parameter"]
["Parameter/Assumption","Code / Range","Equation/   Value","Units","Reference/Designation"]
["Concentration in water","ConcWat"]
[null,"Central ",{"$f":"B04b!Acute_C","v":1.180553145493035E-2},"mg/L","='B04b'!Acute_C"]
[null,"Lower ",{"$f":"B04b!Acute_L","v":1.166664284957823E-4},null,"='B04b'!Acute_L"]
[null,"Upper ",{"$f":"B04b!Acute_U","v":4.7222125819721399E-2},null,"='B04b'!Acute_U"]
["Receptor"]
["Body weight","BW",{"$f":"A02b!$C$61","v":70},"kg","Default"]
["Allometric coefficients forwater consumption per day in liters and BW in kilograms"]
[null,"alpha",{"$f":"A02b!$C$64","v":9.9000000000000005E-2},null,"U.S. EPA/ORD 1993"]
[null,"beta",{"$f":"A02b!$C$65","v":0.9},null,"U.S. EPA/ORD 1993"]
["Amount of water consumed per day",null,"Amnt = alpha BW beta"]
[null,"Amnt",{"$f":"C13*(C11^C14)","v":4.5313064115862725},"liters","Eq"]
["Absorbed Dose","Dose","ConcWat  × Amnt ÷ BW"]
[null,"Central ",{"$f":"C7*C$16/C$11","v":7.6420686248441876E-4},"mg/kg","Eq"]
[null,"Lower ",{"$f":"C8*C$16/C$11","v":7.5521619351401399E-6},"mg/kg","Eq"]
[null,"Upper ",{"$f":"C9*C$16/C$11","v":3.056827449937675E-3},"mg/kg","Eq"]

{"sheet":"F03a","index":37,"n_rows":50,"n_cols":5,"rows_kept":50,"cut":false,"hidden":false,"merged":[[7,0,10,0],[0,0,0,4],[1,1,1,3],[2,1,2,3],[3,1,3,3],[4,1,4,3],[36,0,39,0],[41,0,44,0],[45,0,48,0],[12,0,15,0],[16,0,19,0],[22,0,24,0],[27,0,28,0],[30,0,31,0],[32,0,33,0]]}
["Acute scenario for the consumption of Contaminated Fish (Accidental Spill) by Mammal, large carnivorous "]
["Short Title","Fish consumption, accidental spill",null,null,"FishKcalV6"]
["Predator","Mammal, large carnivorous"]
["Food Item (Prey)","Fish"]
["Duration","Acute",null,null,"Scenario parameter"]
["Parameter/Assumption","Code / Range","Equation/   Value","Units","Reference/Designation"]
["Water"]
["Concentration in water","ConcWat"]
[null,"Central ",{"$f":"B04b!Acute_C","v":1.180553145493035E-2},"mg/L","='B04b'!Acute_C"]
[null,"Lower ",{"$f":"B04b!Acute_L","v":1.166664284957823E-4},null,"='B04b'!Acute_L"]
[null,"Upper ",{"$f":"B04b!Acute_U","v":4.7222125819721399E-2},null,"='B04b'!Acute_U"]
["Fish"]
["Bioconcentration factor","BCF"]
[null,"Central ",{"$f":"'B01'!$C$6","v":1},"L/kg"]
[null,"Lower ",{"$f":"'B01'!$C$6","v":1}]
[null,"Upper ",{"$f":"'B01'!$C$6","v":1}]
["Concentration in fish","ConcFish","ConcWat × BCF"]
[null,"Central ",{"$f":"C9*C14","v":1.180553145493035E-2},"mg/kg","Eq"]
[null,"Lower ",{"$f":"C10*C15","v":1.166664284957823E-4},null,"Eq"]
[null,"Upper ",{"$f":"C11*C16","v":4.7222125819721399E-2},null,"Eq"]
["Receptor"]
["Body weight","BW",{"$f":"A02b!$C$52","v":70},"kg","Reid 2006"]
["Allometric coefficients for caloric requirement per day in kilocalories and BW in grams"]
[null,"alpha",{"$f":"A02b!$C$53","v":0.61670000000000003},null,"U.S. EPA/ORD 1993"]
[null,"beta",{"$f":"A02b!$C$54","v":0.86199999999999999},null,"U.S. EPA/ORD 1993"]
["Caloric requirement per day","KR",{"$f":"C24*(C22*1000)^C25","v":9258.6668828796119},"kcal/day","Eq"]
["Caloric content of commodity (dry weight)","KCD",{"$f":"'A03'!$E$59","v":4.47},"kcal/gdw [Note 1]","U.S. EPA/ORD 1993"]
["Food consumed per day (dry weight)","AmntDry"," = KR ÷ KCD"]
[null,null,{"$f":"C26/C27","v":2071.2901303981234},"gdry/day","Eq"]
["Water content of vegetation as a proportion","PropWater",{"$f":"'A03'!$E$60","v":0.7},"gwater/gfood","Ali et al. 2005"]
["Dry weight content of vegetation as a proportion","PropDry"," = 1-PropWater"]
[null,null,{"$f":"1-C30","v":0.30000000000000004},"gdry/gfood","Eq"]
["Amount of fish consumed per day,  wet weight","AmntFish"," = (AmntDry ÷ PropDry) ÷ (1000g/kg)"]
[null,"Central ",{"$f":"(C29/C32)/1000","v":6.90430043466041},"kgfood/day","Eq"]
[null,"Lower ",{"$f":"C34*0.3","v":2.0712901303981228},"Note 1","Eq"]
[null,"Upper ",{"$f":"C34*1.7","v":11.737310738922696},"Note 1","Eq"]
["Proportion of diet that is contaminated","Prop"]
[null,"Central ",0.3,"Unitless","Scenario parameter"]
[null,"Lower ",0.1,null,"Scenario parameter"]
[null,"Upper ",1,null,"Scenario parameter"]
["Dose"]
["Toxic Equivalency Factor for formulation:  (See risk assessment if this has a value other than 1.)","TEF"]
[null,"Central ",{"$f":"'A01'!C$35","v":1},"Unitless","Worksheet A01"]
[null,"Lower ",{"$f":"'A01'!C$36","v":1},"Note 2","Worksheet A01"]
[null,"Upper ",{"$f":"'A01'!C$37","v":1},"Note 2","Worksheet A01"]
["Dose","Dose","= ConcFish × AmntFish × Prop ÷ BW"]
[null,"Central ",{"$f":"C18*C34*C38/C$22","v":3.4932401123859754E-4},"mg/kg","Eq"]
[null,"Lower ",{"$f":"C19*C35*C39/C$22","v":3.4521431698873176E-7},"mg/kg","Eq"]
[null,"Upper ",7.9180109214082115E-3,"mg/kg","Eq"]
[null,null,null,null,"FishKcalV6"]

{"sheet":"F03b","index":38,"n_rows":50,"n_cols":5,"rows_kept":50,"cut":false,"hidden":false,"merged":[[7,0,10,0],[0,0,0,4],[1,1,1,3],[2,1,2,3],[3,1,3,3],[4,1,4,3],[36,0,39,0],[41,0,44,0],[45,0,48,0],[12,0,15,0],[16,0,19,0],[22,0,24,0],[27,0,28,0],[30,0,31,0],[32,0,33,0]]}
["Acute scenario for the consumption of Contaminated Fish (Accidental Spill) by Mammal, carnivorous "]
["Short Title","Fish consumption, accidental spill",null,null,"FishKcalV6"]
["Predator","Mammal, carnivorous"]
["Food Item (Prey)","Fish"]
["Duration","Acute",null,null,"Scenario parameter"]
["Parameter/Assumption","Code / Range","Equation/   Value","Units","Reference/Designation"]
["Water"]
["Concentration in water","ConcWat"]
[null,"Central ",{"$f":"B04b!Acute_C","v":1.180553145493035E-2},"mg/L","='B04b'!Acute_C"]
[null,"Lower ",{"$f":"B04b!Acute_L","v":1.166664284957823E-4},null,"='B04b'!Acute_L"]
[null,"Upper ",{"$f":"B04b!Acute_U","v":4.7222125819721399E-2},null,"='B04b'!Acute_U"]
["Fish"]
["Bioconcentration factor","BCF"]
[null,"Central ",{"$f":"'B01'!$C$6","v":1},"L/kg"]
[null,"Lower ",{"$f":"'B01'!$C$6","v":1}]
[null,"Upper ",{"$f":"'B01'!$C$6","v":1}]
["Concentration in fish","ConcFish","ConcWat × BCF"]
[null,"Central ",{"$f":"C9*C14","v":1.180553145493035E-2},"mg/kg","Eq"]
[null,"Lower ",{"$f":"C10*C15","v":1.166664284957823E-4},null,"Eq"]
[null,"Upper ",{"$f":"C11*C16","v":4.7222125819721399E-2},null,"Eq"]
["Receptor"]
["Body weight","BW",{"$f":"A02b!$C$47","v":5},"kg","U.S. EPA/ORD 1993"]
["Allometric coefficients for caloric requirement per day in kilocalories and BW in grams"]
[null,"alpha",{"$f":"A02b!$C$48","v":0.61670000000000003},null,"U.S. EPA/ORD 1993"]
[null,"beta",{"$f":"A02b!$C$49","v":0.86199999999999999},null,"U.S. EPA/ORD 1993"]
["Caloric requirement per day","KR",{"$f":"C24*(C22*1000)^C25","v":951.88852658889334},"kcal/day","Eq"]
["Caloric content of commodity (dry weight)","KCD",{"$f":"'A03'!$E$59","v":4.47},"kcal/gdw [Note 1]","U.S. EPA/ORD 1993"]
["Food consumed per day (dry weight)","AmntDry"," = KR ÷ KCD"]
[null,null,{"$f":"C26/C27","v":212.95045337559137},"gdry/day","Eq"]
["Water content of vegetation as a proportion","PropWater",{"$f":"'A03'!$E$60","v":0.7},"gwater/gfood","Ali et al. 2005"]
["Dry weight content of vegetation as a proportion","PropDry"," = 1-PropWater"]
[null,null,{"$f":"1-C30","v":0.30000000000000004},"gdry/gfood","Eq"]
["Amount of fish consumed per day,  wet weight","AmntFish"," = (AmntDry ÷ PropDry) ÷ (1000g/kg)"]
[null,"Central ",{"$f":"(C29/C32)/1000","v":0.70983484458530455},"kgfood/day","Eq"]
[null,"Lower ",{"$f":"C34*0.3","v":0.21295045337559135},"Note 1","Eq"]
[null,"Upper ",{"$f":"C34*1.7","v":1.2067192357950176},"Note 1","Eq"]
["Proportion of diet that is contaminated","Prop"]
[null,"Central ",0.3,"Unitless","Scenario parameter"]
[null,"Lower ",0.1,null,"Scenario parameter"]
[null,"Upper ",1,null,"Scenario parameter"]
["Dose"]
["Toxic Equivalency Factor for formulation:  (See risk assessment if this has a value other than 1.)","TEF"]
[null,"Central ",{"$f":"'A01'!C$35","v":1},"Unitless","Worksheet A01"]
[null,"Lower ",{"$f":"'A01'!C$36","v":1},"Note 2","Worksheet A01"]
[null,"Upper ",{"$f":"'A01'!C$37","v":1},"Note 2","Worksheet A01"]
["Dose","Dose","= ConcFish × AmntFish × Prop ÷ BW"]
[null,"Central ",{"$f":"C18*C34*C38/C$22","v":5.027986551334445E-4},"mg/kg","Eq"]
[null,"Lower ",{"$f":"C19*C35*C39/C$22","v":4.9688337683775699E-7},"mg/kg","Eq"]
[null,"Upper ",1.1396769516358075E-2,"mg/kg","Eq"]
[null,null,null,null,"FishKcalV6"]

{"sheet":"F03c","index":39,"n_rows":50,"n_cols":5,"rows_kept":50,"cut":false,"hidden":false,"merged":[[7,0,10,0],[0,0,0,4],[1,1,1,3],[2,1,2,3],[3,1,3,3],[4,1,4,3],[36,0,39,0],[41,0,44,0],[45,0,48,0],[12,0,15,0],[16,0,19,0],[22,0,24,0],[27,0,28,0],[30,0,31,0],[32,0,33,0]]}
["Acute scenario for the consumption of Contaminated Fish (Accidental Spill) by Bird, piscivorous "]
["Short Title","Fish consumption, accidental spill",null,null,"FishKcalV6"]
["Predator","Bird, piscivorous"]
["Food Item (Prey)","Fish"]
["Duration","Acute",null,null,"Scenario parameter"]
["Parameter/Assumption","Code / Range","Equation/   Value","Units","Reference/Designation"]
["Water"]
["Concentration in water","ConcWat"]
[null,"Central ",{"$f":"B04b!Acute_C","v":1.180553145493035E-2},"mg/L","='B04b'!Acute_C"]
[null,"Lower ",{"$f":"B04b!Acute_L","v":1.166664284957823E-4},null,"='B04b'!Acute_L"]
[null,"Upper ",{"$f":"B04b!Acute_U","v":4.7222125819721399E-2},null,"='B04b'!Acute_U"]
["Fish"]
["Bioconcentration factor","BCF"]
[null,"Central ",{"$f":"'B01'!$C$6","v":1},"L/kg"]
[null,"Lower ",{"$f":"'B01'!$C$6","v":1}]
[null,"Upper ",{"$f":"'B01'!$C$6","v":1}]
["Concentration in fish","ConcFish","ConcWat × BCF"]
[null,"Central ",{"$f":"C9*C14","v":1.180553145493035E-2},"mg/kg","Eq"]
[null,"Lower ",{"$f":"C10*C15","v":1.166664284957823E-4},null,"Eq"]
[null,"Upper ",{"$f":"C11*C16","v":4.7222125819721399E-2},null,"Eq"]
["Receptor"]
["Body weight","BW",{"$f":"A02b!$C$24","v":2.4},"kg","Sibley 2000"]
["Allometric coefficients for caloric requirement per day in kilocalories and BW in grams"]
[null,"alpha",{"$f":"A02b!$C$27","v":1.9159999999999999},null,"U.S. EPA/ORD 1993"]
[null,"beta",{"$f":"A02b!$C$28","v":0.70399999999999996},null,"U.S. EPA/ORD 1993"]
["Caloric requirement per day","KR",{"$f":"C24*(C22*1000)^C25","v":459.26591923752829},"kcal/day","Eq"]
["Caloric content of commodity (dry weight)","KCD",{"$f":"'A03'!$E$36","v":3.87},"kcal/gdw [Note 1]","U.S. EPA/ORD 1993"]
["Food consumed per day (dry weight)","AmntDry"," = KR ÷ KCD"]
[null,null,{"$f":"C26/C27","v":118.67336414406415},"gdry/day","Eq"]
["Water content of vegetation as a proportion","PropWater",{"$f":"'A03'!$E$37","v":0.7},"gwater/gfood","Ali et al. 2005"]
["Dry weight content of vegetation as a proportion","PropDry"," = 1-PropWater"]
[null,null,{"$f":"1-C30","v":0.30000000000000004},"gdry/gfood","Eq"]
["Amount of fish consumed per day,  wet weight","AmntFish"," = (AmntDry ÷ PropDry) ÷ (1000g/kg)"]
[null,"Central ",{"$f":"(C29/C32)/1000","v":0.39557788048021375},"kgfood/day","Eq"]
[null,"Lower ",{"$f":"C34*0.3","v":0.11867336414406413},"Note 1","Eq"]
[null,"Upper ",{"$f":"C34*1.7","v":0.67248239681636335},"Note 1","Eq"]
["Proportion of diet that is contaminated","Prop"]
[null,"Central ",0.3,"Unitless","Scenario parameter"]
[null,"Lower ",0.1,null,"Scenario parameter"]
[null,"Upper ",1,null,"Scenario parameter"]
["Dose"]
["Toxic Equivalency Factor for formulation:  (See risk assessment if this has a value other than 1.)","TEF"]
[null,"Central ",{"$f":"'A01'!C$35","v":1},"Unitless","Worksheet A01"]
[null,"Lower ",{"$f":"'A01'!C$36","v":1},"Note 2","Worksheet A01"]
[null,"Upper ",{"$f":"'A01'!C$37","v":1},"Note 2","Worksheet A01"]
["Dose","Dose","= ConcFish × AmntFish × Prop ÷ BW"]
[null,"Central ",{"$f":"C18*C34*C38/C$22","v":5.8375088886048019E-4},"mg/kg","Eq"]
[null,"Lower ",{"$f":"C19*C35*C39/C$22","v":5.7688323134447473E-7},"mg/kg","Eq"]
[null,"Upper ",1.3231686814170885E-2,"mg/kg","Eq"]
[null,null,null,null,"FishKcalV6"]

{"sheet":"F08a","index":40,"n_rows":20,"n_cols":5,"rows_kept":20,"cut":false,"hidden":false,"merged":[[16,0,19,0],[0,0,0,4],[1,1,1,3],[2,1,2,3],[5,0,8,0],[11,0,13,0],[14,0,15,0]]}
["Consumption of contaminated water by Mammal, small, Peak Concentrations "]
["Short Title","Peak Concentrations",null,null,"WatAlloV6"]
["Receptor","Mammal, small"]
["Duration","Acute",null,null,"Scenario parameter"]
["Parameter/Assumption","Code / Range","Equation/   Value","Units","Reference/Designation"]
["Concentration in water","ConcWat"]
[null,"Central ",{"$f":"B04a!Acute_C","v":1.9600000000000002E-4},"mg/L","='B04a'!Acute_C"]
[null,"Lower ",{"$f":"B04a!Acute_L","v":5.6000000000000004E-7},null,"='B04a'!Acute_L"]
[null,"Upper ",{"$f":"B04a!Acute_U","v":1.9600000000000004E-3},null,"='B04a'!Acute_U"]
["Receptor"]
["Body weight","BW",{"$f":"A02b!$C$71","v":0.02},"kg","Default"]
["Allometric coefficients forwater consumption per day in liters and BW in kilograms"]
[null,"alpha",{"$f":"A02b!$C$79","v":9.9000000000000005E-2},null,"U.S. EPA/ORD 1993"]
[null,"beta",{"$f":"A02b!$C$80","v":0.9},null,"U.S. EPA/ORD 1993"]
["Amount of water consumed per day",null,"Amnt = alpha BW beta"]
[null,"Amnt",{"$f":"C13*(C11^C14)","v":2.9279401205240612E-3},"liters","Eq"]
["Absorbed Dose","Dose","ConcWat  × Amnt ÷ BW"]
[null,"Central ",{"$f":"C7*C$16/C$11","v":2.8693813181135802E-5},"mg/kg","Eq"]
[null,"Lower ",{"$f":"C8*C$16/C$11","v":8.1982323374673715E-8},"mg/kg","Eq"]
[null,"Upper ",{"$f":"C9*C$16/C$11","v":2.8693813181135803E-4},"mg/kg","Eq"]

{"sheet":"F08b","index":41,"n_rows":20,"n_cols":5,"rows_kept":20,"cut":false,"hidden":false,"merged":[[16,0,19,0],[0,0,0,4],[1,1,1,3],[2,1,2,3],[5,0,8,0],[11,0,13,0],[14,0,15,0]]}
["Consumption of contaminated water by Mammal, 400 g, Peak Concentrations "]
["Short Title","Peak Concentrations",null,null,"WatAlloV6"]
["Receptor","Mammal, 400 g"]
["Duration","Acute",null,null,"Scenario parameter"]
["Parameter/Assumption","Code / Range","Equation/   Value","Units","Reference/Designation"]
["Concentration in water","ConcWat"]
[null,"Central ",{"$f":"B04a!Acute_C","v":1.9600000000000002E-4},"mg/L","='B04a'!Acute_C"]
[null,"Lower ",{"$f":"B04a!Acute_L","v":5.6000000000000004E-7},null,"='B04a'!Acute_L"]
[null,"Upper ",{"$f":"B04a!Acute_U","v":1.9600000000000004E-3},null,"='B04a'!Acute_U"]
["Receptor"]
["Body weight","BW",{"$f":"A02b!$C$40","v":0.4},"kg","Default"]
["Allometric coefficients forwater consumption per day in liters and BW in kilograms"]
[null,"alpha",{"$f":"A02b!$C$45","v":9.9000000000000005E-2},null,"U.S. EPA/ORD 1993"]
[null,"beta",{"$f":"A02b!$C$46","v":0.9},null,"U.S. EPA/ORD 1993"]
["Amount of water consumed per day",null,"Amnt = alpha BW beta"]
[null,"Amnt",{"$f":"C13*(C11^C14)","v":4.3399945764854612E-2},"liters","Eq"]
["Absorbed Dose","Dose","ConcWat  × Amnt ÷ BW"]
[null,"Central ",{"$f":"C7*C$16/C$11","v":2.1265973424778758E-5},"mg/kg","Eq"]
[null,"Lower ",{"$f":"C8*C$16/C$11","v":6.0759924070796455E-8},"mg/kg","Eq"]
[null,"Upper ",{"$f":"C9*C$16/C$11","v":2.1265973424778765E-4},"mg/kg","Eq"]

{"sheet":"F08c","index":42,"n_rows":20,"n_cols":5,"rows_kept":20,"cut":false,"hidden":false,"merged":[[16,0,19,0],[0,0,0,4],[1,1,1,3],[2,1,2,3],[5,0,8,0],[11,0,13,0],[14,0,15,0]]}
["Consumption of contaminated water by Mammal, carnivorous, Peak Concentrations "]
["Short Title","Peak Concentrations",null,null,"WatAlloV6"]
["Receptor","Mammal, carnivorous"]
["Duration","Acute",null,null,"Scenario parameter"]
["Parameter/Assumption","Code / Range","Equation/   Value","Units","Reference/Designation"]
["Concentration in water","ConcWat"]
[null,"Central ",{"$f":"B04a!Acute_C","v":1.9600000000000002E-4},"mg/L","='B04a'!Acute_C"]
[null,"Lower ",{"$f":"B04a!Acute_L","v":5.6000000000000004E-7},null,"='B04a'!Acute_L"]
[null,"Upper ",{"$f":"B04a!Acute_U","v":1.9600000000000004E-3},null,"='B04a'!Acute_U"]
["Receptor"]
["Body weight","BW",{"$f":"A02b!$C$47","v":5},"kg","U.S. EPA/ORD 1993"]
["Allometric coefficients forwater consumption per day in liters and BW in kilograms"]
[null,"alpha",{"$f":"A02b!$C$50","v":9.9000000000000005E-2},null,"U.S. EPA/ORD 1993"]
[null,"beta",{"$f":"A02b!$C$51","v":0.9},null,"U.S. EPA/ORD 1993"]
["Amount of water consumed per day",null,"Amnt = alpha BW beta"]
[null,"Amnt",{"$f":"C13*(C11^C14)","v":0.42141326164778842},"liters","Eq"]
["Absorbed Dose","Dose","ConcWat  × Amnt ÷ BW"]
[null,"Central ",{"$f":"C7*C$16/C$11","v":1.6519399856593307E-5},"mg/kg","Eq"]
[null,"Lower ",{"$f":"C8*C$16/C$11","v":4.7198285304552303E-8},"mg/kg","Eq"]
[null,"Upper ",{"$f":"C9*C$16/C$11","v":1.651939985659331E-4},"mg/kg","Eq"]

{"sheet":"F08d","index":43,"n_rows":20,"n_cols":5,"rows_kept":20,"cut":false,"hidden":false,"merged":[[16,0,19,0],[0,0,0,4],[1,1,1,3],[2,1,2,3],[5,0,8,0],[11,0,13,0],[14,0,15,0]]}
["Consumption of contaminated water by Mammal, large, Peak Concentrations "]
["Short Title","Peak Concentrations",null,null,"WatAlloV6"]
["Receptor","Mammal, large"]
["Duration","Acute",null,null,"Scenario parameter"]
["Parameter/Assumption","Code / Range","Equation/   Value","Units","Reference/Designation"]
["Concentration in water","ConcWat"]
[null,"Central ",{"$f":"B04a!Acute_C","v":1.9600000000000002E-4},"mg/L","='B04a'!Acute_C"]
[null,"Lower ",{"$f":"B04a!Acute_L","v":5.6000000000000004E-7},null,"='B04a'!Acute_L"]
[null,"Upper ",{"$f":"B04a!Acute_U","v":1.9600000000000004E-3},null,"='B04a'!Acute_U"]
["Receptor"]
["Body weight","BW",{"$f":"A02b!$C$61","v":70},"kg","Default"]
["Allometric coefficients forwater consumption per day in liters and BW in kilograms"]
[null,"alpha",{"$f":"A02b!$C$64","v":9.9000000000000005E-2},null,"U.S. EPA/ORD 1993"]
[null,"beta",{"$f":"A02b!$C$65","v":0.9},null,"U.S. EPA/ORD 1993"]
["Amount of water consumed per day",null,"Amnt = alpha BW beta"]
[null,"Amnt",{"$f":"C13*(C11^C14)","v":4.5313064115862725},"liters","Eq"]
["Absorbed Dose","Dose","ConcWat  × Amnt ÷ BW"]
[null,"Central ",{"$f":"C7*C$16/C$11","v":1.2687657952441564E-5},"mg/kg","Eq"]
[null,"Lower ",{"$f":"C8*C$16/C$11","v":3.6250451292690182E-8},"mg/kg","Eq"]
[null,"Upper ",{"$f":"C9*C$16/C$11","v":1.2687657952441565E-4},"mg/kg","Eq"]

{"sheet":"F11a","index":44,"n_rows":50,"n_cols":5,"rows_kept":50,"cut":false,"hidden":false,"merged":[[7,0,10,0],[0,0,0,4],[1,1,1,3],[2,1,2,3],[3,1,3,3],[4,1,4,3],[36,0,39,0],[41,0,44,0],[45,0,48,0],[12,0,15,0],[16,0,19,0],[22,0,24,0],[27,0,28,0],[30,0,31,0],[32,0,33,0]]}
["Acute scenario for the consumption of Contaminated Fish (Peak) by Mammal, large carnivorous "]
["Short Title","Fish consumption, accidental spill",null,null,"FishKcalV6"]
["Predator","Mammal, large carnivorous"]
["Food Item (Prey)","Fish"]
["Duration","Acute",null,null,"Scenario parameter"]
["Parameter/Assumption","Code / Range","Equation/   Value","Units","Reference/Designation"]
["Water"]
["Concentration in water","ConcWat"]
[null,"Central ",{"$f":"B04a!Acute_C","v":1.9600000000000002E-4},"mg/L","='B04a'!Acute_C"]
[null,"Lower ",{"$f":"B04a!Acute_L","v":5.6000000000000004E-7},null,"='B04a'!Acute_L"]
[null,"Upper ",{"$f":"B04a!Acute_U","v":1.9600000000000004E-3},null,"='B04a'!Acute_U"]
["Fish"]
["Bioconcentration factor","BCF"]
[null,"Central ",{"$f":"'B01'!$C$6","v":1},"L/kg"]
[null,"Lower ",{"$f":"'B01'!$C$6","v":1}]
[null,"Upper ",{"$f":"'B01'!$C$6","v":1}]
["Concentration in fish","ConcFish","ConcWat × BCF"]
[null,"Central ",{"$f":"C9*C14","v":1.9600000000000002E-4},"mg/kg","Eq"]
[null,"Lower ",{"$f":"C10*C15","v":5.6000000000000004E-7},null,"Eq"]
[null,"Upper ",{"$f":"C11*C16","v":1.9600000000000004E-3},null,"Eq"]
["Receptor"]
["Body weight","BW",{"$f":"A02b!$C$52","v":70},"kg","Reid 2006"]
["Allometric coefficients for caloric requirement per day in kilocalories and BW in grams"]
[null,"alpha",{"$f":"A02b!$C$53","v":0.61670000000000003},null,"U.S. EPA/ORD 1993"]
[null,"beta",{"$f":"A02b!$C$54","v":0.86199999999999999},null,"U.S. EPA/ORD 1993"]
["Caloric requirement per day","KR",{"$f":"C24*(C22*1000)^C25","v":9258.6668828796119},"kcal/day","Eq"]
["Caloric content of commodity (dry weight)","KCD",{"$f":"'A03'!$E$59","v":4.47},"kcal/gdw [Note 1]","U.S. EPA/ORD 1993"]
["Food consumed per day (dry weight)","AmntDry"," = KR ÷ KCD"]
[null,null,{"$f":"C26/C27","v":2071.2901303981234},"gdry/day","Eq"]
["Water content of vegetation as a proportion","PropWater",{"$f":"'A03'!$E$60","v":0.7},"gwater/gfood","Ali et al. 2005"]
["Dry weight content of vegetation as a proportion","PropDry"," = 1-PropWater"]
[null,null,{"$f":"1-C30","v":0.30000000000000004},"gdry/gfood","Eq"]
["Amount of fish consumed per day,  wet weight","AmntFish"," = (AmntDry ÷ PropDry) ÷ (1000g/kg)"]
[null,"Central ",{"$f":"(C29/C32)/1000","v":6.90430043466041},"kgfood/day","Eq"]
[null,"Lower ",{"$f":"C34*0.3","v":2.0712901303981228},"Note 1","Eq"]
[null,"Upper ",{"$f":"C34*1.7","v":11.737310738922696},"Note 1","Eq"]
["Proportion of diet that is contaminated","Prop"]
[null,"Central ",0.3,"Unitless","Scenario parameter"]
[null,"Lower ",0.1,null,"Scenario parameter"]
[null,"Upper ",1,null,"Scenario parameter"]
["Dose"]
["Toxic Equivalency Factor for formulation:  (See risk assessment if this has a value other than 1.)","TEF"]
[null,"Central ",{"$f":"'A01'!C$35","v":1},"Unitless","Worksheet A01"]
[null,"Lower ",{"$f":"'A01'!C$36","v":1},"Note 2","Worksheet A01"]
[null,"Upper ",{"$f":"'A01'!C$37","v":1},"Note 2","Worksheet A01"]
["Dose","Dose","= ConcFish × AmntFish × Prop ÷ BW"]
[null,"Central ",{"$f":"C18*C34*C38/C$22","v":5.7996123651147444E-6},"mg/kg","Eq"]
[null,"Lower ",{"$f":"C19*C35*C39/C$22","v":1.6570321043184985E-9},"mg/kg","Eq"]
[null,"Upper ",3.2864470068983559E-4,"mg/kg","Eq"]
[null,null,null,null,"FishKcalV6"]

{"sheet":"F11b","index":45,"n_rows":50,"n_cols":5,"rows_kept":50,"cut":false,"hidden":false,"merged":[[7,0,10,0],[0,0,0,4],[1,1,1,3],[2,1,2,3],[3,1,3,3],[4,1,4,3],[36,0,39,0],[41,0,44,0],[45,0,48,0],[12,0,15,0],[16,0,19,0],[22,0,24,0],[27,0,28,0],[30,0,31,0],[32,0,33,0]]}
["Acute scenario for the consumption of Contaminated Fish (Peak) by Mammal, carnivorous "]
["Short Title","Fish consumption, accidental spill",null,null,"FishKcalV6"]
["Predator","Mammal, carnivorous"]
["Food Item (Prey)","Fish"]
["Duration","Acute",null,null,"Scenario parameter"]
["Parameter/Assumption","Code / Range","Equation/   Value","Units","Reference/Designation"]
["Water"]
["Concentration in water","ConcWat"]
[null,"Central ",{"$f":"B04a!Acute_C","v":1.9600000000000002E-4},"mg/L","='B04a'!Acute_C"]
[null,"Lower ",{"$f":"B04a!Acute_L","v":5.6000000000000004E-7},null,"='B04a'!Acute_L"]
[null,"Upper ",{"$f":"B04a!Acute_U","v":1.9600000000000004E-3},null,"='B04a'!Acute_U"]
["Fish"]
["Bioconcentration factor","BCF"]
[null,"Central ",{"$f":"'B01'!$C$6","v":1},"L/kg"]
[null,"Lower ",{"$f":"'B01'!$C$6","v":1}]
[null,"Upper ",{"$f":"'B01'!$C$6","v":1}]
["Concentration in fish","ConcFish","ConcWat × BCF"]
[null,"Central ",{"$f":"C9*C14","v":1.9600000000000002E-4},"mg/kg","Eq"]
[null,"Lower ",{"$f":"C10*C15","v":5.6000000000000004E-7},null,"Eq"]
[null,"Upper ",{"$f":"C11*C16","v":1.9600000000000004E-3},null,"Eq"]
["Receptor"]
["Body weight","BW",{"$f":"A02b!$C$47","v":5},"kg","U.S. EPA/ORD 1993"]
["Allometric coefficients for caloric requirement per day in kilocalories and BW in grams"]
[null,"alpha",{"$f":"A02b!$C$48","v":0.61670000000000003},null,"U.S. EPA/ORD 1993"]
[null,"beta",{"$f":"A02b!$C$49","v":0.86199999999999999},null,"U.S. EPA/ORD 1993"]
["Caloric requirement per day","KR",{"$f":"C24*(C22*1000)^C25","v":951.88852658889334},"kcal/day","Eq"]
["Caloric content of commodity (dry weight)","KCD",{"$f":"'A03'!$E$59","v":4.47},"kcal/gdw [Note 1]","U.S. EPA/ORD 1993"]
["Food consumed per day (dry weight)","AmntDry"," = KR ÷ KCD"]
[null,null,{"$f":"C26/C27","v":212.95045337559137},"gdry/day","Eq"]
["Water content of vegetation as a proportion","PropWater",{"$f":"'A03'!$E$60","v":0.7},"gwater/gfood","Ali et al. 2005"]
["Dry weight content of vegetation as a proportion","PropDry"," = 1-PropWater"]
[null,null,{"$f":"1-C30","v":0.30000000000000004},"gdry/gfood","Eq"]
["Amount of fish consumed per day,  wet weight","AmntFish"," = (AmntDry ÷ PropDry) ÷ (1000g/kg)"]
[null,"Central ",{"$f":"(C29/C32)/1000","v":0.70983484458530455},"kgfood/day","Eq"]
[null,"Lower ",{"$f":"C34*0.3","v":0.21295045337559135},"Note 1","Eq"]
[null,"Upper ",{"$f":"C34*1.7","v":1.2067192357950176},"Note 1","Eq"]
["Proportion of diet that is contaminated","Prop"]
[null,"Central ",0.3,"Unitless","Scenario parameter"]
[null,"Lower ",0.1,null,"Scenario parameter"]
[null,"Upper ",1,null,"Scenario parameter"]
["Dose"]
["Toxic Equivalency Factor for formulation:  (See risk assessment if this has a value other than 1.)","TEF"]
[null,"Central ",{"$f":"'A01'!C$35","v":1},"Unitless","Worksheet A01"]
[null,"Lower ",{"$f":"'A01'!C$36","v":1},"Note 2","Worksheet A01"]
[null,"Upper ",{"$f":"'A01'!C$37","v":1},"Note 2","Worksheet A01"]
["Dose","Dose","= ConcFish × AmntFish × Prop ÷ BW"]
[null,"Central ",{"$f":"C18*C34*C38/C$22","v":8.3476577723231815E-6},"mg/kg","Eq"]
[null,"Lower ",{"$f":"C19*C35*C39/C$22","v":2.3850450778066232E-9},"mg/kg","Eq"]
[null,"Upper ",4.7303394043164703E-4,"mg/kg","Eq"]
[null,null,null,null,"FishKcalV6"]

{"sheet":"F16a","index":46,"n_rows":20,"n_cols":5,"rows_kept":20,"cut":false,"hidden":false,"merged":[[16,0,19,0],[0,0,0,4],[1,1,1,3],[2,1,2,3],[5,0,8,0],[11,0,13,0],[14,0,15,0]]}
["Consumption of contaminated water by Mammal, small, Longer-term Concentrations "]
["Short Title","Longer-term Concentrations",null,null,"WatAlloV6"]
["Receptor","Mammal, small"]
["Duration","Chronic",null,null,"Scenario parameter"]
["Parameter/Assumption","Code / Range","Equation/   Value","Units","Reference/Designation"]
["Concentration in water","ConcWat"]
[null,"Central ",{"$f":"B04a!Chronic_C","v":1.4000000000000001E-5},"mg/L","='B04a'!Chronic_C"]
[null,"Lower ",{"$f":"B04a!Chronic_L","v":5.6000000000000005E-8},null,"='B04a'!Chronic_L"]
[null,"Upper ",{"$f":"B04a!Chronic_U","v":1.9600000000000002E-4},null,"='B04a'!Chronic_U"]
["Receptor"]
["Body weight","BW",{"$f":"A02b!$C$71","v":0.02},"kg","Default"]
["Allometric coefficients forwater consumption per day in liters and BW in kilograms"]
[null,"alpha",{"$f":"A02b!$C$79","v":9.9000000000000005E-2},null,"U.S. EPA/ORD 1993"]
[null,"beta",{"$f":"A02b!$C$80","v":0.9},null,"U.S. EPA/ORD 1993"]
["Amount of water consumed per day",null,"Amnt = alpha BW beta"]
[null,"Amnt",{"$f":"C13*(C11^C14)","v":2.9279401205240612E-3},"liters","Eq"]
["Absorbed Dose","Dose","ConcWat  × Amnt ÷ BW"]
[null,"Central ",{"$f":"C7*C$16/C$11","v":2.049558084366843E-6},"mg/kg","Eq"]
[null,"Lower ",{"$f":"C8*C$16/C$11","v":8.1982323374673721E-9},"mg/kg","Eq"]
[null,"Upper ",{"$f":"C9*C$16/C$11","v":2.8693813181135802E-5},"mg/kg","Eq"]

{"sheet":"F16b","index":47,"n_rows":20,"n_cols":5,"rows_kept":20,"cut":false,"hidden":false,"merged":[[16,0,19,0],[0,0,0,4],[1,1,1,3],[2,1,2,3],[5,0,8,0],[11,0,13,0],[14,0,15,0]]}
["Consumption of contaminated water by Mammal, 400 g, Longer-term Concentrations "]
["Short Title","Longer-term Concentrations",null,null,"WatAlloV6"]
["Receptor","Mammal, 400 g"]
["Duration","Chronic",null,null,"Scenario parameter"]
["Parameter/Assumption","Code / Range","Equation/   Value","Units","Reference/Designation"]
["Concentration in water","ConcWat"]
[null,"Central ",{"$f":"B04a!Chronic_C","v":1.4000000000000001E-5},"mg/L","='B04a'!Chronic_C"]
[null,"Lower ",{"$f":"B04a!Chronic_L","v":5.6000000000000005E-8},null,"='B04a'!Chronic_L"]
[null,"Upper ",{"$f":"B04a!Chronic_U","v":1.9600000000000002E-4},null,"='B04a'!Chronic_U"]
["Receptor"]
["Body weight","BW",{"$f":"A02b!$C$40","v":0.4},"kg","Default"]
["Allometric coefficients forwater consumption per day in liters and BW in kilograms"]
[null,"alpha",{"$f":"A02b!$C$45","v":9.9000000000000005E-2},null,"U.S. EPA/ORD 1993"]
[null,"beta",{"$f":"A02b!$C$46","v":0.9},null,"U.S. EPA/ORD 1993"]
["Amount of water consumed per day",null,"Amnt = alpha BW beta"]
[null,"Amnt",{"$f":"C13*(C11^C14)","v":4.3399945764854612E-2},"liters","Eq"]
["Absorbed Dose","Dose","ConcWat  × Amnt ÷ BW"]
[null,"Central ",{"$f":"C7*C$16/C$11","v":1.5189981017699116E-6},"mg/kg","Eq"]
[null,"Lower ",{"$f":"C8*C$16/C$11","v":6.0759924070796463E-9},"mg/kg","Eq"]
[null,"Upper ",{"$f":"C9*C$16/C$11","v":2.1265973424778758E-5},"mg/kg","Eq"]

{"sheet":"F16c","index":48,"n_rows":20,"n_cols":5,"rows_kept":20,"cut":false,"hidden":false,"merged":[[16,0,19,0],[0,0,0,4],[1,1,1,3],[2,1,2,3],[5,0,8,0],[11,0,13,0],[14,0,15,0]]}
["Consumption of contaminated water by Mammal, carnivorous, Longer-term Concentrations "]
["Short Title","Longer-term Concentrations",null,null,"WatAlloV6"]
["Receptor","Mammal, carnivorous"]
["Duration","Chronic",null,null,"Scenario parameter"]
["Parameter/Assumption","Code / Range","Equation/   Value","Units","Reference/Designation"]
["Concentration in water","ConcWat"]
[null,"Central ",{"$f":"B04a!Chronic_C","v":1.4000000000000001E-5},"mg/L","='B04a'!Chronic_C"]
[null,"Lower ",{"$f":"B04a!Chronic_L","v":5.6000000000000005E-8},null,"='B04a'!Chronic_L"]
[null,"Upper ",{"$f":"B04a!Chronic_U","v":1.9600000000000002E-4},null,"='B04a'!Chronic_U"]
["Receptor"]
["Body weight","BW",{"$f":"A02b!$C$47","v":5},"kg","U.S. EPA/ORD 1993"]
["Allometric coefficients forwater consumption per day in liters and BW in kilograms"]
[null,"alpha",{"$f":"A02b!$C$50","v":9.9000000000000005E-2},null,"U.S. EPA/ORD 1993"]
[null,"beta",{"$f":"A02b!$C$51","v":0.9},null,"U.S. EPA/ORD 1993"]
["Amount of water consumed per day",null,"Amnt = alpha BW beta"]
[null,"Amnt",{"$f":"C13*(C11^C14)","v":0.42141326164778842},"liters","Eq"]
["Absorbed Dose","Dose","ConcWat  × Amnt ÷ BW"]
[null,"Central ",{"$f":"C7*C$16/C$11","v":1.1799571326138076E-6},"mg/kg","Eq"]
[null,"Lower ",{"$f":"C8*C$16/C$11","v":4.7198285304552311E-9},"mg/kg","Eq"]
[null,"Upper ",{"$f":"C9*C$16/C$11","v":1.6519399856593307E-5},"mg/kg","Eq"]

{"sheet":"F16d","index":49,"n_rows":20,"n_cols":5,"rows_kept":20,"cut":false,"hidden":false,"merged":[[16,0,19,0],[0,0,0,4],[1,1,1,3],[2,1,2,3],[5,0,8,0],[11,0,13,0],[14,0,15,0]]}
["Consumption of contaminated water by Mammal, large, Longer-term Concentrations "]
["Short Title","Longer-term Concentrations",null,null,"WatAlloV6"]
["Receptor","Mammal, large"]
["Duration","Chronic",null,null,"Scenario parameter"]
["Parameter/Assumption","Code / Range","Equation/   Value","Units","Reference/Designation"]
["Concentration in water","ConcWat"]
[null,"Central ",{"$f":"B04a!Chronic_C","v":1.4000000000000001E-5},"mg/L","='B04a'!Chronic_C"]
[null,"Lower ",{"$f":"B04a!Chronic_L","v":5.6000000000000005E-8},null,"='B04a'!Chronic_L"]
[null,"Upper ",{"$f":"B04a!Chronic_U","v":1.9600000000000002E-4},null,"='B04a'!Chronic_U"]
["Receptor"]
["Body weight","BW",{"$f":"A02b!$C$61","v":70},"kg","Default"]
["Allometric coefficients forwater consumption per day in liters and BW in kilograms"]
[null,"alpha",{"$f":"A02b!$C$64","v":9.9000000000000005E-2},null,"U.S. EPA/ORD 1993"]
[null,"beta",{"$f":"A02b!$C$65","v":0.9},null,"U.S. EPA/ORD 1993"]
["Amount of water consumed per day",null,"Amnt = alpha BW beta"]
[null,"Amnt",{"$f":"C13*(C11^C14)","v":4.5313064115862725},"liters","Eq"]
["Absorbed Dose","Dose","ConcWat  × Amnt ÷ BW"]
[null,"Central ",{"$f":"C7*C$16/C$11","v":9.0626128231725466E-7},"mg/kg","Eq"]
[null,"Lower ",{"$f":"C8*C$16/C$11","v":3.625045129269018E-9},"mg/kg","Eq"]
[null,"Upper ",{"$f":"C9*C$16/C$11","v":1.2687657952441564E-5},"mg/kg","Eq"]

{"sheet":"F17a","index":50,"n_rows":50,"n_cols":5,"rows_kept":50,"cut":false,"hidden":false,"merged":[[7,0,10,0],[0,0,0,4],[1,1,1,3],[2,1,2,3],[3,1,3,3],[4,1,4,3],[36,0,39,0],[41,0,44,0],[45,0,48,0],[12,0,15,0],[16,0,19,0],[22,0,24,0],[27,0,28,0],[30,0,31,0],[32,0,33,0]]}
["Chronic scenario for the consumption of Contaminated Fish (Longer-term) by Mammal, large carnivorous "]
["Short Title","Fish consumption, accidental spill",null,null,"FishKcalV6"]
["Predator","Mammal, large carnivorous"]
["Food Item (Prey)","Fish"]
["Duration","Chronic",null,null,"Scenario parameter"]
["Parameter/Assumption","Code / Range","Equation/   Value","Units","Reference/Designation"]
["Water"]
["Concentration in water","ConcWat"]
[null,"Central ",{"$f":"B04a!Chronic_C","v":1.4000000000000001E-5},"mg/L","='B04a'!Chronic_C"]
[null,"Lower ",{"$f":"B04a!Chronic_L","v":5.6000000000000005E-8},null,"='B04a'!Chronic_L"]
[null,"Upper ",{"$f":"B04a!Chronic_U","v":1.9600000000000002E-4},null,"='B04a'!Chronic_U"]
["Fish"]
["Bioconcentration factor","BCF"]
[null,"Central ",{"$f":"'B01'!$C$6","v":1},"L/kg"]
[null,"Lower ",{"$f":"'B01'!$C$6","v":1}]
[null,"Upper ",{"$f":"'B01'!$C$6","v":1}]
["Concentration in fish","ConcFish","ConcWat × BCF"]
[null,"Central ",{"$f":"C9*C14","v":1.4000000000000001E-5},"mg/kg","Eq"]
[null,"Lower ",{"$f":"C10*C15","v":5.6000000000000005E-8},null,"Eq"]
[null,"Upper ",{"$f":"C11*C16","v":1.9600000000000002E-4},null,"Eq"]
["Receptor"]
["Body weight","BW",{"$f":"A02b!$C$52","v":70},"kg","Reid 2006"]
["Allometric coefficients for caloric requirement per day in kilocalories and BW in grams"]
[null,"alpha",{"$f":"A02b!$C$53","v":0.61670000000000003},null,"U.S. EPA/ORD 1993"]
[null,"beta",{"$f":"A02b!$C$54","v":0.86199999999999999},null,"U.S. EPA/ORD 1993"]
["Caloric requirement per day","KR",{"$f":"C24*(C22*1000)^C25","v":9258.6668828796119},"kcal/day","Eq"]
["Caloric content of commodity (dry weight)","KCD",{"$f":"'A03'!$E$59","v":4.47},"kcal/gdw [Note 1]","U.S. EPA/ORD 1993"]
["Food consumed per day (dry weight)","AmntDry"," = KR ÷ KCD"]
[null,null,{"$f":"C26/C27","v":2071.2901303981234},"gdry/day","Eq"]
["Water content of vegetation as a proportion","PropWater",{"$f":"'A03'!$E$60","v":0.7},"gwater/gfood","Ali et al. 2005"]
["Dry weight content of vegetation as a proportion","PropDry"," = 1-PropWater"]
[null,null,{"$f":"1-C30","v":0.30000000000000004},"gdry/gfood","Eq"]
["Amount of fish consumed per day,  wet weight","AmntFish"," = (AmntDry ÷ PropDry) ÷ (1000g/kg)"]
[null,"Central ",{"$f":"(C29/C32)/1000","v":6.90430043466041},"kgfood/day","Eq"]
[null,"Lower ",{"$f":"C34*0.3","v":2.0712901303981228},"Note 1","Eq"]
[null,"Upper ",{"$f":"C34*1.7","v":11.737310738922696},"Note 1","Eq"]
["Proportion of diet that is contaminated","Prop"]
[null,"Central ",0.3,"Unitless","Scenario parameter"]
[null,"Lower ",0.1,null,"Scenario parameter"]
[null,"Upper ",1,null,"Scenario parameter"]
["Dose"]
["Toxic Equivalency Factor for formulation:  (See risk assessment if this has a value other than 1.)","TEF"]
[null,"Central ",{"$f":"'A01'!C$35","v":1},"Unitless","Worksheet A01"]
[null,"Lower ",{"$f":"'A01'!C$36","v":1},"Note 2","Worksheet A01"]
[null,"Upper ",{"$f":"'A01'!C$37","v":1},"Note 2","Worksheet A01"]
["Dose","Dose","= ConcFish × AmntFish × Prop ÷ BW"]
[null,"Central ",{"$f":"C18*C34*C38/C$22","v":4.1425802607962464E-7},"mg/kg","Eq"]
[null,"Lower ",{"$f":"C19*C35*C39/C$22","v":1.6570321043184984E-10},"mg/kg","Eq"]
[null,"Upper ",3.2864470068983557E-5,"mg/kg","Eq"]
[null,null,null,null,"FishKcalV6"]

{"sheet":"F17b","index":51,"n_rows":50,"n_cols":5,"rows_kept":50,"cut":false,"hidden":false,"merged":[[7,0,10,0],[0,0,0,4],[1,1,1,3],[2,1,2,3],[3,1,3,3],[4,1,4,3],[36,0,39,0],[41,0,44,0],[45,0,48,0],[12,0,15,0],[16,0,19,0],[22,0,24,0],[27,0,28,0],[30,0,31,0],[32,0,33,0]]}
["Chronic scenario for the consumption of Contaminated Fish (Longer-term) by Mammal, carnivorous "]
["Short Title","Fish consumption, accidental spill",null,null,"FishKcalV6"]
["Predator","Mammal, carnivorous"]
["Food Item (Prey)","Fish"]
["Duration","Chronic",null,null,"Scenario parameter"]
["Parameter/Assumption","Code / Range","Equation/   Value","Units","Reference/Designation"]
["Water"]
["Concentration in water","ConcWat"]
[null,"Central ",{"$f":"B04a!Chronic_C","v":1.4000000000000001E-5},"mg/L","='B04a'!Chronic_C"]
[null,"Lower ",{"$f":"B04a!Chronic_L","v":5.6000000000000005E-8},null,"='B04a'!Chronic_L"]
[null,"Upper ",{"$f":"B04a!Chronic_U","v":1.9600000000000002E-4},null,"='B04a'!Chronic_U"]
["Fish"]
["Bioconcentration factor","BCF"]
[null,"Central ",{"$f":"'B01'!$C$6","v":1},"L/kg"]
[null,"Lower ",{"$f":"'B01'!$C$6","v":1}]
[null,"Upper ",{"$f":"'B01'!$C$6","v":1}]
["Concentration in fish","ConcFish","ConcWat × BCF"]
[null,"Central ",{"$f":"C9*C14","v":1.4000000000000001E-5},"mg/kg","Eq"]
[null,"Lower ",{"$f":"C10*C15","v":5.6000000000000005E-8},null,"Eq"]
[null,"Upper ",{"$f":"C11*C16","v":1.9600000000000002E-4},null,"Eq"]
["Receptor"]
["Body weight","BW",{"$f":"A02b!$C$47","v":5},"kg","U.S. EPA/ORD 1993"]
["Allometric coefficients for caloric requirement per day in kilocalories and BW in grams"]
[null,"alpha",{"$f":"A02b!$C$48","v":0.61670000000000003},null,"U.S. EPA/ORD 1993"]
[null,"beta",{"$f":"A02b!$C$49","v":0.86199999999999999},null,"U.S. EPA/ORD 1993"]
["Caloric requirement per day","KR",{"$f":"C24*(C22*1000)^C25","v":951.88852658889334},"kcal/day","Eq"]
["Caloric content of commodity (dry weight)","KCD",{"$f":"'A03'!$E$59","v":4.47},"kcal/gdw [Note 1]","U.S. EPA/ORD 1993"]
["Food consumed per day (dry weight)","AmntDry"," = KR ÷ KCD"]
[null,null,{"$f":"C26/C27","v":212.95045337559137},"gdry/day","Eq"]
["Water content of vegetation as a proportion","PropWater",{"$f":"'A03'!$E$60","v":0.7},"gwater/gfood","Ali et al. 2005"]
["Dry weight content of vegetation as a proportion","PropDry"," = 1-PropWater"]
[null,null,{"$f":"1-C30","v":0.30000000000000004},"gdry/gfood","Eq"]
["Amount of fish consumed per day,  wet weight","AmntFish"," = (AmntDry ÷ PropDry) ÷ (1000g/kg)"]
[null,"Central ",{"$f":"(C29/C32)/1000","v":0.70983484458530455},"kgfood/day","Eq"]
[null,"Lower ",{"$f":"C34*0.3","v":0.21295045337559135},"Note 1","Eq"]
[null,"Upper ",{"$f":"C34*1.7","v":1.2067192357950176},"Note 1","Eq"]
["Proportion of diet that is contaminated","Prop"]
[null,"Central ",0.3,"Unitless","Scenario parameter"]
[null,"Lower ",0.1,null,"Scenario parameter"]
[null,"Upper ",1,null,"Scenario parameter"]
["Dose"]
["Toxic Equivalency Factor for formulation:  (See risk assessment if this has a value other than 1.)","TEF"]
[null,"Central ",{"$f":"'A01'!C$35","v":1},"Unitless","Worksheet A01"]
[null,"Lower ",{"$f":"'A01'!C$36","v":1},"Note 2","Worksheet A01"]
[null,"Upper ",{"$f":"'A01'!C$37","v":1},"Note 2","Worksheet A01"]
["Dose","Dose","= ConcFish × AmntFish × Prop ÷ BW"]
[null,"Central ",{"$f":"C18*C34*C38/C$22","v":5.9626126945165588E-7},"mg/kg","Eq"]
[null,"Lower ",{"$f":"C19*C35*C39/C$22","v":2.3850450778066235E-10},"mg/kg","Eq"]
[null,"Upper ",4.7303394043164693E-5,"mg/kg","Eq"]
[null,null,null,null,"FishKcalV6"]

{"sheet":"G01a","index":52,"n_rows":71,"n_cols":14,"rows_kept":71,"cut":false,"hidden":false,"merged":[[2,5,3,5],[0,0,0,4],[1,2,1,4],[2,0,3,0],[2,1,3,1],[2,2,2,4]]}
["Summary of Exposure Assessments for the Mammals",null,null,null,null,"G01V6Mam"]
["Application Rate:",{"$f":"'A01'!ApRt_C","v":0.28000000000000003}," lb a.e./acre",null,null,"G01V6Mam"]
["Scenario","Receptor","mg/kg/day or mg/kg/event",null,null,"Detail Worksheet"]
[null,null,"Central","Lower","Upper",null,null,null,null,null,"Lower","Central","Upper"]
["Accidental Acute Exposures"]
["   Direct Spray",null,null,null,null,null,null,null,null,"SPRAY------------"]
["first-order absorption","Small mammal (20g)","No exposure assessment",null,null,null,null,null,null,"1st-Order Abs",{"$f":"IF(D7>0,  D7, \"\")","v":""},{"$f":"IF(ISERROR(C7-K7), \"\", C7-K7)","v":""},{"$f":"IF(ISERROR(E7-C7), \"\", E7-C7)","v":""},{"$f":"E7-SUM(K7:M7)","v":0}]
["100% absorption","Small mammal (20g)","No exposure assessment",null,null,null,null,null,null,"100% Abs.","","","",{"$f":"E8-SUM(K8:M8)","v":0}]
["   Contaminated Water",null,null,null,null,null,null,null,null,"SPILL--------------"]
["Spill","Small mammal (20g)",{"$f":"F02a!Dose_C","v":1.728294459549968E-3},{"$f":"F02a!Dose_L","v":1.7079615835552628E-5},{"$f":"F02a!Dose_U","v":6.9131778381998719E-3},"F02a",null,null,null,"Sm Mam",{"$f":"IF(D10>0,  D10, \"\")","v":1.7079615835552628E-5},{"$f":"IF(ISERROR(C10-K10), \"\", C10-K10)","v":1.7112148437144154E-3},{"$f":"IF(ISERROR(E10-C10), \"\", E10-C10)","v":5.1848833786499043E-3},{"$f":"E10-SUM(K10:M10)","v":0}]
["Spill","Larger Mammal (400g)",{"$f":"F02b!Dose_C","v":1.2808985621731558E-3},{"$f":"F02b!Dose_L","v":1.26582916732406E-5},{"$f":"F02b!Dose_U","v":5.1235942486926233E-3},"F02b",null,null,null,"400 g Mam",1.26582916732406E-5,1.2682402704999153E-3,3.8426956865194673E-3,0]
["Spill","Canid (5 kg)",{"$f":"F02c!Dose_C","v":9.9500150318155211E-4},{"$f":"F02c!Dose_L","v":9.8329560314412211E-6},{"$f":"F02c!Dose_U","v":3.9800060127262085E-3},"F02c",null,null,null,"Canid",9.8329560314412211E-6,9.8516854715011083E-4,2.9850045095446563E-3,0]
["Spill","Large Mammal (70g)",{"$f":"F02d!Dose_C","v":7.6420686248441876E-4},{"$f":"F02d!Dose_L","v":7.5521619351401399E-6},{"$f":"F02d!Dose_U","v":3.056827449937675E-3},"F02d",null,null,null,"Lrg Mam",7.5521619351401399E-6,7.5665470054927858E-4,2.2926205874532562E-3,0]
["   Consumption of contaminated Fish",null,null,null,null,null,null,null,null,"FISH--------------"]
["Spill","Large Mammalian Carnivore (70 kg)",{"$f":"F03a!Dose_C","v":3.4932401123859754E-4},{"$f":"F03a!Dose_L","v":3.4521431698873176E-7},{"$f":"F03a!Dose_U","v":7.9180109214082115E-3},"F03a",null,null,null,"Lrg Mam",{"$f":"IF(D15>0,  D15, \"\")","v":3.4521431698873176E-7},{"$f":"IF(ISERROR(C15-K15), \"\", C15-K15)","v":3.4897879692160879E-4},{"$f":"IF(ISERROR(E15-C15), \"\", E15-C15)","v":7.568686910169614E-3},{"$f":"E15-SUM(K15:M15)","v":0}]
["Spill","Canid (5 kg)",{"$f":"F03b!Dose_C","v":5.027986551334445E-4},{"$f":"F03b!Dose_L","v":4.9688337683775699E-7},{"$f":"F03b!Dose_U","v":1.1396769516358075E-2},"F03b",null,null,null,"Canid",4.9688337683775699E-7,5.0230177175660678E-4,1.0893970861224631E-2,0]
["Non-Accidental Acute Exposures"]
["   Contaminated Fruit [Lowest Residue Rates]",null,null,null,null,null,null,null,null,"FRUIT-------------"]
[null,"Small mammal (20g)","No exposure assessment",null,null,null,null,null,null,"Sm Mam",{"$f":"IF(D19>0,  D19, \"\")","v":""},{"$f":"IF(ISERROR(C19-K19), \"\", C19-K19)","v":""},{"$f":"IF(ISERROR(E19-C19), \"\", E19-C19)","v":""},{"$f":"E19-SUM(K19:M19)","v":0}]
[null,"Larger Mammal (400g)","No exposure assessment",null,null,null,null,null,null,"400g Mam","","","",0]
[null,"Large Mammal (70g)","No exposure assessment",null,null,null,null,null,null,"Lrg Mam","","","",0]
["   Contaminated Broadleaf Foliage",null,null,null,null,null,null,null,null,"BROADLEAF-----"]
[null,"Small mammal (20g)","No exposure assessment",null,null,null,null,null,null,"Sm Mam",{"$f":"IF(D23>0,  D23, \"\")","v":""},{"$f":"IF(ISERROR(C23-K23), \"\", C23-K23)","v":""},{"$f":"IF(ISERROR(E23-C23), \"\", E23-C23)","v":""},{"$f":"E23-SUM(K23:M23)","v":0}]
[null,"Larger Mammal (400g)","No exposure assessment",null,null,null,null,null,null,"400g Mam","","","",0]
[null,"Large Mammal (70g)","No exposure assessment",null,null,null,null,null,null,"Lrg Mam","","","",0]
["  Contaminated Tall Grass",null,null,null,null,null,null,null,null,"TALL GRASS -----"]
[null,"Small mammal (20g)","No exposure assessment",null,null,null,null,null,null,"Sm Mam",{"$f":"IF(D27>0,  D27, \"\")","v":""},{"$f":"IF(ISERROR(C27-K27), \"\", C27-K27)","v":""},{"$f":"IF(ISERROR(E27-C27), \"\", E27-C27)","v":""},{"$f":"E27-SUM(K27:M27)","v":0}]
[null,"Larger Mammal (400g)","No exposure assessment",null,null,null,null,null,null,"400g Mam","","","",0]
[null,"Large Mammal (70g)","No exposure assessment",null,null,null,null,null,null,"Lrg Mam","","","",0]
["   Contaminated Short Grass [Highest Residue Rate]",null,null,null,null,null,null,null,null,"SHORT GRASS---"]
[null,"Small mammal (20g)","No exposure assessment",null,null,null,null,null,null,"Sm Mam",{"$f":"IF(D31>0,  D31, \"\")","v":""},{"$f":"IF(ISERROR(C31-K31), \"\", C31-K31)","v":""},{"$f":"IF(ISERROR(E31-C31), \"\", E31-C31)","v":""},{"$f":"E31-SUM(K31:M31)","v":0}]
[null,"Larger Mammal (400g)","No exposure assessment",null,null,null,null,null,null,"400g Mam","","","",0]
[null,"Large Mammal","No exposure assessment",null,null,null,null,null,null,"Lrg Mam","","","",0]
["   Contaminated Water",null,null,null,null,null,null,null,null,"WATER------------"]
[null,"Small mammal (20g)",{"$f":"F08a!Dose_C","v":2.8693813181135802E-5},{"$f":"F08a!Dose_L","v":8.1982323374673715E-8},{"$f":"F08a!Dose_U","v":2.8693813181135803E-4},"F08a",null,null,null,"Sm Mam",{"$f":"IF(D35>0,  D35, \"\")","v":8.1982323374673715E-8},{"$f":"IF(ISERROR(C35-K35), \"\", C35-K35)","v":2.8611830857761129E-5},{"$f":"IF(ISERROR(E35-C35), \"\", E35-C35)","v":2.5824431863022223E-4},{"$f":"E35-SUM(K35:M35)","v":0}]
[null,"Larger Mammal (400g)",{"$f":"F08b!Dose_C","v":2.1265973424778758E-5},{"$f":"F08b!Dose_L","v":6.0759924070796455E-8},{"$f":"F08b!Dose_U","v":2.1265973424778765E-4},"F08b",null,null,null,"400g Mam",6.0759924070796455E-8,2.1205213500707962E-5,1.9139376082300888E-4,0]
[null,"Canid (5 kg)",{"$f":"F08c!Dose_C","v":1.6519399856593307E-5},{"$f":"F08c!Dose_L","v":4.7198285304552303E-8},{"$f":"F08c!Dose_U","v":1.651939985659331E-4},"F08c",null,null,null,"Canid",4.7198285304552303E-8,1.6472201571288755E-5,1.4867459870933979E-4,0]
[null,"Large Mammal (70g)",{"$f":"F08d!Dose_C","v":1.2687657952441564E-5},{"$f":"F08d!Dose_L","v":3.6250451292690182E-8},{"$f":"F08d!Dose_U","v":1.2687657952441565E-4},"F08d",null,null,null,"Lrg Mam",3.6250451292690182E-8,1.2651407501148874E-5,1.1418892157197409E-4,0]
["   Contaminated Insects",null,null,null,null,null,null,null,null,"INSECTS------------"]
[null,"Small mammal (20g)","No exposure assessment",null,null,null,null,null,null,"Sm Mam",{"$f":"IF(D40>0,  D40, \"\")","v":""},{"$f":"IF(ISERROR(C40-K40), \"\", C40-K40)","v":""},{"$f":"IF(ISERROR(E40-C40), \"\", E40-C40)","v":""},{"$f":"E40-SUM(K40:M40)","v":0}]
[null,"Larger Mammal (400g)","No exposure assessment",null,null,null,null,null,null,"Lrg Mam","","","",0]
["   Consumption of small mammal (after direct spray) by predator",null,null,null,null,null,null,null,null,"SMALL MAMMAL-"]
[null,"Canid (5 kg)","No exposure assessment",null,null,null,null,null,null,"Canid",{"$f":"IF(D43>0,  D43, \"\")","v":""},{"$f":"IF(ISERROR(C43-K43), \"\", C43-K43)","v":""},{"$f":"IF(ISERROR(E43-C43), \"\", E43-C43)","v":""},{"$f":"E43-SUM(K43:M43)","v":0}]
["   Consumption of contaminated Fish",null,null,null,null,null,null,null,null,"FISH----------------"]
[null,"Large Mammalian Carnivore (70 kg)",{"$f":"F11a!Dose_C","v":5.7996123651147444E-6},{"$f":"F11a!Dose_L","v":1.6570321043184985E-9},{"$f":"F11a!Dose_U","v":3.2864470068983559E-4},"F11a",null,null,null,"Lrg Mam",{"$f":"IF(D45>0,  D45, \"\")","v":1.6570321043184985E-9},{"$f":"IF(ISERROR(C45-K45), \"\", C45-K45)","v":5.797955333010426E-6},{"$f":"IF(ISERROR(E45-C45), \"\", E45-C45)","v":3.2284508832472084E-4},{"$f":"E45-SUM(K45:M45)","v":0}]
[null,"Canid (5 kg)",{"$f":"F11b!Dose_C","v":8.3476577723231815E-6},{"$f":"F11b!Dose_L","v":2.3850450778066232E-9},{"$f":"F11b!Dose_U","v":4.7303394043164703E-4},"F11b",null,null,null,"Canid",2.3850450778066232E-9,8.3452727272453747E-6,4.6468628265932386E-4,0]
["Chronic/Longer Term Exposures"]
["   Contaminated Fruit [Lowest Residue Rates]",null,null,null,null,null,null,null,null,"FRUIT-------------"]
[null,"Small mammal (20g)","No exposure assessment",null,null,null,null,null,null,"Sm Mam",{"$f":"IF(D49>0,  D49, \"\")","v":""},{"$f":"IF(ISERROR(C49-K49), \"\", C49-K49)","v":""},{"$f":"IF(ISERROR(E49-C49), \"\", E49-C49)","v":""},{"$f":"E49-SUM(K49:M49)","v":0}]
[null,"Larger Mammal (400g)","No exposure assessment",null,null,null,null,null,null,"400g Mam","","","",0]
[null,"Large Mammal (70g)","No exposure assessment",null,null,null,null,null,null,"Lrg Mam","","","",0]
["   Contaminated Broadleaf Foliage",null,null,null,null,null,null,null,null,"BROADLEAF-----"]
[null,"Small mammal (20g)","No exposure assessment",null,null,null,null,null,null,"Sm Mam",{"$f":"IF(D53>0,  D53, \"\")","v":""},{"$f":"IF(ISERROR(C53-K53), \"\", C53-K53)","v":""},{"$f":"IF(ISERROR(E53-C53), \"\", E53-C53)","v":""},{"$f":"E53-SUM(K53:M53)","v":0}]
[null,"Larger Mammal (400g)","No exposure assessment",null,null,null,null,null,null,"400g Mam","","","",0]
[null,"Large Mammal (70g)","No exposure assessment",null,null,null,null,null,null,"Lrg Mam","","","",0]
["  Contaminated Tall Grass",null,null,null,null,null,null,null,null,"TALL GRASS -----"]
[null,"Small mammal (20g)","No exposure assessment",null,null,null,null,null,null,"Sm Mam",{"$f":"IF(D57>0,  D57, \"\")","v":""},{"$f":"IF(ISERROR(C57-K57), \"\", C57-K57)","v":""},{"$f":"IF(ISERROR(E57-C57), \"\", E57-C57)","v":""},{"$f":"E57-SUM(K57:M57)","v":0}]
[null,"Larger Mammal (400g)","No exposure assessment",null,null,null,null,null,null,"400g Mam","","","",0]
[null,"Large Mammal","No exposure assessment",null,null,null,null,null,null,"Lrg Mam","","","",0]
["   Contaminated Short Grass [Highest Residue Rate]",null,null,null,null,null,null,null,null,"SHORT GRASS---"]
[null,"Small mammal (20g)","No exposure assessment",null,null,null,null,null,null,"Sm Mam",{"$f":"IF(D61>0,  D61, \"\")","v":""},{"$f":"IF(ISERROR(C61-K61), \"\", C61-K61)","v":""},{"$f":"IF(ISERROR(E61-C61), \"\", E61-C61)","v":""},{"$f":"E61-SUM(K61:M61)","v":0}]
[null,"Larger Mammal (400g)","No exposure assessment",null,null,null,null,null,null,"400g Mam","","","",0]
[null,"Large Mammal (70g)","No exposure assessment",null,null,null,null,null,null,"Lrg Mam","","","",0]
["   Contaminated Water",null,null,null,null,null,null,null,null,"WATER------------"]
[null,"Small mammal (20g)",{"$f":"F16a!Dose_C","v":2.049558084366843E-6},{"$f":"F16a!Dose_L","v":8.1982323374673721E-9},{"$f":"F16a!Dose_U","v":2.8693813181135802E-5},"F16a",null,null,null,"Sm Mam",{"$f":"IF(D65>0,  D65, \"\")","v":8.1982323374673721E-9},{"$f":"IF(ISERROR(C65-K65), \"\", C65-K65)","v":2.0413598520293756E-6},{"$f":"IF(ISERROR(E65-C65), \"\", E65-C65)","v":2.6644255096768959E-5},{"$f":"E65-SUM(K65:M65)","v":0}]
[null,"Larger Mammal (400g)",{"$f":"F16b!Dose_C","v":1.5189981017699116E-6},{"$f":"F16b!Dose_L","v":6.0759924070796463E-9},{"$f":"F16b!Dose_U","v":2.1265973424778758E-5},"F16b",null,null,null,"400g Mam",6.0759924070796463E-9,1.5129221093628321E-6,1.9746975323008846E-5,0]
[null,"Canid (5 kg)",{"$f":"F16c!Dose_C","v":1.1799571326138076E-6},{"$f":"F16c!Dose_L","v":4.7198285304552311E-9},{"$f":"F16c!Dose_U","v":1.6519399856593307E-5},"F16c",null,null,null,"Canid",4.7198285304552311E-9,1.1752373040833523E-6,1.53394427239795E-5,0]
[null,"Large Mammal (70g)",{"$f":"F16d!Dose_C","v":9.0626128231725466E-7},{"$f":"F16d!Dose_L","v":3.625045129269018E-9},{"$f":"F16d!Dose_U","v":1.2687657952441564E-5},"F16d",null,null,null,"Lrg Mam",3.625045129269018E-9,9.0263623718798562E-7,1.1781396670124308E-5,0]
["   Consumption of contaminated Fish",null,null,null,null,null,null,null,null,"FISH----------------"]
[null,"Large Mammalian Carnivore (70 kg)",{"$f":"F17a!Dose_C","v":4.1425802607962464E-7},{"$f":"F17a!Dose_L","v":1.6570321043184984E-10},{"$f":"F17a!Dose_U","v":3.2864470068983557E-5},"F17a",null,null,null,"Lrg Mam",{"$f":"IF(D70>0,  D70, \"\")","v":1.6570321043184984E-10},{"$f":"IF(ISERROR(C70-K70), \"\", C70-K70)","v":4.1409232286919279E-7},{"$f":"IF(ISERROR(E70-C70), \"\", E70-C70)","v":3.2450212042903936E-5},{"$f":"E70-SUM(K70:M70)","v":0}]
[null,"Canid (5 kg)",{"$f":"F17b!Dose_C","v":5.9626126945165588E-7},{"$f":"F17b!Dose_L","v":2.3850450778066235E-10},{"$f":"F17b!Dose_U","v":4.7303394043164693E-5},"F17b",null,null,null,"Canid",{"$f":"IF(D71>0,  D71, \"\")","v":2.3850450778066235E-10},{"$f":"IF(ISERROR(C71-K71), \"\", C71-K71)","v":5.9602276494387526E-7},{"$f":"IF(ISERROR(E71-C71), \"\", E71-C71)","v":4.6707132773713036E-5},0]

{"sheet":"G02a","index":53,"n_rows":71,"n_cols":14,"rows_kept":71,"cut":false,"hidden":false,"merged":[[2,5,3,5],[0,0,0,4],[1,2,1,4],[2,0,3,0],[2,1,3,1],[2,2,2,4]]}
["Summary of Hazard Quotients (Toxicity) for the Mammals",null,null,null,null,"G01V6Mam"]
["Application Rate:",{"$f":"'A01'!ApRt_C","v":0.28000000000000003}," lb a.e./acre",null,null,"G01V6Mam"]
["Scenario","Receptor","Hazard Quotients",null,null,"Toxicity Value"]
[null,null,"Central","Lower","Upper",null,null,null,null,null,"Lower","Central","Upper"]
["Accidental Acute Exposures"]
["   Direct Spray",null,null,null,null,null,null,null,null,"SPRAY------------"]
["first-order absorption","Small mammal (20g)","No exposure assessment",null,null,{"$f":"'B02'!$E$6","v":0.26},"NOAEL",null,null,"1st-Order Abs",{"$f":"IF(D7>0,  D7, \"\")","v":""},{"$f":"IF(ISERROR(C7-K7), \"\", C7-K7)","v":""},{"$f":"IF(ISERROR(E7-C7), \"\", E7-C7)","v":""},{"$f":"E7-SUM(K7:M7)","v":0}]
["100% absorption","Small mammal (20g)","No exposure assessment",null,null,{"$f":"'B02'!$E$6","v":0.26},"NOAEL",null,null,"100% Abs.","","","",{"$f":"E8-SUM(K8:M8)","v":0}]
["   Contaminated Water",null,null,null,null,null,null,null,null,"SPILL--------------"]
["Spill","Small mammal (20g)",{"$f":"F02a!$C$18/$F$10","v":6.647286382884492E-3},{"$f":"F02a!$C$19/$F$10","v":6.5690830136740872E-5},{"$f":"F02a!$C$20/$F$10","v":2.6589145531537968E-2},{"$f":"'B02'!$E$6","v":0.26},"NOAEL",null,null,"Sm Mam",{"$f":"IF(D10>0,  D10, \"\")","v":6.5690830136740872E-5},{"$f":"IF(ISERROR(C10-K10), \"\", C10-K10)","v":6.5815955527477512E-3},{"$f":"IF(ISERROR(E10-C10), \"\", E10-C10)","v":1.9941859148653478E-2},{"$f":"E10-SUM(K10:M10)","v":0}]
["Spill","Larger Mammal (400g)",{"$f":"F02b!$C$18/$F$11","v":4.9265329314352145E-3},{"$f":"F02b!$C$19/$F$11","v":4.8685737204771538E-5},{"$f":"F02b!$C$20/$F$11","v":1.9706131725740858E-2},{"$f":"'B02'!$E$6","v":0.26},"NOAEL",null,null,"400 g Mam",4.8685737204771538E-5,4.8778471942304428E-3,1.4779598794305644E-2,0]
["Spill","Canid (5 kg)",{"$f":"F02c!$C$18/$F$12","v":3.826928858390585E-3},{"$f":"F02c!$C$19/$F$12","v":3.781906165938931E-5},{"$f":"F02c!$C$20/$F$12","v":1.530771543356234E-2},{"$f":"'B02'!$E$6","v":0.26},"NOAEL",null,null,"Canid",3.781906165938931E-5,3.7891097967311959E-3,1.1480786575171755E-2,0]
["Spill","Large Mammal (70g)",{"$f":"F02d!$C$18/$F$13","v":2.9392571634016106E-3},{"$f":"F02d!$C$19/$F$13","v":2.9046776673615923E-5},{"$f":"F02d!$C$20/$F$13","v":1.1757028653606443E-2},{"$f":"'B02'!$E$6","v":0.26},"NOAEL",null,null,"Lrg Mam",2.9046776673615923E-5,2.9102103867279946E-3,8.8177714902048319E-3,0]
["   Consumption of contaminated Fish",null,null,null,null,null,null,null,null,"FISH--------------"]
["Spill","Large Mammalian Carnivore (70 kg)",{"$f":"F03a!$C$47/$F$15","v":1.3435538893792212E-3},{"$f":"F03a!$C$48/$F$15","v":1.3277473730335836E-6},{"$f":"F03a!$C$49/$F$15","v":3.0453888159262352E-2},{"$f":"'B02'!$E$6","v":0.26},"NOAEL",null,null,"Lrg Mam",{"$f":"IF(D15>0,  D15, \"\")","v":1.3277473730335836E-6},{"$f":"IF(ISERROR(C15-K15), \"\", C15-K15)","v":1.3422261420061876E-3},{"$f":"IF(ISERROR(E15-C15), \"\", E15-C15)","v":2.9110334269883131E-2},{"$f":"E15-SUM(K15:M15)","v":0}]
["Spill","Canid (5 kg)",{"$f":"F03b!$C$47/$F$16","v":1.9338409812824787E-3},{"$f":"F03b!$C$48/$F$16","v":1.9110899109144498E-6},{"$f":"F03b!$C$49/$F$16","v":4.3833728909069516E-2},{"$f":"'B02'!$E$6","v":0.26},"NOAEL",null,null,"Canid",1.9110899109144498E-6,1.9319298913715642E-3,4.1899887927787038E-2,0]
["Non-Accidental Acute Exposures"]
["   Contaminated Fruit [Lowest Residue Rates]",null,null,null,null,null,null,null,null,"FRUIT-------------"]
[null,"Small mammal (20g)","No exposure assessment",null,null,{"$f":"'B02'!$E$6","v":0.26},"NOAEL",null,null,"Sm Mam",{"$f":"IF(D19>0,  D19, \"\")","v":""},{"$f":"IF(ISERROR(C19-K19), \"\", C19-K19)","v":""},{"$f":"IF(ISERROR(E19-C19), \"\", E19-C19)","v":""},{"$f":"E19-SUM(K19:M19)","v":0}]
[null,"Larger Mammal (400g)","No exposure assessment",null,null,{"$f":"'B02'!$E$6","v":0.26},"NOAEL",null,null,"400g Mam","","","",0]
[null,"Large Mammal (70g)","No exposure assessment",null,null,{"$f":"'B02'!$E$6","v":0.26},"NOAEL",null,null,"Lrg Mam","","","",0]
["   Contaminated Broadleaf Foliage",null,null,null,null,null,null,null,null,"BROADLEAF-----"]
[null,"Small mammal (20g)","No exposure assessment",null,null,{"$f":"'B02'!$E$6","v":0.26},"NOAEL",null,null,"Sm Mam",{"$f":"IF(D23>0,  D23, \"\")","v":""},{"$f":"IF(ISERROR(C23-K23), \"\", C23-K23)","v":""},{"$f":"IF(ISERROR(E23-C23), \"\", E23-C23)","v":""},{"$f":"E23-SUM(K23:M23)","v":0}]
[null,"Larger Mammal (400g)","No exposure assessment",null,null,{"$f":"'B02'!$E$6","v":0.26},"NOAEL",null,null,"400g Mam","","","",0]
[null,"Large Mammal (70g)","No exposure assessment",null,null,{"$f":"'B02'!$E$6","v":0.26},"NOAEL",null,null,"Lrg Mam","","","",0]
["  Contaminated Tall Grass",null,null,null,null,null,null,null,null,"TALL GRASS -----"]
[null,"Small mammal (20g)","No exposure assessment",null,null,{"$f":"'B02'!$E$6","v":0.26},"NOAEL",null,null,"Sm Mam",{"$f":"IF(D27>0,  D27, \"\")","v":""},{"$f":"IF(ISERROR(C27-K27), \"\", C27-K27)","v":""},{"$f":"IF(ISERROR(E27-C27), \"\", E27-C27)","v":""},{"$f":"E27-SUM(K27:M27)","v":0}]
[null,"Larger Mammal (400g)","No exposure assessment",null,null,{"$f":"'B02'!$E$6","v":0.26},"NOAEL",null,null,"400g Mam","","","",0]
[null,"Large Mammal (70g)","No exposure assessment",null,null,{"$f":"'B02'!$E$6","v":0.26},"NOAEL",null,null,"Lrg Mam","","","",0]
["   Contaminated Short Grass [Highest Residue Rate]",null,null,null,null,null,null,null,null,"SHORT GRASS---"]
[null,"Small mammal (20g)","No exposure assessment",null,null,{"$f":"'B02'!$E$6","v":0.26},"NOAEL",null,null,"Sm Mam",{"$f":"IF(D31>0,  D31, \"\")","v":""},{"$f":"IF(ISERROR(C31-K31), \"\", C31-K31)","v":""},{"$f":"IF(ISERROR(E31-C31), \"\", E31-C31)","v":""},{"$f":"E31-SUM(K31:M31)","v":0}]
[null,"Larger Mammal (400g)","No exposure assessment",null,null,{"$f":"'B02'!$E$6","v":0.26},"NOAEL",null,null,"400g Mam","","","",0]
[null,"Large Mammal","No exposure assessment",null,null,{"$f":"'B02'!$E$6","v":0.26},"NOAEL",null,null,"Lrg Mam","","","",0]
["   Contaminated Water",null,null,null,null,null,null,null,null,"WATER------------"]
[null,"Small mammal (20g)",{"$f":"F08a!$C$18/$F$35","v":1.1036081992744539E-4},{"$f":"F08a!$C$19/$F$35","v":3.1531662836412966E-7},{"$f":"F08a!$C$20/$F$35","v":1.103608199274454E-3},{"$f":"'B02'!$E$6","v":0.26},"NOAEL",null,null,"Sm Mam",{"$f":"IF(D35>0,  D35, \"\")","v":3.1531662836412966E-7},{"$f":"IF(ISERROR(C35-K35), \"\", C35-K35)","v":1.1004550329908127E-4},{"$f":"IF(ISERROR(E35-C35), \"\", E35-C35)","v":9.932473793470085E-4},{"$f":"E35-SUM(K35:M35)","v":0}]
[null,"Larger Mammal (400g)",{"$f":"F08b!$C$18/$F$36","v":8.1792205479918297E-5},{"$f":"F08b!$C$19/$F$36","v":2.3369201565690944E-7},{"$f":"F08b!$C$20/$F$36","v":8.1792205479918321E-4},{"$f":"'B02'!$E$6","v":0.26},"NOAEL",null,null,"400g Mam",2.3369201565690944E-7,8.1558513464261392E-5,7.3612984931926495E-4,0]
[null,"Canid (5 kg)",{"$f":"F08c!$C$18/$F$37","v":6.3536153294589638E-5},{"$f":"F08c!$C$19/$F$37","v":1.8153186655597038E-7},{"$f":"F08c!$C$20/$F$37","v":6.3536153294589648E-4},{"$f":"'B02'!$E$6","v":0.26},"NOAEL",null,null,"Canid",1.8153186655597038E-7,6.3354621428033669E-5,5.718253796513069E-4,0]
[null,"Large Mammal (70g)",{"$f":"F08d!$C$18/$F$38","v":4.8798684432467552E-5},{"$f":"F08d!$C$19/$F$38","v":1.39424812664193E-7},{"$f":"F08d!$C$20/$F$38","v":4.8798684432467554E-4},{"$f":"'B02'!$E$6","v":0.26},"NOAEL",null,null,"Lrg Mam",1.39424812664193E-7,4.865925961980336E-5,4.39188159892208E-4,0]
["   Contaminated Insects",null,null,null,null,null,null,null,null,"INSECTS------------"]
[null,"Small mammal (20g)","No exposure assessment",null,null,{"$f":"'B02'!$E$6","v":0.26},"NOAEL",null,null,"Sm Mam",{"$f":"IF(D40>0,  D40, \"\")","v":""},{"$f":"IF(ISERROR(C40-K40), \"\", C40-K40)","v":""},{"$f":"IF(ISERROR(E40-C40), \"\", E40-C40)","v":""},{"$f":"E40-SUM(K40:M40)","v":0}]
[null,"Larger Mammal (400g)","No exposure assessment",null,null,{"$f":"'B02'!$E$6","v":0.26},"NOAEL",null,null,"Lrg Mam","","","",0]
["   Consumption of small mammal (after direct spray) by predator",null,null,null,null,null,null,null,null,"SMALL MAMMAL-"]
[null,"Canid (5 kg)",null,null,null,{"$f":"'B02'!$E$6","v":0.26},"NOAEL",null,null,"Canid",{"$f":"IF(D43>0,  D43, \"\")","v":""},{"$f":"IF(ISERROR(C43-K43), \"\", C43-K43)","v":""},{"$f":"IF(ISERROR(E43-C43), \"\", E43-C43)","v":0},{"$f":"E43-SUM(K43:M43)","v":0}]
["   Consumption of contaminated Fish",null,null,null,null,null,null,null,null,"FISH----------------"]
[null,"Large Mammalian Carnivore (70 kg)",{"$f":"F11a!$C$47/$F$45","v":2.2306201404287477E-5},{"$f":"F11a!$C$48/$F$45","v":6.3732004012249937E-9},{"$f":"F11a!$C$49/$F$45","v":1.2640180795762907E-3},{"$f":"'B02'!$E$6","v":0.26},"NOAEL",null,null,"Lrg Mam",{"$f":"IF(D45>0,  D45, \"\")","v":6.3732004012249937E-9},{"$f":"IF(ISERROR(C45-K45), \"\", C45-K45)","v":2.2299828203886251E-5},{"$f":"IF(ISERROR(E45-C45), \"\", E45-C45)","v":1.2417118781720032E-3},{"$f":"E45-SUM(K45:M45)","v":0}]
[null,"Canid (5 kg)",{"$f":"F11b!$C$47/$F$46","v":3.2106376047396849E-5},{"$f":"F11b!$C$48/$F$46","v":9.1732502992562431E-9},{"$f":"F11b!$C$49/$F$46","v":1.8193613093524885E-3},{"$f":"'B02'!$E$6","v":0.26},"NOAEL",null,null,"Canid",9.1732502992562431E-9,3.2097202797097591E-5,1.7872549333050917E-3,0]
["Chronic/Longer Term Exposures"]
["   Contaminated Fruit [Lowest Residue Rates]",null,null,null,null,null,null,null,null,"FRUIT-------------"]
[null,"Small mammal (20g)","No exposure assessment",null,null,{"$f":"'B02'!$E$7","v":2.5999999999999999E-2},"NOAEL",null,null,"Sm Mam",{"$f":"IF(D49>0,  D49, \"\")","v":""},{"$f":"IF(ISERROR(C49-K49), \"\", C49-K49)","v":""},{"$f":"IF(ISERROR(E49-C49), \"\", E49-C49)","v":""},{"$f":"E49-SUM(K49:M49)","v":0}]
[null,"Larger Mammal (400g)","No exposure assessment",null,null,{"$f":"'B02'!$E$7","v":2.5999999999999999E-2},"NOAEL",null,null,"400g Mam","","","",0]
[null,"Large Mammal (70g)","No exposure assessment",null,null,{"$f":"'B02'!$E$7","v":2.5999999999999999E-2},"NOAEL",null,null,"Lrg Mam","","","",0]
["   Contaminated Broadleaf Foliage",null,null,null,null,null,null,null,null,"BROADLEAF-----"]
[null,"Small mammal (20g)","No exposure assessment",null,null,{"$f":"'B02'!$E$7","v":2.5999999999999999E-2},"NOAEL",null,null,"Sm Mam",{"$f":"IF(D53>0,  D53, \"\")","v":""},{"$f":"IF(ISERROR(C53-K53), \"\", C53-K53)","v":""},{"$f":"IF(ISERROR(E53-C53), \"\", E53-C53)","v":""},{"$f":"E53-SUM(K53:M53)","v":0}]
[null,"Larger Mammal (400g)","No exposure assessment",null,null,{"$f":"'B02'!$E$7","v":2.5999999999999999E-2},"NOAEL",null,null,"400g Mam","","","",0]
[null,"Large Mammal (70g)","No exposure assessment",null,null,{"$f":"'B02'!$E$7","v":2.5999999999999999E-2},"NOAEL",null,null,"Lrg Mam","","","",0]
["  Contaminated Tall Grass",null,null,null,null,null,null,null,null,"TALL GRASS -----"]
[null,"Small mammal (20g)","No exposure assessment",null,null,{"$f":"'B02'!$E$7","v":2.5999999999999999E-2},"NOAEL",null,null,"Sm Mam",{"$f":"IF(D57>0,  D57, \"\")","v":""},{"$f":"IF(ISERROR(C57-K57), \"\", C57-K57)","v":""},{"$f":"IF(ISERROR(E57-C57), \"\", E57-C57)","v":""},{"$f":"E57-SUM(K57:M57)","v":0}]
[null,"Larger Mammal (400g)","No exposure assessment",null,null,{"$f":"'B02'!$E$7","v":2.5999999999999999E-2},"NOAEL",null,null,"400g Mam","","","",0]
[null,"Large Mammal","No exposure assessment",null,null,{"$f":"'B02'!$E$7","v":2.5999999999999999E-2},"NOAEL",null,null,"Lrg Mam","","","",0]
["   Contaminated Short Grass [Highest Residue Rate]",null,null,null,null,null,null,null,null,"SHORT GRASS---"]
[null,"Small mammal (20g)","No exposure assessment",null,null,{"$f":"'B02'!$E$7","v":2.5999999999999999E-2},"NOAEL",null,null,"Sm Mam",{"$f":"IF(D61>0,  D61, \"\")","v":""},{"$f":"IF(ISERROR(C61-K61), \"\", C61-K61)","v":""},{"$f":"IF(ISERROR(E61-C61), \"\", E61-C61)","v":""},{"$f":"E61-SUM(K61:M61)","v":0}]
[null,"Larger Mammal (400g)","No exposure assessment",null,null,{"$f":"'B02'!$E$7","v":2.5999999999999999E-2},"NOAEL",null,null,"400g Mam","","","",0]
[null,"Large Mammal (70g)","No exposure assessment",null,null,{"$f":"'B02'!$E$7","v":2.5999999999999999E-2},"NOAEL",null,null,"Lrg Mam","","","",0]
["   Contaminated Water",null,null,null,null,null,null,null,null,"WATER------------"]
[null,"Small mammal (20g)",{"$f":"F16a!$C$18/$F$65","v":7.882915709103243E-5},{"$f":"F16a!$C$19/$F$65","v":3.1531662836412971E-7},{"$f":"F16a!$C$20/$F$65","v":1.103608199274454E-3},{"$f":"'B02'!$E$7","v":2.5999999999999999E-2},"NOAEL",null,null,"Sm Mam",{"$f":"IF(D65>0,  D65, \"\")","v":3.1531662836412971E-7},{"$f":"IF(ISERROR(C65-K65), \"\", C65-K65)","v":7.8513840462668305E-5},{"$f":"IF(ISERROR(E65-C65), \"\", E65-C65)","v":1.0247790421834217E-3},{"$f":"E65-SUM(K65:M65)","v":0}]
[null,"Larger Mammal (400g)",{"$f":"F16b!$C$18/$F$66","v":5.8423003914227374E-5},{"$f":"F16b!$C$19/$F$66","v":2.3369201565690949E-7},{"$f":"F16b!$C$20/$F$66","v":8.1792205479918299E-4},{"$f":"'B02'!$E$7","v":2.5999999999999999E-2},"NOAEL",null,null,"400g Mam",2.3369201565690949E-7,5.8189311898570462E-5,7.5949905088495561E-4,0]
[null,"Canid (5 kg)",{"$f":"F16c!$C$18/$F$67","v":4.5382966638992598E-5},{"$f":"F16c!$C$19/$F$67","v":1.8153186655597043E-7},{"$f":"F16c!$C$20/$F$67","v":6.3536153294589648E-4},{"$f":"'B02'!$E$7","v":2.5999999999999999E-2},"NOAEL",null,null,"Canid",1.8153186655597043E-7,4.5201434772436629E-5,5.8997856630690383E-4,0]
[null,"Large Mammal (70g)",{"$f":"F16d!$C$18/$F$68","v":3.4856203166048255E-5},{"$f":"F16d!$C$19/$F$68","v":1.39424812664193E-7},{"$f":"F16d!$C$20/$F$68","v":4.8798684432467554E-4},{"$f":"'B02'!$E$7","v":2.5999999999999999E-2},"NOAEL",null,null,"Lrg Mam",1.39424812664193E-7,3.4716778353384062E-5,4.5313064115862727E-4,0]
["   Consumption of contaminated Fish",null,null,null,null,null,null,null,null,"FISH----------------"]
[null,"Large Mammalian Carnivore (70 kg)",{"$f":"F17a!$C$47/$F$70","v":1.5933001003062486E-5},{"$f":"F17a!$C$48/$F$70","v":6.3732004012249937E-9},{"$f":"F17a!$C$49/$F$70","v":1.2640180795762907E-3},{"$f":"'B02'!$E$7","v":2.5999999999999999E-2},"NOAEL",null,null,"Lrg Mam",{"$f":"IF(D70>0,  D70, \"\")","v":6.3732004012249937E-9},{"$f":"IF(ISERROR(C70-K70), \"\", C70-K70)","v":1.592662780266126E-5},{"$f":"IF(ISERROR(E70-C70), \"\", E70-C70)","v":1.2480850785732281E-3},{"$f":"E70-SUM(K70:M70)","v":0}]
[null,"Canid (5 kg)",{"$f":"F17b!$C$47/$F$71","v":2.2933125748140611E-5},{"$f":"F17b!$C$48/$F$71","v":9.1732502992562447E-9},{"$f":"F17b!$C$49/$F$71","v":1.8193613093524883E-3},{"$f":"'B02'!$E$7","v":2.5999999999999999E-2},"NOAEL",null,null,"Canid",{"$f":"IF(D71>0,  D71, \"\")","v":9.1732502992562447E-9},{"$f":"IF(ISERROR(C71-K71), \"\", C71-K71)","v":2.2923952497841356E-5},{"$f":"IF(ISERROR(E71-C71), \"\", E71-C71)","v":1.7964281836043477E-3},0]

{"sheet":"References","index":54,"n_rows":43,"n_cols":2,"rows_kept":43,"cut":false,"hidden":false,"merged":[[0,0,0,1]]}
["References cited in workbook"]
["Citation","Full Reference"]
["Ali et al. 2005","Ali M; Iqbat F; Salam A; Iram S; Athar M.  2005.  Comparative study of body composition of different fish species from brackish water pond.  Int J Environ Sci Tech.  2(3): 229-232."]
["Boxenbaum and D’Souza 1990","Boxenbaum J; D'Souza R.  1990.  Interspecies pharmacokinetic scaling, biological design and neoteny.  Adv. Drug Res.  19: 139-195."]
["Budavari  1989","Budavari S. (Ed).  1989.  The Merck Index: An Encyclopedia of Chemicals, Drugs,and Biologicals, 11th ed.  Merck & Co., Inc., Rahway, New Jersey."]
["Burnmaster 1998","Burnmaster DE.  1998.  Lognormal distribution for total water intake and tap water intake by pregnant and lactating women in the United States.  Risk Analysis.  18(5): 215-219"]
["Chapman 1998","Chapman P.  1998.  The Insects: Structure and Function.  4th Edition.  Cambridge University Press, Cambridge, UK.  788 pp."]
["Default","These are plausible default values that are typically used in SERA risk assessments."]
["Dunning 1993","Dunning JB.  1993.  CRC Handbook of Avian Body Masses.  CRC Press, Boca Raton FL, 371 pp."]
["Durkin et al. 1995","Durkin PR; Rubin L; Withey J; Meylan W.  1995.  Methods of assessing dermal absorption with emphasis on uptake from contaminated vegetation.  Toxicol. Indust. Health.  11(1): 63-79."]
["Fletcher et al. 1994","Fletcher JS; Nellessen JE; Pfleeger TG. 1994. Literature review and evaluation of the EPA food-chain (Kenega) nomogram, an instrument for estimating pesticide residues on plants. Environ.  Toxicol. Chem. 13(9):1383-1391."]
["Harris and Solomon 1992","Harris SA; Solomon KR.  1992.  Human exposure to 2,4-D following controlled activities on recently sprayed turf.  J. Environ. Sci. Health.  B27(1): 9-22."]
["Hoerger and Kenaga 1972","Hoerger F; Kenaga EE.  1972.  Pesticide residues on plants: Correlation of representative data as a basis for estimation of their magnitude in the environment.  In: Environmental Quality and Safety, Volume I:  Global Aspects of Toxicology and Technology as Applied to the Environment.  F. Coulston and F. Kerte (eds.).  Academic Press, New York, NY.  pp. 9-28."]
["Humphery and Dykes 2008","Humphrey JAC; Dykes ES.  2008.  Thermal energy conduction in a honey bee comb due to cell-heating bees.  J Theoretical Biology.  250 (1): 194-208."]
["ICRP 1975","ICRP (International Commission on Radiologic Protection).  1975. Report of the Task Group on Reference Man.  Recommendations of the International Commission on Radiological Protection (ICRP) Publ. No. 23.   Pergamon Press, New York, NY."]
["Knisel et al. 1992","Knisel WG; Davis FM; Leonard RA.  1992.  GLEAMS Version 2.0 User Manual. U.S. Department of Agriculture, Agricultural Research Service, Southeast Watershed Research Laboratory, Tifton, GA.  202pp"]
["Manugistics 1995","Manugistics.  1995.  Statgraphics Plus for Windows. Version 3.  Available from Manugistics, Inc.  Rockville, Maryland."]
["Mason and Johnson 1987","Mason RW; Johnson BL.  1987.  Ergonomic factors in chemical hazard control.  In: Handbook of Human Factors.  Salveny, G; ed.  John Wiley and Sons, New York, NY.  pp. 772-741."]
["Mendenhall and Scheaffer 1973","Mendenhall W; Scheaffer RF.  1973.  Mathematical Statistics with Applications.  Duxbury Press, North Scituate, Massachusetts. 461 pp. plus appendices."]
["N/A","Not applicable"]
["Nagy 2005","Nagy KA.  2005.  Field metabolic rate and body size.  Journal of Experimental Biology.  208: 1621-1625."]
["Ratnapalan et al. 2003","Ratnapalan S; Potylitsina Y; Tan LH; Roifman M; Koren G.  2003.  Measuring a toddler's mouthful: toxicologic considerations.  J Pediatr.  142(6):729-30."]
["Reichle et al. 1973","Reichle DE, Goldstein RA; Van Hook RI; Dodson DJ.  1973.  Analysis of Insect Consumption in a Forest Canopy.  Ecology.  54: 1076-1084."]
["Reid 2006"," Reid FA. 2006.  A Field Guide to Mammals of North America North of Mexico.  Fourth Edition.  The Peterson Field Guide Series.  Houghton Mifflin Company, Boston MA.  570 pp."]
["Ruffle et al. 1994","Ruffle B; Burmaster DE; Anderson PD; Gordon HD.  1994.  Lognormal distributions for fish consumption by the general U.S. population.  Risk Analy.  14(4): 395-404."]
["SERA 1997","SERA (Syracuse Environmental Research Associates, Inc.).  1997. Reevaluation of Methods for Assessing Worker Exposure to Pesticides, SERA TR 96-21-08-01, draft dated December 31, 1997.  Prepared under USDA/FS Contract 53-3187-5-12.  Syracuse Environmental Research Associates, Inc., Fayetteville, NY."]
["SERA 2005","SERA (Syracuse Environmental Research Associates, Inc.).  2005. Hexazinone - Human Health and Ecological Risk Assessment– Final Report, SERA SERA TR 05-43-20-03d, Final Report dated October 25, 2005.  Available at: http://www.fs.fed.us/foresthealth/pesticide/risk.shtml."]
["SERA 2007","SERA (Syracuse Environmental Research Associates, Inc.).  2007. Preparation of Environmental Documentation and Risk Assessments, SERA MD 2007-01a, draft dated July 2001.  Syracuse Environmental Research Associates, Inc., Fayetteville, NY.  Available at www.sera-inc.com."]
["SERA 2010","SERA (Syracuse Environmental Research Associates, Inc.).  2010. Strychnine Human Health and Ecological Risk Assessment, SERA TR-052-17-02a, draft dated February 22, 2010.  Syracuse Environmental Research Associates, Inc., Manlius, NY.  Available at www.sera-inc.com."]
["Sibley 2000","Sibley DA.  2000.  The Sibley Guide to Birds.  National Audubon Society, Chanticleer Press Edition.  Alfred A. Knopf Inc., New York.  545 pp."]
["Teske et al. 2001","Teske ME; Bird SL; Esterly DM; Ray SL; Perry SG.  2001.  A User’s Guide for AgDRIFT 2.0: A Tiered Approach for the Assesment of Spray Drift.  Continuum Dynamics, Inc. Public Use Version.  C.D.I. Report No. 01-01.  Available, with executable model at: http://www.agdrift.com"]
["U.S. EPA/OPP 1999","U.S. EPA/OPP ((U.S. Environmental Protection Agency/Office of Pesticide Programs).  1999.  ECOFRAM:  Terrestrial ECOFRAM Terrestrial Draft Report.  Ecological Committee on FIFRA Risk Assessment Methods(ECOFRAM).  Report dated May 10, 1999.  Available at:  http://www.epa.gov/oppefed1/ ecorisk/terrreport.pdf."]
["U.S. EPA/ORD 1985","U.S. EPA/ORD (U.S. Environmental Protection Agency/Office of Research and Development).  1985. Development of Statistical Distributions or Ranges of Standard Factors Used in Exposure Assessments,  Report prepared by GCA Corp., Chapel Hill.  Available from NTIS: PB85-242667."]
["U.S. EPA/ORD 1992","U.S. EPA/ORD (U.S. Environmental Protection Agency/Office of Research and Development).  1992.  Dermal Exposure Assessment: Principles and Applications.  EPA/600/8-91/011B.  Interim Report.  Exposure Assessment Group, Office of Health and Environmental Assessment, Washington, DC."]
["U.S. EPA/ORD 1993","U.S. EPA/ORD (U.S. Environmental Protection Agency/Office of Research and Development).  1993.  Wildlife Exposure Factors Handbook.  Volumes 1 and 2.  EPA/600/R-93/187a,b.  Pagination not continuous.  Available NTIS: PB94-174778 and PB94-174779."]
["U.S. EPA/ORD 1996","U.S. EPA (U.S. Environmental Protection Agency/Office of Research and Development).  1996.  Exposure Factors Handbook. National Center for Environmental Assessment, U.S. EPA, Washington, DC.  EPA/600/P-95/002Ba-c.  Avail. NTIS: PB97-117683, 97-117691, PB97-117709."]
["U.S. EPA/ORD 1997","U.S. EPA (U.S. Environmental Protection Agency/Office of Research and Development).  1996.  Exposure Factors Handbook. National Center for Environmental Assessment, U.S. EPA, Washington, DC.  EPA/600/P-95/002Fa.  Available at: http://rais.ornl.gov/homepage/EFH_Final_1997_EPA600P95002Fa.pdf"]
["USDA 1989a","USDA (U.S. Department of Agriculture/Forest Service).  1989a.  Final Environmental Impact Statement: Vegetation Management in the Coastal Plain/Piedmont, Management Bulletin R8-MB-23, dated January, 1989.  1213 pp."]
["USDA 1989b","USDA (U.S. Department of Agriculture/Forest Service).  1989b.  Draft Environmental Impact Statement: Vegetation Management in the Ozark/Ouachita Mountains, Management Bulletin R8-MB-23, dated June, 1989.  499 pp."]
["USDA 1989c","USDA (U.S. Department of Agriculture/Forest Service).  1989c.  Final Environmental Impact Statement: Vegetation Management in the Appalachian Mountains, Management Bulletin R8-MB-38, dated July, 1989. 1104 pp."]
["Waldbauer 1968","Waldbauer GP.  1968.  The consumption and utilization of food by insects.  Advan Insect Physiol.  5: 229-288"]
["Winston 1987","Winston ML.  1987.  The Biology of the Honey Bee.  Harvard University Press, Cambridge, MA.  ISBN 0-674-07409-2  280 pp."]
["Wolfram Research 1997","Wolfram Research.  1997. Mathematica Version 3.0.1.  Available from Wolfram Research, Inc.  Champaign, IL."]